Body,Body Name,Date,Transaction Number,Invoice Number,Amount,Supplier Name,Supplier ID ,VAT Registration Number ,Expense Area,Expense Type,Expense Code,Purchase Order
http://statistics.data.gov.uk/id/local-authority/29UP,Tonbridge & Malling Borough Council,1/3/2024,0011047456/3,11047456, 66.51,EDF- Accounts starting with A,01921000,,Estate Management Charge,Land Review,D40PS000020400,
http://statistics.data.gov.uk/id/local-authority/29UP,Tonbridge & Malling Borough Council,1/3/2024,0012008926/1,12008926, 364.84,Sapphire Technologies Ltd,01452900,,Software Hire & Support,Information Technology,D27KD000044059,410032543
http://statistics.data.gov.uk/id/local-authority/29UP,Tonbridge & Malling Borough Council,1/3/2024,0012008926/2,12008926, 2980.00,Sapphire Technologies Ltd,01452900,,Software Hire & Support,Information Technology,D27KD000044059,410032543
http://statistics.data.gov.uk/id/local-authority/29UP,Tonbridge & Malling Borough Council,1/3/2024,0021039060/1,21039060, 685.66,Atlas Facilities Managment Limited ,01075900,,Gates / Security,Patrolling,B22LF000044017,210057188
http://statistics.data.gov.uk/id/local-authority/29UP,Tonbridge & Malling Borough Council,1/3/2024,0021039061/3,21039061, 50.00,B&Q/Screwfix Direct(TradeUKAccount),00141300,,Tree Planting Schemes,Countryside/Woodland Mgt,B22LH000020405,
http://statistics.data.gov.uk/id/local-authority/29UP,Tonbridge & Malling Borough Council,1/3/2024,0021039062/1,21039062, 180.54,Castle Water,01696500,,Water Charges (Metered),Haysden Country Park,B22LC000024001,
http://statistics.data.gov.uk/id/local-authority/29UP,Tonbridge & Malling Borough Council,1/3/2024,0021039064/1,21039064, 406.62,Landscape Services Ltd,00057600,,Grounds Maintenance Contract,Cemetery,B26MP000050103,
http://statistics.data.gov.uk/id/local-authority/29UP,Tonbridge & Malling Borough Council,1/3/2024,0021039065/1,21039065, 400.00,Green Leaf Tree & Landscapes Limited,01860500,,Health & Safety - Trees,Countryside/Woodland Mgt,B22LG000044045,210057523
http://statistics.data.gov.uk/id/local-authority/29UP,Tonbridge & Malling Borough Council,1/3/2024,0021039066/1,21039066, 120.00,Green Leaf Tree & Landscapes Limited,01860500,,Maintenance of Grounds,Open Spaces & Amenity Areas,B22LE000020402,210057524
http://statistics.data.gov.uk/id/local-authority/29UP,Tonbridge & Malling Borough Council,1/3/2024,0021039067/3,21039067, 616.63,KCC - L.A.S.E.R Commercial Services ,00184300,,Electricity,Tonbridge Castle Grounds,B22LB000021002,
http://statistics.data.gov.uk/id/local-authority/29UP,Tonbridge & Malling Borough Council,1/3/2024,0021039068/3,21039068, 423.31,KCC - L.A.S.E.R Commercial Services ,00184300,,Electricity,Cemetery,B26MP000021002,
http://statistics.data.gov.uk/id/local-authority/29UP,Tonbridge & Malling Borough Council,1/3/2024,0021039069/3,21039069, 1857.96,KCC - L.A.S.E.R Commercial Services ,00184300,,Electricity,Haysden Country Park,B22LC000021002,
http://statistics.data.gov.uk/id/local-authority/29UP,Tonbridge & Malling Borough Council,1/3/2024,0021039070/1,21039070, 435.71,Kompan Ltd,01741600,382219257,Maintenance of Play Equipment,Open Spaces & Amenity Areas,B22LE000020503,210057461
http://statistics.data.gov.uk/id/local-authority/29UP,Tonbridge & Malling Borough Council,1/3/2024,0021039071/1,21039071, 2260.00,The Original Tree Surgeons Limited,01906200,219421521,Health & Safety - Trees,Countryside/Woodland Mgt,B22LG000044045,210057485
http://statistics.data.gov.uk/id/local-authority/29UP,Tonbridge & Malling Borough Council,1/3/2024,0021039072/3,21039072, 450.00,SWS Countryside & Landscape,01567200,,Health & Safety - Trees,Countryside/Woodland Mgt,B22LG000044045,
http://statistics.data.gov.uk/id/local-authority/29UP,Tonbridge & Malling Borough Council,1/3/2024,0021039073/1,21039073, 22166.53,Landscape Services Ltd,00057600,,Grounds Maintenance Contract,Sports Grounds,B13ET000050103,
http://statistics.data.gov.uk/id/local-authority/29UP,Tonbridge & Malling Borough Council,1/3/2024,0021039073/10,21039073, 190.43,Landscape Services Ltd,00057600,,Grounds Maintenance Contract,Churchyards St Stephens,B28MY000050103,
http://statistics.data.gov.uk/id/local-authority/29UP,Tonbridge & Malling Borough Council,1/3/2024,0021039073/11,21039073, 191.95,Landscape Services Ltd,00057600,,Grounds Maintenance Contract,Grounds,D21FF000050103,
http://statistics.data.gov.uk/id/local-authority/29UP,Tonbridge & Malling Borough Council,1/3/2024,0021039073/12,21039073, 320.54,Landscape Services Ltd,00057600,,Maintenance of Grounds,Parking Off-Street,E10HA000020402,
http://statistics.data.gov.uk/id/local-authority/29UP,Tonbridge & Malling Borough Council,1/3/2024,0021039073/13,21039073, 1148.71,Landscape Services Ltd,00057600,,Maintenance of Grounds,Parking Off-Street,E10HAE00120402,
http://statistics.data.gov.uk/id/local-authority/29UP,Tonbridge & Malling Borough Council,1/3/2024,0021039073/14,21039073, 108.41,Landscape Services Ltd,00057600,,Maintenance of Grounds,Parking Off-Street,E10HAE00220402,
http://statistics.data.gov.uk/id/local-authority/29UP,Tonbridge & Malling Borough Council,1/3/2024,0021039073/15,21039073, 98.31,Landscape Services Ltd,00057600,,Maintenance of Grounds,Parking Off-Street,E10HAE00320402,
http://statistics.data.gov.uk/id/local-authority/29UP,Tonbridge & Malling Borough Council,1/3/2024,0021039073/16,21039073, 24.52,Landscape Services Ltd,00057600,,Maintenance of Grounds,Parking Off-Street,E10HAE00420402,
http://statistics.data.gov.uk/id/local-authority/29UP,Tonbridge & Malling Borough Council,1/3/2024,0021039073/17,21039073, 0.63,Landscape Services Ltd,00057600,,Maintenance of Grounds,Parking Off-Street,E10HAE00520402,
http://statistics.data.gov.uk/id/local-authority/29UP,Tonbridge & Malling Borough Council,1/3/2024,0021039073/18,21039073, 68.63,Landscape Services Ltd,00057600,,Maintenance of Grounds,Parking Off-Street,E10HAE00620402,
http://statistics.data.gov.uk/id/local-authority/29UP,Tonbridge & Malling Borough Council,1/3/2024,0021039073/19,21039073, 160.24,Landscape Services Ltd,00057600,,Maintenance of Grounds,Parking Off-Street,E10HAE01020402,
http://statistics.data.gov.uk/id/local-authority/29UP,Tonbridge & Malling Borough Council,1/3/2024,0021039073/2,21039073, 8238.89,Landscape Services Ltd,00057600,,Grounds Maintenance Contract,Tonbridge Castle Grounds,B22LB000050103,
http://statistics.data.gov.uk/id/local-authority/29UP,Tonbridge & Malling Borough Council,1/3/2024,0021039073/20,21039073, 3.55,Landscape Services Ltd,00057600,,Maintenance of Grounds,Parking Off-Street,E10HAE01220402,
http://statistics.data.gov.uk/id/local-authority/29UP,Tonbridge & Malling Borough Council,1/3/2024,0021039073/21,21039073, 7.83,Landscape Services Ltd,00057600,,Maintenance of Grounds,Parking Off-Street,E10HAE01320402,
http://statistics.data.gov.uk/id/local-authority/29UP,Tonbridge & Malling Borough Council,1/3/2024,0021039073/22,21039073, 32.60,Landscape Services Ltd,00057600,,Maintenance of Grounds,Parking Off-Street,E10HAE01520402,
http://statistics.data.gov.uk/id/local-authority/29UP,Tonbridge & Malling Borough Council,1/3/2024,0021039073/23,21039073, 63.69,Landscape Services Ltd,00057600,,Maintenance of Grounds,Parking Off-Street,E10HAE01620402,
http://statistics.data.gov.uk/id/local-authority/29UP,Tonbridge & Malling Borough Council,1/3/2024,0021039073/24,21039073, 25.88,Landscape Services Ltd,00057600,,Maintenance of Grounds,Parking Off-Street,E10HAE01720402,
http://statistics.data.gov.uk/id/local-authority/29UP,Tonbridge & Malling Borough Council,1/3/2024,0021039073/25,21039073, 15.90,Landscape Services Ltd,00057600,,Maintenance of Grounds,Parking Off-Street,E10HAE02120402,
http://statistics.data.gov.uk/id/local-authority/29UP,Tonbridge & Malling Borough Council,1/3/2024,0021039073/26,21039073, 25.32,Landscape Services Ltd,00057600,,Maintenance of Grounds,Parking Off-Street,E10HAE02320402,
http://statistics.data.gov.uk/id/local-authority/29UP,Tonbridge & Malling Borough Council,1/3/2024,0021039073/27,21039073, 97.05,Landscape Services Ltd,00057600,,Maintenance of Grounds,Parking Off-Street,E10HAE02820402,
http://statistics.data.gov.uk/id/local-authority/29UP,Tonbridge & Malling Borough Council,1/3/2024,0021039073/28,21039073, 26.28,Landscape Services Ltd,00057600,,Maintenance of Grounds,Parking Off-Street,E10HAE04020402,
http://statistics.data.gov.uk/id/local-authority/29UP,Tonbridge & Malling Borough Council,1/3/2024,0021039073/29,21039073, 86.65,Landscape Services Ltd,00057600,,Maintenance of Grounds,Parking Off-Street,E10HAE04520402,
http://statistics.data.gov.uk/id/local-authority/29UP,Tonbridge & Malling Borough Council,1/3/2024,0021039073/3,21039073, 62.73,Landscape Services Ltd,00057600,,Trade Refuse Charges,Haysden Country Park,B22LC000044008,
http://statistics.data.gov.uk/id/local-authority/29UP,Tonbridge & Malling Borough Council,1/3/2024,0021039073/4,21039073, 538.16,Landscape Services Ltd,00057600,,Litter Collection,Haysden Country Park,B22LC000044061,
http://statistics.data.gov.uk/id/local-authority/29UP,Tonbridge & Malling Borough Council,1/3/2024,0021039073/5,21039073, 1849.86,Landscape Services Ltd,00057600,,Grounds Maintenance Contract,Haysden Country Park,B22LC000050103,
http://statistics.data.gov.uk/id/local-authority/29UP,Tonbridge & Malling Borough Council,1/3/2024,0021039073/6,21039073, 645.29,Landscape Services Ltd,00057600,,Grounds Maintenance Contract,Haysden Country Park,B22LC000050103,
http://statistics.data.gov.uk/id/local-authority/29UP,Tonbridge & Malling Borough Council,1/3/2024,0021039073/7,21039073, 14164.79,Landscape Services Ltd,00057600,,Grounds Maintenance Contract,Open Spaces & Amenity Areas,B22LE000050103,
http://statistics.data.gov.uk/id/local-authority/29UP,Tonbridge & Malling Borough Council,1/3/2024,0021039073/8,21039073, 5103.55,Landscape Services Ltd,00057600,,Grounds Maintenance Contract,Cemetery,B26MP000050103,
http://statistics.data.gov.uk/id/local-authority/29UP,Tonbridge & Malling Borough Council,1/3/2024,0021039073/9,21039073, 256.67,Landscape Services Ltd,00057600,,Grounds Maintenance Contract,Churchyards St Peter & St Paul,B28MX000050103,
http://statistics.data.gov.uk/id/local-authority/29UP,Tonbridge & Malling Borough Council,1/3/2024,0021039074/1,21039074, 200.00,SWS Countryside & Landscape,01567200,,Health & Safety - Trees,Countryside/Woodland Mgt,B22LG000044045,
http://statistics.data.gov.uk/id/local-authority/29UP,Tonbridge & Malling Borough Council,1/3/2024,0022028371/1,22028371, 16301.82,Coldwell & Shawyer Ltd,01740300,231920435,Other Expenses,Disabled Facilities Grant Mand,P03AC000009908,
http://statistics.data.gov.uk/id/local-authority/29UP,Tonbridge & Malling Borough Council,1/3/2024,0022028372/1,22028372, 2353.46,Town & Country Housing Group,01385400,,Other Expenses,Disabled Facilities Grant Mand,P03AC000009908,
http://statistics.data.gov.uk/id/local-authority/29UP,Tonbridge & Malling Borough Council,1/3/2024,0022028373/1,22028373, 400.00,The Age Well Coach,01928200,,Healthy Living Initiatives,Public Health - Healthy Living,H40SYVH0048145,220003431
http://statistics.data.gov.uk/id/local-authority/29UP,Tonbridge & Malling Borough Council,1/3/2024,0022028374/1,22028374, 156.25,Memphis Belle Sandwich Bar,00983600,,Healthy Living Initiatives,Public Health - Healthy Living,H40SYVH0048145,220003432
http://statistics.data.gov.uk/id/local-authority/29UP,Tonbridge & Malling Borough Council,1/3/2024,0022028375/3,22028375, 490.00,Countrystyle Group,00835900,781981681,Collection of Card,Dry Recycling,H34SR000054008,
http://statistics.data.gov.uk/id/local-authority/29UP,Tonbridge & Malling Borough Council,1/3/2024,0022028376/1,22028376, 11.99,KCS Education/CSG Global Education Ltd,01897200,408845925,Stationery,Env Hlth & Hsg Sals&Overheads,D01AVDV0643003,220003430
http://statistics.data.gov.uk/id/local-authority/29UP,Tonbridge & Malling Borough Council,1/3/2024,0022028376/2,22028376, 11.99,KCS Education/CSG Global Education Ltd,01897200,408845925,Stationery,Env Hlth & Hsg Sals&Overheads,D01AVDV0643003,220003430
http://statistics.data.gov.uk/id/local-authority/29UP,Tonbridge & Malling Borough Council,1/3/2024,0022028377/3,22028377, 5467.35,Ward Security LTD,01490000,,Dog Warden,Street Scene,H23SD000044100,
http://statistics.data.gov.uk/id/local-authority/29UP,Tonbridge & Malling Borough Council,1/3/2024,0022028378/10,22028378, 30.43,Urbaser LTD,01718800,,Dog Bin Emptying,Leybourne Lakes Country Park,B22LK000044012,
http://statistics.data.gov.uk/id/local-authority/29UP,Tonbridge & Malling Borough Council,1/3/2024,0022028378/11,22028378, 70.14,Urbaser LTD,01718800,,Maintenance of Grounds,Grounds,D21FF000020402,
http://statistics.data.gov.uk/id/local-authority/29UP,Tonbridge & Malling Borough Council,1/3/2024,0022028378/12,22028378, 214.52,Urbaser LTD,01718800,,Maintenance of Grounds,Parking Off-Street,E10HA000020402,
http://statistics.data.gov.uk/id/local-authority/29UP,Tonbridge & Malling Borough Council,1/3/2024,0022028378/13,22028378, 5458.43,Urbaser LTD,01718800,,Maintenance of Grounds,Parking Off-Street,E10HAE00120402,
http://statistics.data.gov.uk/id/local-authority/29UP,Tonbridge & Malling Borough Council,1/3/2024,0022028378/14,22028378, 587.98,Urbaser LTD,01718800,,Maintenance of Grounds,Parking Off-Street,E10HAE00220402,
http://statistics.data.gov.uk/id/local-authority/29UP,Tonbridge & Malling Borough Council,1/3/2024,0022028378/15,22028378, 367.83,Urbaser LTD,01718800,,Maintenance of Grounds,Parking Off-Street,E10HAE00320402,
http://statistics.data.gov.uk/id/local-authority/29UP,Tonbridge & Malling Borough Council,1/3/2024,0022028378/16,22028378, 1923.76,Urbaser LTD,01718800,,Maintenance of Grounds,Parking Off-Street,E10HAE00420402,
http://statistics.data.gov.uk/id/local-authority/29UP,Tonbridge & Malling Borough Council,1/3/2024,0022028378/17,22028378, 319.68,Urbaser LTD,01718800,,Maintenance of Grounds,Parking Off-Street,E10HAE00520402,
http://statistics.data.gov.uk/id/local-authority/29UP,Tonbridge & Malling Borough Council,1/3/2024,0022028378/18,22028378, 1192.31,Urbaser LTD,01718800,,Maintenance of Grounds,Parking Off-Street,E10HAE00620402,
http://statistics.data.gov.uk/id/local-authority/29UP,Tonbridge & Malling Borough Council,1/3/2024,0022028378/19,22028378, 10.05,Urbaser LTD,01718800,,Maintenance of Grounds,Parking Off-Street,E10HAE00820402,
http://statistics.data.gov.uk/id/local-authority/29UP,Tonbridge & Malling Borough Council,1/3/2024,0022028378/20,22028378, 9.92,Urbaser LTD,01718800,,Maintenance of Grounds,Parking Off-Street,E10HAE00920402,
http://statistics.data.gov.uk/id/local-authority/29UP,Tonbridge & Malling Borough Council,1/3/2024,0022028378/21,22028378, 23.56,Urbaser LTD,01718800,,Maintenance of Grounds,Parking Off-Street,E10HAE01020402,
http://statistics.data.gov.uk/id/local-authority/29UP,Tonbridge & Malling Borough Council,1/3/2024,0022028378/22,22028378, 111.95,Urbaser LTD,01718800,,Maintenance of Grounds,Parking Off-Street,E10HAE01120402,
http://statistics.data.gov.uk/id/local-authority/29UP,Tonbridge & Malling Borough Council,1/3/2024,0022028378/23,22028378, 70.44,Urbaser LTD,01718800,,Maintenance of Grounds,Parking Off-Street,E10HAE01220402,
http://statistics.data.gov.uk/id/local-authority/29UP,Tonbridge & Malling Borough Council,1/3/2024,0022028378/24,22028378, 1335.68,Urbaser LTD,01718800,,Maintenance of Grounds,Parking Off-Street,E10HAE01320402,
http://statistics.data.gov.uk/id/local-authority/29UP,Tonbridge & Malling Borough Council,1/3/2024,0022028378/25,22028378, 101.58,Urbaser LTD,01718800,,Maintenance of Grounds,Parking Off-Street,E10HAE01420402,
http://statistics.data.gov.uk/id/local-authority/29UP,Tonbridge & Malling Borough Council,1/3/2024,0022028378/26,22028378, 313.05,Urbaser LTD,01718800,,Maintenance of Grounds,Parking Off-Street,E10HAE01520402,
http://statistics.data.gov.uk/id/local-authority/29UP,Tonbridge & Malling Borough Council,1/3/2024,0022028378/27,22028378, 336.69,Urbaser LTD,01718800,,Maintenance of Grounds,Parking Off-Street,E10HAE01620402,
http://statistics.data.gov.uk/id/local-authority/29UP,Tonbridge & Malling Borough Council,1/3/2024,0022028378/28,22028378, 993.96,Urbaser LTD,01718800,,Maintenance of Grounds,Parking Off-Street,E10HAE01720402,
http://statistics.data.gov.uk/id/local-authority/29UP,Tonbridge & Malling Borough Council,1/3/2024,0022028378/29,22028378, 285.29,Urbaser LTD,01718800,,Maintenance of Grounds,Parking Off-Street,E10HAE01920402,
http://statistics.data.gov.uk/id/local-authority/29UP,Tonbridge & Malling Borough Council,1/3/2024,0022028378/3,22028378, 451.17,Urbaser LTD,01718800,,Maintenance of Grounds,Sports Grounds,B13ET000020402,
http://statistics.data.gov.uk/id/local-authority/29UP,Tonbridge & Malling Borough Council,1/3/2024,0022028378/30,22028378, 626.69,Urbaser LTD,01718800,,Maintenance of Grounds,Parking Off-Street,E10HAE02020402,
http://statistics.data.gov.uk/id/local-authority/29UP,Tonbridge & Malling Borough Council,1/3/2024,0022028378/31,22028378, 21.76,Urbaser LTD,01718800,,Maintenance of Grounds,Parking Off-Street,E10HAE02120402,
http://statistics.data.gov.uk/id/local-authority/29UP,Tonbridge & Malling Borough Council,1/3/2024,0022028378/32,22028378, 143.26,Urbaser LTD,01718800,,Maintenance of Grounds,Parking Off-Street,E10HAE02220402,
http://statistics.data.gov.uk/id/local-authority/29UP,Tonbridge & Malling Borough Council,1/3/2024,0022028378/33,22028378, 1204.31,Urbaser LTD,01718800,,Maintenance of Grounds,Parking Off-Street,E10HAE02320402,
http://statistics.data.gov.uk/id/local-authority/29UP,Tonbridge & Malling Borough Council,1/3/2024,0022028378/34,22028378, 3.11,Urbaser LTD,01718800,,Maintenance of Grounds,Parking Off-Street,E10HAE02720402,
http://statistics.data.gov.uk/id/local-authority/29UP,Tonbridge & Malling Borough Council,1/3/2024,0022028378/35,22028378, 437.60,Urbaser LTD,01718800,,Maintenance of Grounds,Parking Off-Street,E10HAE02820402,
http://statistics.data.gov.uk/id/local-authority/29UP,Tonbridge & Malling Borough Council,1/3/2024,0022028378/36,22028378, 7.88,Urbaser LTD,01718800,,Maintenance of Grounds,Parking Off-Street,E10HAE02920402,
http://statistics.data.gov.uk/id/local-authority/29UP,Tonbridge & Malling Borough Council,1/3/2024,0022028378/37,22028378, 46.38,Urbaser LTD,01718800,,Maintenance of Grounds,Parking Off-Street,E10HAE03020402,
http://statistics.data.gov.uk/id/local-authority/29UP,Tonbridge & Malling Borough Council,1/3/2024,0022028378/38,22028378, 39.46,Urbaser LTD,01718800,,Maintenance of Grounds,Parking Off-Street,E10HAE03120402,
http://statistics.data.gov.uk/id/local-authority/29UP,Tonbridge & Malling Borough Council,1/3/2024,0022028378/39,22028378, 836.71,Urbaser LTD,01718800,,Maintenance of Grounds,Parking Off-Street,E10HAE04020402,
http://statistics.data.gov.uk/id/local-authority/29UP,Tonbridge & Malling Borough Council,1/3/2024,0022028378/4,22028378, 96.02,Urbaser LTD,01718800,,Maintenance of Grounds,Poult Wood Golf Centre,B21KE000020402,
http://statistics.data.gov.uk/id/local-authority/29UP,Tonbridge & Malling Borough Council,1/3/2024,0022028378/40,22028378, 580.32,Urbaser LTD,01718800,,Maintenance of Grounds,Parking Off-Street,E10HAE04220402,
http://statistics.data.gov.uk/id/local-authority/29UP,Tonbridge & Malling Borough Council,1/3/2024,0022028378/41,22028378, 1665.68,Urbaser LTD,01718800,,Maintenance of Grounds,Parking Off-Street,E10HAE04520402,
http://statistics.data.gov.uk/id/local-authority/29UP,Tonbridge & Malling Borough Council,1/3/2024,0022028378/42,22028378, 107939.06,Urbaser LTD,01718800,,Contract Payments,Refuse Collection,H20SA000054001,
http://statistics.data.gov.uk/id/local-authority/29UP,Tonbridge & Malling Borough Council,1/3/2024,0022028378/43,22028378, 1101.97,Urbaser LTD,01718800,,Responsible Dog Ownership,Street Scene,H23SD000044050,
http://statistics.data.gov.uk/id/local-authority/29UP,Tonbridge & Malling Borough Council,1/3/2024,0022028378/44,22028378, 65916.68,Urbaser LTD,01718800,,Contract Payments,Street Scene,H23SD000054001,
http://statistics.data.gov.uk/id/local-authority/29UP,Tonbridge & Malling Borough Council,1/3/2024,0022028378/45,22028378, 414.98,Urbaser LTD,01718800,,General Maintenance,Dry Recycling,H34SR000020301,
http://statistics.data.gov.uk/id/local-authority/29UP,Tonbridge & Malling Borough Council,1/3/2024,0022028378/46,22028378, 98065.11,Urbaser LTD,01718800,,Contract Payments,Dry Recycling,H34SR000054001,
http://statistics.data.gov.uk/id/local-authority/29UP,Tonbridge & Malling Borough Council,1/3/2024,0022028378/47,22028378, 38371.84,Urbaser LTD,01718800,,Contract Payments,Food Recycling,H34SS000054001,
http://statistics.data.gov.uk/id/local-authority/29UP,Tonbridge & Malling Borough Council,1/3/2024,0022028378/48,22028378, 20834.10,Urbaser LTD,01718800,,Contract Payments,Garden Waste Recycling,H34ST000054001,
http://statistics.data.gov.uk/id/local-authority/29UP,Tonbridge & Malling Borough Council,1/3/2024,0022028378/5,22028378, 39.62,Urbaser LTD,01718800,,Maintenance of Grounds,Haysden Country Park,B22LC000020402,
http://statistics.data.gov.uk/id/local-authority/29UP,Tonbridge & Malling Borough Council,1/3/2024,0022028378/6,22028378, 30.43,Urbaser LTD,01718800,,Dog Bin Emptying,Haysden Country Park,B22LC000044012,
http://statistics.data.gov.uk/id/local-authority/29UP,Tonbridge & Malling Borough Council,1/3/2024,0022028378/7,22028378, 862.61,Urbaser LTD,01718800,,Maintenance of Grounds,Open Spaces & Amenity Areas,B22LE000020402,
http://statistics.data.gov.uk/id/local-authority/29UP,Tonbridge & Malling Borough Council,1/3/2024,0022028378/8,22028378, 16.22,Urbaser LTD,01718800,,Dog Bin Emptying,Open Spaces & Amenity Areas,B22LE000044012,
http://statistics.data.gov.uk/id/local-authority/29UP,Tonbridge & Malling Borough Council,1/3/2024,0022028378/9,22028378, 28.00,Urbaser LTD,01718800,,Maintenance of Grounds,Countryside/Woodland Mgt,B22LG000020402,
http://statistics.data.gov.uk/id/local-authority/29UP,Tonbridge & Malling Borough Council,1/3/2024,0022028380/1,22028380, 6506.48,Adaptec Mobilty Ltd,01785800,339578354,Other Expenses,Disabled Facilities Grant Mand,P03AC000009908,
http://statistics.data.gov.uk/id/local-authority/29UP,Tonbridge & Malling Borough Council,1/3/2024,0022028381/1,22028381, 1015.16,Town & Country Housing Group,01385400,,Other Expenses,Disabled Facilities Grant Mand,P03AC000009908,
http://statistics.data.gov.uk/id/local-authority/29UP,Tonbridge & Malling Borough Council,1/3/2024,0022028382/1,22028382, 204.28,British Gas Services LTD,01260000,,Electricity,Homelessness,C01AAMAUN21002,
http://statistics.data.gov.uk/id/local-authority/29UP,Tonbridge & Malling Borough Council,1/3/2024,0022028383/1,22028383, 449.34,Premier Inn,01217400,,Temporary Accommodation,Homelessness,C01AA000044051,
http://statistics.data.gov.uk/id/local-authority/29UP,Tonbridge & Malling Borough Council,1/3/2024,0022028384/1,22028384, 1091.50,Ward Security LTD,01490000,,Dog Warden,Street Scene,H23SD000044100,
http://statistics.data.gov.uk/id/local-authority/29UP,Tonbridge & Malling Borough Council,1/3/2024,0022028385/1,22028385, 5820.75,YMCA Thames Gateway Group,01887700,,Property Management,Homelessness,C01AATNPR56001,
http://statistics.data.gov.uk/id/local-authority/29UP,Tonbridge & Malling Borough Council,1/3/2024,0022028386/1,22028386, 1847.50,Specialist Hygiene Services,01466100,,Cleaning & Domestic Supplies,Haysden Country Park,B22LC000026001,
http://statistics.data.gov.uk/id/local-authority/29UP,Tonbridge & Malling Borough Council,1/3/2024,0022028386/2,22028386, 3622.80,Specialist Hygiene Services,01466100,,Contract Payments,Public Conveniences,H22SC000054001,
http://statistics.data.gov.uk/id/local-authority/29UP,Tonbridge & Malling Borough Council,1/3/2024,0022028387/1,22028387, 4645.60,Countrystyle Group,00835900,781981681,Plastic Recycling,Dry Recycling,H34SR000054019,
http://statistics.data.gov.uk/id/local-authority/29UP,Tonbridge & Malling Borough Council,1/3/2024,0031019920/1,31019920, 46.65,Ark Trading/Goldstar,01607200,113179830,Uniforms,Parking Off-Street,E10HA000042002,310043108
http://statistics.data.gov.uk/id/local-authority/29UP,Tonbridge & Malling Borough Council,1/3/2024,0031019920/2,31019920, 22.24,Ark Trading/Goldstar,01607200,113179830,Uniforms,Parking Off-Street,E10HA000042002,310043108
http://statistics.data.gov.uk/id/local-authority/29UP,Tonbridge & Malling Borough Council,1/3/2024,0031019920/3,31019920, 10.76,Ark Trading/Goldstar,01607200,113179830,Uniforms,Parking Off-Street,E10HA000042002,310043108
http://statistics.data.gov.uk/id/local-authority/29UP,Tonbridge & Malling Borough Council,1/3/2024,0031019920/4,31019920, 7.17,Ark Trading/Goldstar,01607200,113179830,Uniforms,Parking On-Street,E10HD000042002,310043108
http://statistics.data.gov.uk/id/local-authority/29UP,Tonbridge & Malling Borough Council,1/3/2024,0031019920/5,31019920, 14.82,Ark Trading/Goldstar,01607200,113179830,Uniforms,Parking On-Street,E10HD000042002,310043108
http://statistics.data.gov.uk/id/local-authority/29UP,Tonbridge & Malling Borough Council,1/3/2024,0031019920/6,31019920, 31.10,Ark Trading/Goldstar,01607200,113179830,Uniforms,Parking On-Street,E10HD000042002,310043108
http://statistics.data.gov.uk/id/local-authority/29UP,Tonbridge & Malling Borough Council,1/3/2024,0031019921/1,31019921, 18.56,Ark Trading/Goldstar,01607200,113179830,Uniforms,Parking Off-Street,E10HA000042002,310043096
http://statistics.data.gov.uk/id/local-authority/29UP,Tonbridge & Malling Borough Council,1/3/2024,0031019921/2,31019921, 50.97,Ark Trading/Goldstar,01607200,113179830,Uniforms,Parking Off-Street,E10HA000042002,310043096
http://statistics.data.gov.uk/id/local-authority/29UP,Tonbridge & Malling Borough Council,1/3/2024,0031019921/3,31019921, 33.98,Ark Trading/Goldstar,01607200,113179830,Uniforms,Parking On-Street,E10HD000042002,310043096
http://statistics.data.gov.uk/id/local-authority/29UP,Tonbridge & Malling Borough Council,1/3/2024,0031019921/4,31019921, 12.38,Ark Trading/Goldstar,01607200,113179830,Uniforms,Parking On-Street,E10HD000042002,310043096
http://statistics.data.gov.uk/id/local-authority/29UP,Tonbridge & Malling Borough Council,1/3/2024,0031019922/1,31019922, 44.34,Ark Trading/Goldstar,01607200,113179830,Uniforms,Parking Off-Street,E10HA000042002,310043116
http://statistics.data.gov.uk/id/local-authority/29UP,Tonbridge & Malling Borough Council,1/3/2024,0031019922/2,31019922, 44.34,Ark Trading/Goldstar,01607200,113179830,Uniforms,Parking Off-Street,E10HA000042002,310043116
http://statistics.data.gov.uk/id/local-authority/29UP,Tonbridge & Malling Borough Council,1/3/2024,0031019922/3,31019922, 7.70,Ark Trading/Goldstar,01607200,113179830,Uniforms,Parking Off-Street,E10HA000042002,310043116
http://statistics.data.gov.uk/id/local-authority/29UP,Tonbridge & Malling Borough Council,1/3/2024,0031019922/4,31019922, 11.12,Ark Trading/Goldstar,01607200,113179830,Uniforms,Parking Off-Street,E10HA000042002,310043116
http://statistics.data.gov.uk/id/local-authority/29UP,Tonbridge & Malling Borough Council,1/3/2024,0031019922/5,31019922, 7.41,Ark Trading/Goldstar,01607200,113179830,Uniforms,Parking On-Street,E10HD000042002,310043116
http://statistics.data.gov.uk/id/local-authority/29UP,Tonbridge & Malling Borough Council,1/3/2024,0031019922/6,31019922, 5.13,Ark Trading/Goldstar,01607200,113179830,Uniforms,Parking On-Street,E10HD000042002,310043116
http://statistics.data.gov.uk/id/local-authority/29UP,Tonbridge & Malling Borough Council,1/3/2024,0031019922/7,31019922, 29.56,Ark Trading/Goldstar,01607200,113179830,Uniforms,Parking On-Street,E10HD000042002,310043116
http://statistics.data.gov.uk/id/local-authority/29UP,Tonbridge & Malling Borough Council,1/3/2024,0031019922/8,31019922, 29.56,Ark Trading/Goldstar,01607200,113179830,Uniforms,Parking On-Street,E10HD000042002,310043116
http://statistics.data.gov.uk/id/local-authority/29UP,Tonbridge & Malling Borough Council,1/3/2024,0031019923/1,31019923, 21.44,Ark Trading/Goldstar,01607200,113179830,Uniforms,Parking Off-Street,E10HA000042002,310043165
http://statistics.data.gov.uk/id/local-authority/29UP,Tonbridge & Malling Borough Council,1/3/2024,0031019923/2,31019923, 64.20,Ark Trading/Goldstar,01607200,113179830,Uniforms,Parking Off-Street,E10HA000042002,310043165
http://statistics.data.gov.uk/id/local-authority/29UP,Tonbridge & Malling Borough Council,1/3/2024,0031019923/3,31019923, 21.71,Ark Trading/Goldstar,01607200,113179830,Uniforms,Parking Off-Street,E10HA000042002,310043165
http://statistics.data.gov.uk/id/local-authority/29UP,Tonbridge & Malling Borough Council,1/3/2024,0031019923/4,31019923, 14.21,Ark Trading/Goldstar,01607200,113179830,Uniforms,Parking Off-Street,E10HA000042002,310043165
http://statistics.data.gov.uk/id/local-authority/29UP,Tonbridge & Malling Borough Council,1/3/2024,0031019923/5,31019923, 42.80,Ark Trading/Goldstar,01607200,113179830,Uniforms,Parking On-Street,E10HD000042002,310043165
http://statistics.data.gov.uk/id/local-authority/29UP,Tonbridge & Malling Borough Council,1/3/2024,0031019923/6,31019923, 21.31,Ark Trading/Goldstar,01607200,113179830,Uniforms,Parking On-Street,E10HD000042002,310043165
http://statistics.data.gov.uk/id/local-authority/29UP,Tonbridge & Malling Borough Council,1/3/2024,0031019923/7,31019923, 14.47,Ark Trading/Goldstar,01607200,113179830,Uniforms,Parking On-Street,E10HD000042002,310043165
http://statistics.data.gov.uk/id/local-authority/29UP,Tonbridge & Malling Borough Council,1/3/2024,0031019923/8,31019923, 14.29,Ark Trading/Goldstar,01607200,113179830,Uniforms,Parking On-Street,E10HD000042002,310043165
http://statistics.data.gov.uk/id/local-authority/29UP,Tonbridge & Malling Borough Council,1/3/2024,0031019924/1,31019924, 426.60,Landscape Services Ltd,00057600,,Maintenance of Grounds,Parking Off-Street,E10HA000020402,310043181
http://statistics.data.gov.uk/id/local-authority/29UP,Tonbridge & Malling Borough Council,1/3/2024,0031019925/3,31019925, 460.55,CDER Group,01773300,,Adjudication & Enforcement Ser,Parking Off-Street,E10HA000044230,
http://statistics.data.gov.uk/id/local-authority/29UP,Tonbridge & Malling Borough Council,1/3/2024,0032010641/3,32010641, 2200.00,Betteridge & Milsom Ltd.,01441000,,Professional Fees,Development Management,A01AB000044001,
http://statistics.data.gov.uk/id/local-authority/29UP,Tonbridge & Malling Borough Council,1/3/2024,0032010642/3,32010642, 1198.50,Carrington West Limited,01844500,,Temporary Staff,Planning Sals&Overheads,D01AJDJ0111300,
http://statistics.data.gov.uk/id/local-authority/29UP,Tonbridge & Malling Borough Council,1/3/2024,0032010643/3,32010643, 1340.90,Carrington West Limited,01844500,,Temporary Staff,Planning Sals&Overheads,D01AJDJ0111300,
http://statistics.data.gov.uk/id/local-authority/29UP,Tonbridge & Malling Borough Council,1/3/2024,0032010644/3,32010644, 1340.90,Carrington West Limited,01844500,,Temporary Staff,Planning Sals&Overheads,D01AJDJ0111300,
http://statistics.data.gov.uk/id/local-authority/29UP,Tonbridge & Malling Borough Council,1/3/2024,0032010645/3,32010645, 1332.56,Carrington West Limited,01844500,,Temporary Staff,Planning Sals&Overheads,D01AJDJ0111300,
http://statistics.data.gov.uk/id/local-authority/29UP,Tonbridge & Malling Borough Council,1/3/2024,0032010647/1,32010647, 200.00,P K Saunders Electrical Ltd,01900800,,Competent Persons Schemes,Building Control,A01AD000048116,
http://statistics.data.gov.uk/id/local-authority/29UP,Tonbridge & Malling Borough Council,1/3/2024,0032010649/1,32010649, 2250.00,G2 Recruitment Solutions,01786000,,Temporary Staff,Planning Sals&Overheads,D01AJDJ0011300,
http://statistics.data.gov.uk/id/local-authority/29UP,Tonbridge & Malling Borough Council,1/3/2024,0032010650/1,32010650, 2244.50,Hays Specialist Recruitment Limited,01879200,773695871,Temporary Staff,Planning Sals&Overheads,D01AJDJ0111300,
http://statistics.data.gov.uk/id/local-authority/29UP,Tonbridge & Malling Borough Council,1/3/2024,0032010651/1,32010651, 1617.00,The Oyster Partnership,01196400,,Temporary Staff,Planning Sals&Overheads,D01AJDJ0111300,
http://statistics.data.gov.uk/id/local-authority/29UP,Tonbridge & Malling Borough Council,1/3/2024,0032010652/1,32010652, 2052.00,Vivid Resourcing,01773700,,Temporary Staff,Planning Sals&Overheads,D01AJDJ0111300,
http://statistics.data.gov.uk/id/local-authority/29UP,Tonbridge & Malling Borough Council,1/3/2024,0041036053/1,41036053, 9.99,Amazon EU SARL,01738400,,Stationery,Finance Sals&Overheads,D01AF000043003,410032513
http://statistics.data.gov.uk/id/local-authority/29UP,Tonbridge & Malling Borough Council,1/3/2024,0041036169/1,41036169, 26.00,Greenhalgh Kerr,01590200,,Bailiffs Commission,Local Revenue & NNDR Collect,D41QA000044075,
http://statistics.data.gov.uk/id/local-authority/29UP,Tonbridge & Malling Borough Council,1/3/2024,0041036170/1,41036170, 1252.02,Morgan Hunt UK Ltd,01086900,,Temporary Staff,Finance Sals&Overheads,D01AFDF1111300,
http://statistics.data.gov.uk/id/local-authority/29UP,Tonbridge & Malling Borough Council,1/3/2024,0041036171/1,41036171, 20.00,Computershare Voucher Services,01212600,,Childcare Scheme,Finance Sals&Overheads,D01AFDF0911136,
http://statistics.data.gov.uk/id/local-authority/29UP,Tonbridge & Malling Borough Council,1/3/2024,0041036171/2,41036171, 1.40,Computershare Voucher Services,01212600,,National Insurance,Finance Sals&Overheads,D01AFDF0911191,
http://statistics.data.gov.uk/id/local-authority/29UP,Tonbridge & Malling Borough Council,1/3/2024,0041036171/3,41036171, 20.00,Computershare Voucher Services,01212600,,Childcare Scheme,Env Hlth & Hsg Sals&Overheads,D01AVDV0211136,
http://statistics.data.gov.uk/id/local-authority/29UP,Tonbridge & Malling Borough Council,1/3/2024,0041036171/4,41036171, 1.40,Computershare Voucher Services,01212600,,National Insurance,Env Hlth & Hsg Sals&Overheads,D01AVDV0211191,
http://statistics.data.gov.uk/id/local-authority/29UP,Tonbridge & Malling Borough Council,1/3/2024,0051008885/7,51008885, 32.00,Maidstone & Tun Wells NHS Trust,00067100,,Occuptional Health Medicals,Health Care,D10DBDB0313311,
http://statistics.data.gov.uk/id/local-authority/29UP,Tonbridge & Malling Borough Council,1/3/2024,0051008885/8,51008885, 32.00,Maidstone & Tun Wells NHS Trust,00067100,,Occuptional Health Medicals,Health Care,D10DBDJ0113311,
http://statistics.data.gov.uk/id/local-authority/29UP,Tonbridge & Malling Borough Council,1/3/2024,0051008886/1,51008886, 265.00,Maidstone & Tun Wells NHS Trust,00067100,,Occuptional Health Medicals,Health Care,D10DBDG0013311,
http://statistics.data.gov.uk/id/local-authority/29UP,Tonbridge & Malling Borough Council,1/3/2024,0051008887/1,51008887, 18.00,Commercial Services Kent Ltd,01655800,,Criminal Records Bureau Checks,Recruitment Expenses,D10DA000013180,510010666
http://statistics.data.gov.uk/id/local-authority/29UP,Tonbridge & Malling Borough Council,1/3/2024,0051008887/2,51008887, 7.50,Commercial Services Kent Ltd,01655800,,Criminal Records Bureau Checks,Recruitment Expenses,D10DA000013180,510010666
http://statistics.data.gov.uk/id/local-authority/29UP,Tonbridge & Malling Borough Council,1/5/2024,0041036188/1,41036188, 3499.51,National Westminster Bank Plc,00069400,,Bank Charges,Banking Arrangements,D43QK000044222,
http://statistics.data.gov.uk/id/local-authority/29UP,Tonbridge & Malling Borough Council,1/10/2024,0011047457/1,11047457, 606.00,Castleview Enterprises,00017100,702460964,Cleaning & Domestic Supplies,Cleaning & Security,D21FD000026001,110070589
http://statistics.data.gov.uk/id/local-authority/29UP,Tonbridge & Malling Borough Council,1/10/2024,0011047458/1,11047458, 750.00,BML Building Services Ltd,01505000,124905523,BRREP Response - General,Angel Centre,M15HAP50001997,110070679
http://statistics.data.gov.uk/id/local-authority/29UP,Tonbridge & Malling Borough Council,1/10/2024,0011047459/1,11047459, 2343.00,DORMA UK Ltd,00413500,549361128,BRREP Servicing-entrance doors,Angel Centre,M15HAP20001927,110070653
http://statistics.data.gov.uk/id/local-authority/29UP,Tonbridge & Malling Borough Council,1/10/2024,0011047460/1,11047460, 4265.00,Baker Developments South East Ltd,01878900,446348183,BRREP General Maintenance,Larkfield Leisure Centre,M15HDP10001900,110070663
http://statistics.data.gov.uk/id/local-authority/29UP,Tonbridge & Malling Borough Council,1/10/2024,0011047461/1,11047461, 300.00,BML Building Services Ltd,01505000,124905523,BRREP Drain and gully cleaning,PC - General,M15JAP20001975,
http://statistics.data.gov.uk/id/local-authority/29UP,Tonbridge & Malling Borough Council,1/10/2024,0011047462/1,11047462, 175.00,BML Building Services Ltd,01505000,124905523,BRREP Resp - Vandal / Break-In,Angel Centre,M15HAP50001998,
http://statistics.data.gov.uk/id/local-authority/29UP,Tonbridge & Malling Borough Council,1/10/2024,0011047463/1,11047463, 50.00,BML Building Services Ltd,01505000,124905523,BRREP Resp - Vandal / Break-In,PC - General,M15JAP50001998,
http://statistics.data.gov.uk/id/local-authority/29UP,Tonbridge & Malling Borough Council,1/10/2024,0011047464/1,11047464, 300.00,BML Building Services Ltd,01505000,124905523,BRREP Serv Internal Lighting,PC - General,M15JAP20001957,
http://statistics.data.gov.uk/id/local-authority/29UP,Tonbridge & Malling Borough Council,1/10/2024,0011047465/1,11047465, 1448.75,Richard Lingard,01267300,,Legal Fees,Legal Sals&Overheads,D01ARDR0044002,
http://statistics.data.gov.uk/id/local-authority/29UP,Tonbridge & Malling Borough Council,1/10/2024,0011047466/1,11047466, 100.00,BML Building Services Ltd,01505000,124905523,BRREP Response - General,PC - General,M15JAP50001997,
http://statistics.data.gov.uk/id/local-authority/29UP,Tonbridge & Malling Borough Council,1/10/2024,0011047467/1,11047467, 250.00,BML Building Services Ltd,01505000,124905523,BRREP Hard paving surface rep,Larkfield Leisure Centre,M15HDP20001946,
http://statistics.data.gov.uk/id/local-authority/29UP,Tonbridge & Malling Borough Council,1/10/2024,0011047468/1,11047468, 1217.80,Sellick Partnership Group Limited,01336800,864288095,Temporary Staff,Legal Sals&Overheads,D01ARDR0011300,
http://statistics.data.gov.uk/id/local-authority/29UP,Tonbridge & Malling Borough Council,1/10/2024,0011047469/1,11047469, 782.86,Sellick Partnership Group Limited,01336800,864288095,Temporary Staff,Legal Sals&Overheads,D01ARDR0011300,
http://statistics.data.gov.uk/id/local-authority/29UP,Tonbridge & Malling Borough Council,1/10/2024,0011047470/1,11047470, 28.51,Royal Mail,00086200,243170002,Postages - Business Reply,Electoral Registration,D31MF000045003,
http://statistics.data.gov.uk/id/local-authority/29UP,Tonbridge & Malling Borough Council,1/10/2024,0011047472/1,11047472, 163.36,Royal Mail,00086200,243170002,Postages - Business Reply,Electoral Registration,D31MF000045003,
http://statistics.data.gov.uk/id/local-authority/29UP,Tonbridge & Malling Borough Council,1/10/2024,0011047473/1,11047473, 2230.00,Thomson Snell & Passmore,00101700,210327030,Legal Fees,Legal Sals&Overheads,D01ARDR0044002,
http://statistics.data.gov.uk/id/local-authority/29UP,Tonbridge & Malling Borough Council,1/10/2024,0011047474/1,11047474, 3661.34,Borough Green Parish Council,00011000,,Capital Grants (RECS),Rural England Prosperity Fund,P06F0F04047771,
http://statistics.data.gov.uk/id/local-authority/29UP,Tonbridge & Malling Borough Council,1/10/2024,0011047475/1,11047475, 2907.90,TMS Protection Ltd,01744300,,Office Security,Tonbridge Gateway,D23TG000044047,
http://statistics.data.gov.uk/id/local-authority/29UP,Tonbridge & Malling Borough Council,1/10/2024,0011047475/2,11047475, 575.10,TMS Protection Ltd,01744300,,Office Security,Tonbridge Gateway,D23TG000044047,
http://statistics.data.gov.uk/id/local-authority/29UP,Tonbridge & Malling Borough Council,1/10/2024,0011047476/1,11047476, 374.36,Canon (UK) Limited,00298700,,Purchases - Paper,Printing,D22GA000040102,
http://statistics.data.gov.uk/id/local-authority/29UP,Tonbridge & Malling Borough Council,1/10/2024,0011047477/1,11047477, 2000.84,Royal Mail,00086200,243170002,Purchases,Mailsort Stock Account,K37BR000001002,
http://statistics.data.gov.uk/id/local-authority/29UP,Tonbridge & Malling Borough Council,1/10/2024,0011047477/2,11047477, 4.20,Royal Mail,00086200,243170002,Purchases,Mailsort Stock Account,K37BR000001002,
http://statistics.data.gov.uk/id/local-authority/29UP,Tonbridge & Malling Borough Council,1/10/2024,0011047477/3,11047477, 2.99,Royal Mail,00086200,243170002,Purchases,Mailsort Stock Account,K37BR000001002,
http://statistics.data.gov.uk/id/local-authority/29UP,Tonbridge & Malling Borough Council,1/10/2024,0011047478/1,11047478, 51.80,Royal Mail,00086200,243170002,Postages - Business Reply,Electoral Registration,D31MF000045003,
http://statistics.data.gov.uk/id/local-authority/29UP,Tonbridge & Malling Borough Council,1/10/2024,0011047478/2,11047478, 7.00,Royal Mail,00086200,243170002,Purchases,Business Reply Stock Account,K14AT000001002,
http://statistics.data.gov.uk/id/local-authority/29UP,Tonbridge & Malling Borough Council,1/10/2024,0011047479/1,11047479, 1103.72,The Oyster Partnership,01196400,,Temporary Staff,Admin & Prop Sals&Overheads,D01AADA1111300,
http://statistics.data.gov.uk/id/local-authority/29UP,Tonbridge & Malling Borough Council,1/10/2024,0011047480/1,11047480, 110.00,KCC Re Chairman�s Charity,01928400,,Hospitality,Mayoral & Other Member Support,D29LX000048003,
http://statistics.data.gov.uk/id/local-authority/29UP,Tonbridge & Malling Borough Council,1/10/2024,0011047481/3,11047481, 843.75,G2 Recruitment Solutions,01786000,,Temporary Staff,Legal Sals&Overheads,D01ARDR0311300,
http://statistics.data.gov.uk/id/local-authority/29UP,Tonbridge & Malling Borough Council,1/10/2024,0011047482/3,11047482, 1588.17,Royal Mail,00086200,243170002,Purchases,Mailsort Stock Account,K37BR000001002,
http://statistics.data.gov.uk/id/local-authority/29UP,Tonbridge & Malling Borough Council,1/10/2024,0011047482/4,11047482, 2.10,Royal Mail,00086200,243170002,Purchases,Mailsort Stock Account,K37BR000001002,
http://statistics.data.gov.uk/id/local-authority/29UP,Tonbridge & Malling Borough Council,1/10/2024,0011047482/5,11047482, 2.67,Royal Mail,00086200,243170002,Purchases,Mailsort Stock Account,K37BR000001002,
http://statistics.data.gov.uk/id/local-authority/29UP,Tonbridge & Malling Borough Council,1/10/2024,0011047483/3,11047483, 66.90,Biffa Waste Services Ltd,01284500,,Trade Refuse Charges,Cleaning & Security,D21FD000044008,
http://statistics.data.gov.uk/id/local-authority/29UP,Tonbridge & Malling Borough Council,1/10/2024,0011047484/3,11047484, 48.72,Biffa Waste Services Ltd,01284500,,Trade Refuse Charges,Cleaning & Security,D21FD000044008,
http://statistics.data.gov.uk/id/local-authority/29UP,Tonbridge & Malling Borough Council,1/10/2024,0011047485/3,11047485, 48.72,Biffa Waste Services Ltd,01284500,,Trade Refuse Charges,Cleaning & Security,D21FD000044008,
http://statistics.data.gov.uk/id/local-authority/29UP,Tonbridge & Malling Borough Council,1/10/2024,0011047486/3,11047486, 140.56,Biffa Waste Services Ltd,01284500,,Trade Refuse Charges,Cleaning & Security,D21FD000044008,
http://statistics.data.gov.uk/id/local-authority/29UP,Tonbridge & Malling Borough Council,1/10/2024,0011047487/3,11047487, 47.97,Biffa Waste Services Ltd,01284500,,Trade Refuse Charges,Cleaning & Security,D21FD000044008,
http://statistics.data.gov.uk/id/local-authority/29UP,Tonbridge & Malling Borough Council,1/10/2024,0011047488/3,11047488, 193.27,Biffa Waste Services Ltd,01284500,,Trade Refuse Charges,Cleaning & Security,D21FD000044008,
http://statistics.data.gov.uk/id/local-authority/29UP,Tonbridge & Malling Borough Council,1/10/2024,0011047489/3,11047489, 292.00,Thomson Snell & Passmore,00101700,210327030,Legal Fees,Legal Sals&Overheads,D01ARDR0044002,
http://statistics.data.gov.uk/id/local-authority/29UP,Tonbridge & Malling Borough Council,1/10/2024,0011047490/3,11047490, 352.00,BML Building Services Ltd,01505000,124905523,BRREP Response - General,Angel Centre,M15HAP50001997,
http://statistics.data.gov.uk/id/local-authority/29UP,Tonbridge & Malling Borough Council,1/10/2024,0011047491/3,11047491, 275.00,BML Building Services Ltd,01505000,124905523,BRREP Response - General,Angel Centre,M15HAP50001997,
http://statistics.data.gov.uk/id/local-authority/29UP,Tonbridge & Malling Borough Council,1/10/2024,0011047492/3,11047492, 27.80,Oasis Group  - Box-It South East,00966800,931579211,Purchases,Electoral Registration,D31MF000040101,
http://statistics.data.gov.uk/id/local-authority/29UP,Tonbridge & Malling Borough Council,1/10/2024,0011047493/3,11047493, 240.00,G C Industrial Heating Services,00578100,292124905,BRREP Response - General,Tonbridge Farm Pavillion,M15HGP50001997,
http://statistics.data.gov.uk/id/local-authority/29UP,Tonbridge & Malling Borough Council,1/10/2024,0011047494/3,11047494, 80.00,Guardian Security & Fire Ltd,01899300,,BRREP Servicing - FireAlarmSys,Larkfield Leisure Centre,M15HDP20001937,
http://statistics.data.gov.uk/id/local-authority/29UP,Tonbridge & Malling Borough Council,1/10/2024,0011047495/3,11047495, 280.00,G C Industrial Heating Services,00578100,292124905,BRREP Response - General,Gibson Building East,M15KGP50001997,
http://statistics.data.gov.uk/id/local-authority/29UP,Tonbridge & Malling Borough Council,1/10/2024,0011047496/3,11047496, 45.00,Spy Alarms Ltd,01608800,,BRREP Servicing-IntruderAlarm,Gibson Building East,M15KGP20001939,
http://statistics.data.gov.uk/id/local-authority/29UP,Tonbridge & Malling Borough Council,1/10/2024,0011047497/3,11047497, 180.00,Baker Developments South East Ltd,01878900,446348183,BRREP Window/door repairs,Larkfield Leisure Centre,M15HDP20001919,
http://statistics.data.gov.uk/id/local-authority/29UP,Tonbridge & Malling Borough Council,1/10/2024,0011047498/3,11047498, 265.00,Baker Developments South East Ltd,01878900,446348183,BRREP Window/door repairs,Larkfield Leisure Centre,M15HDP20001919,
http://statistics.data.gov.uk/id/local-authority/29UP,Tonbridge & Malling Borough Council,1/10/2024,0011047499/3,11047499, 861.44,The Oyster Partnership,01196400,,Temporary Staff,Admin & Prop Sals&Overheads,D01AADA1111300,
http://statistics.data.gov.uk/id/local-authority/29UP,Tonbridge & Malling Borough Council,1/10/2024,0011047500/3,11047500, 800.00,The Oyster Partnership,01196400,,Temporary Staff,Admin & Prop Sals&Overheads,D01AADA1111300,
http://statistics.data.gov.uk/id/local-authority/29UP,Tonbridge & Malling Borough Council,1/10/2024,0011047501/3,11047501, 1200.00,The Oyster Partnership,01196400,,Temporary Staff,Admin & Prop Sals&Overheads,D01AADA1111300,
http://statistics.data.gov.uk/id/local-authority/29UP,Tonbridge & Malling Borough Council,1/10/2024,0011047502/3,11047502, 1912.84,Royal Mail,00086200,243170002,Purchases,Mailsort Stock Account,K37BR000001002,
http://statistics.data.gov.uk/id/local-authority/29UP,Tonbridge & Malling Borough Council,1/10/2024,0011047502/4,11047502, 6.30,Royal Mail,00086200,243170002,Purchases,Mailsort Stock Account,K37BR000001002,
http://statistics.data.gov.uk/id/local-authority/29UP,Tonbridge & Malling Borough Council,1/10/2024,0011047502/5,11047502, 11.48,Royal Mail,00086200,243170002,Purchases,Mailsort Stock Account,K37BR000001002,
http://statistics.data.gov.uk/id/local-authority/29UP,Tonbridge & Malling Borough Council,1/10/2024,0011047503/3,11047503, 45.50,Royal Mail,00086200,243170002,Postages - Business Reply,Electoral Registration,D31MF000045003,
http://statistics.data.gov.uk/id/local-authority/29UP,Tonbridge & Malling Borough Council,1/10/2024,0011047503/4,11047503, 23.10,Royal Mail,00086200,243170002,Purchases,Business Reply Stock Account,K14AT000001002,
http://statistics.data.gov.uk/id/local-authority/29UP,Tonbridge & Malling Borough Council,1/10/2024,0011047505/1,11047505, 304.00,Disclosure & Barring Service,00865900,,Professional Fees,Licences - Fee Paying,H27SH000044001,
http://statistics.data.gov.uk/id/local-authority/29UP,Tonbridge & Malling Borough Council,1/10/2024,0011047506/3,11047506, 896.13,White Light Ltd,00872700,,Purchases - Exhibits,Tonbridge Castle Gatehouse,B40TG000040106,
http://statistics.data.gov.uk/id/local-authority/29UP,Tonbridge & Malling Borough Council,1/10/2024,0011047507/1,11047507, 100.00,BML Building Services Ltd,01505000,124905523,BRREP Response - General,Gibson Building West,M15KBP50001997,110070652
http://statistics.data.gov.uk/id/local-authority/29UP,Tonbridge & Malling Borough Council,1/10/2024,0011047508/1,11047508, 500.00,BML Building Services Ltd,01505000,124905523,BRREP Response - General,Gibson Building West,M15KBP50001997,110070640
http://statistics.data.gov.uk/id/local-authority/29UP,Tonbridge & Malling Borough Council,1/10/2024,0011047509/1,11047509, 75.00,BML Building Services Ltd,01505000,124905523,BRREP Response - General,Gibson Building West,M15KBP50001997,110070666
http://statistics.data.gov.uk/id/local-authority/29UP,Tonbridge & Malling Borough Council,1/10/2024,0011047510/1,11047510, 2682.00,BML Building Services Ltd,01505000,124905523,BRREP Response - General,Larkfield Leisure Centre,M15HDP50001997,110070539
http://statistics.data.gov.uk/id/local-authority/29UP,Tonbridge & Malling Borough Council,1/10/2024,0011047511/1,11047511, 235.00,Lemon Drainage Services LTD,01761600,,BRREP Servicing - Pumping Stn,Pleasure Grounds & Open Spaces,M15HHP20001931,110070246
http://statistics.data.gov.uk/id/local-authority/29UP,Tonbridge & Malling Borough Council,1/10/2024,0011047512/1,11047512, 174.00,Peoplesafe -  Skyguard Ltd,01779900,,Purchases,Ton Castle Council Chamber,D21FC000040101,110070678
http://statistics.data.gov.uk/id/local-authority/29UP,Tonbridge & Malling Borough Council,1/10/2024,0011047512/2,11047512, 174.00,Peoplesafe -  Skyguard Ltd,01779900,,Community Safety Initiatives,Community Safety,D30MA000048134,110070678
http://statistics.data.gov.uk/id/local-authority/29UP,Tonbridge & Malling Borough Council,1/10/2024,0011047512/3,11047512, 522.00,Peoplesafe -  Skyguard Ltd,01779900,,Purchases,Electoral Registration,D31MF000040101,110070678
http://statistics.data.gov.uk/id/local-authority/29UP,Tonbridge & Malling Borough Council,1/10/2024,0011047512/4,11047512, 522.00,Peoplesafe -  Skyguard Ltd,01779900,,Purchases,Licences - Fee Paying,H27SH000040101,110070678
http://statistics.data.gov.uk/id/local-authority/29UP,Tonbridge & Malling Borough Council,1/10/2024,0011047513/1,11047513, 140.00,East Sussex Fire Ltd,01843100,,Repairs & Mtce to Buildings,Homelessness,C01AATNHS20101,110070238
http://statistics.data.gov.uk/id/local-authority/29UP,Tonbridge & Malling Borough Council,1/10/2024,0011047514/1,11047514, 892.00,BML Building Services Ltd,01505000,124905523,BRREP General Maintenance,PC - General,M15JAP10001900,110070625
http://statistics.data.gov.uk/id/local-authority/29UP,Tonbridge & Malling Borough Council,1/10/2024,0011047515/1,11047515, 752.00,BML Building Services Ltd,01505000,124905523,BRREP Response - General,Angel Centre,M15HAP50001997,110070667
http://statistics.data.gov.uk/id/local-authority/29UP,Tonbridge & Malling Borough Council,1/10/2024,0011047516/1,11047516, 90.00,Lemon Drainage Services LTD,01761600,,Sewerage Charges,Haysden Country Park,B22LC000024003,110070246
http://statistics.data.gov.uk/id/local-authority/29UP,Tonbridge & Malling Borough Council,1/10/2024,0011047517/1,11047517, 12467.58,Wallgate Ltd,00850000,,BRREP General Maintenance,PC - General,M15JAP10001900,110070627
http://statistics.data.gov.uk/id/local-authority/29UP,Tonbridge & Malling Borough Council,1/10/2024,0011047518/1,11047518, 3952.00,TMD Services,01719600,,BRREP Slipstream flume ovrhaul,Larkfield Leisure Centre,M15HDP20001954,110070645
http://statistics.data.gov.uk/id/local-authority/29UP,Tonbridge & Malling Borough Council,1/10/2024,0011047519/1,11047519, 4800.00,TMD Services,01719600,,BRREP Slipstream flume ovrhaul,Larkfield Leisure Centre,M15HDP20001954,110070642
http://statistics.data.gov.uk/id/local-authority/29UP,Tonbridge & Malling Borough Council,1/10/2024,0011047520/1,11047520, 3720.00,G C Industrial Heating Services,00578100,292124905,BRREP Legionella Certification,Larkfield Leisure Centre,M15HDP30001995,110070614
http://statistics.data.gov.uk/id/local-authority/29UP,Tonbridge & Malling Borough Council,1/10/2024,0011047521/1,11047521, 630.00,Baker Developments South East Ltd,01878900,446348183,BRREP Hard paving surface rep,Tonbridge Swimming Pool,M15HBP20001946,110070639
http://statistics.data.gov.uk/id/local-authority/29UP,Tonbridge & Malling Borough Council,1/10/2024,0011047522/1,11047522, 62.00,Kohler Mira Limited,00902600,779588443,BRREP Servicing - pool plant,Tonbridge Swimming Pool,M15HBP20001910,110070646
http://statistics.data.gov.uk/id/local-authority/29UP,Tonbridge & Malling Borough Council,1/10/2024,0011047523/1,11047523, 2340.00,G C Industrial Heating Services,00578100,292124905,BRREP Servicing - Heating Syst,Leis Man Poult Wood Golf Centr,M15HEP20001934,110070680
http://statistics.data.gov.uk/id/local-authority/29UP,Tonbridge & Malling Borough Council,1/10/2024,0011047524/1,11047524, 4342.75,St Giles's Farmers Market,01928800,,Capital Grants (RECS),Rural England Prosperity Fund,P06F0F04047771,
http://statistics.data.gov.uk/id/local-authority/29UP,Tonbridge & Malling Borough Council,1/10/2024,0011047525/1,11047525, 758.00,Thomson Snell & Passmore,00101700,210327030,Legal Fees,Legal Sals&Overheads,D01ARDR0044002,
http://statistics.data.gov.uk/id/local-authority/29UP,Tonbridge & Malling Borough Council,1/10/2024,0011047526/1,11047526, 3036.00,Thomson Snell & Passmore,00101700,210327030,Legal Fees,Legal Sals&Overheads,D01ARDR0044002,
http://statistics.data.gov.uk/id/local-authority/29UP,Tonbridge & Malling Borough Council,1/10/2024,0012008925/10,12008925, 9.00,O2 UK Ltd,01268000,,Mobile Telephones,Admin & Prop Sals&Overheads,D01AADA1245013,
http://statistics.data.gov.uk/id/local-authority/29UP,Tonbridge & Malling Borough Council,1/10/2024,0012008925/11,12008925, 3.00,O2 UK Ltd,01268000,,Mobile Telephones,Chief Exec Sals&Overheads,D01ACDC0045013,
http://statistics.data.gov.uk/id/local-authority/29UP,Tonbridge & Malling Borough Council,1/10/2024,0012008925/12,12008925, 3.00,O2 UK Ltd,01268000,,Mobile Telephones,Chief Exec Sals&Overheads,D01ACDC0145013,
http://statistics.data.gov.uk/id/local-authority/29UP,Tonbridge & Malling Borough Council,1/10/2024,0012008925/13,12008925, 3.00,O2 UK Ltd,01268000,,Mobile Telephones,Chief Exec Sals&Overheads,D01ACDC0245013,
http://statistics.data.gov.uk/id/local-authority/29UP,Tonbridge & Malling Borough Council,1/10/2024,0012008925/14,12008925, 3.00,O2 UK Ltd,01268000,,Mobile Telephones,Technical Sals&Overheads,D01AEDE0045013,
http://statistics.data.gov.uk/id/local-authority/29UP,Tonbridge & Malling Borough Council,1/10/2024,0012008925/15,12008925, 6.00,O2 UK Ltd,01268000,,Mobile Telephones,Technical Sals&Overheads,D01AEDE0145013,
http://statistics.data.gov.uk/id/local-authority/29UP,Tonbridge & Malling Borough Council,1/10/2024,0012008925/16,12008925, 9.00,O2 UK Ltd,01268000,,Mobile Telephones,Technical Sals&Overheads,D01AEDE0245013,
http://statistics.data.gov.uk/id/local-authority/29UP,Tonbridge & Malling Borough Council,1/10/2024,0012008925/17,12008925, 42.10,O2 UK Ltd,01268000,,Mobile Telephones,Technical Sals&Overheads,D01AEDE0445013,
http://statistics.data.gov.uk/id/local-authority/29UP,Tonbridge & Malling Borough Council,1/10/2024,0012008925/18,12008925, 3.20,O2 UK Ltd,01268000,,Mobile Telephones,Technical Sals&Overheads,D01AEDE0545013,
http://statistics.data.gov.uk/id/local-authority/29UP,Tonbridge & Malling Borough Council,1/10/2024,0012008925/19,12008925, 12.00,O2 UK Ltd,01268000,,Mobile Telephones,Finance Sals&Overheads,D01AFDF0045013,
http://statistics.data.gov.uk/id/local-authority/29UP,Tonbridge & Malling Borough Council,1/10/2024,0012008925/20,12008925, 6.00,O2 UK Ltd,01268000,,Mobile Telephones,Finance Sals&Overheads,D01AFDF0945013,
http://statistics.data.gov.uk/id/local-authority/29UP,Tonbridge & Malling Borough Council,1/10/2024,0012008925/21,12008925, 12.00,O2 UK Ltd,01268000,,Mobile Telephones,St Scene & Leis Sals&Overheads,D01AGDG0045013,
http://statistics.data.gov.uk/id/local-authority/29UP,Tonbridge & Malling Borough Council,1/10/2024,0012008925/22,12008925, 12.00,O2 UK Ltd,01268000,,Mobile Telephones,St Scene & Leis Sals&Overheads,D01AGDG0145013,
http://statistics.data.gov.uk/id/local-authority/29UP,Tonbridge & Malling Borough Council,1/10/2024,0012008925/23,12008925, 9.00,O2 UK Ltd,01268000,,Mobile Telephones,St Scene & Leis Sals&Overheads,D01AGDG0445013,
http://statistics.data.gov.uk/id/local-authority/29UP,Tonbridge & Malling Borough Council,1/10/2024,0012008925/24,12008925, 36.00,O2 UK Ltd,01268000,,Mobile Telephones,St Scene & Leis Sals&Overheads,D01AGDG2045013,
http://statistics.data.gov.uk/id/local-authority/29UP,Tonbridge & Malling Borough Council,1/10/2024,0012008925/25,12008925, 9.00,O2 UK Ltd,01268000,,Mobile Telephones,Planning Sals&Overheads,D01AJDJ0045013,
http://statistics.data.gov.uk/id/local-authority/29UP,Tonbridge & Malling Borough Council,1/10/2024,0012008925/26,12008925, 12.00,O2 UK Ltd,01268000,,Mobile Telephones,Planning Sals&Overheads,D01AJDJ0245013,
http://statistics.data.gov.uk/id/local-authority/29UP,Tonbridge & Malling Borough Council,1/10/2024,0012008925/27,12008925, 6.00,O2 UK Ltd,01268000,,Mobile Telephones,Legal Sals&Overheads,D01ARDR0045013,
http://statistics.data.gov.uk/id/local-authority/29UP,Tonbridge & Malling Borough Council,1/10/2024,0012008925/28,12008925, 12.00,O2 UK Ltd,01268000,,Mobile Telephones,Legal Sals&Overheads,D01ARDR0445013,
http://statistics.data.gov.uk/id/local-authority/29UP,Tonbridge & Malling Borough Council,1/10/2024,0012008925/29,12008925, 3.00,O2 UK Ltd,01268000,,Mobile Telephones,Legal Sals&Overheads,D01ARDR0745013,
http://statistics.data.gov.uk/id/local-authority/29UP,Tonbridge & Malling Borough Council,1/10/2024,0012008925/30,12008925, 3.00,O2 UK Ltd,01268000,,Mobile Telephones,Env Hlth & Hsg Sals&Overheads,D01AVDV0045013,
http://statistics.data.gov.uk/id/local-authority/29UP,Tonbridge & Malling Borough Council,1/10/2024,0012008925/31,12008925, 9.00,O2 UK Ltd,01268000,,Mobile Telephones,Env Hlth & Hsg Sals&Overheads,D01AVDV0145013,
http://statistics.data.gov.uk/id/local-authority/29UP,Tonbridge & Malling Borough Council,1/10/2024,0012008925/32,12008925, 6.00,O2 UK Ltd,01268000,,Mobile Telephones,Env Hlth & Hsg Sals&Overheads,D01AVDV0345013,
http://statistics.data.gov.uk/id/local-authority/29UP,Tonbridge & Malling Borough Council,1/10/2024,0012008925/33,12008925, 3.00,O2 UK Ltd,01268000,,Mobile Telephones,Env Hlth & Hsg Sals&Overheads,D01AVDV0745013,
http://statistics.data.gov.uk/id/local-authority/29UP,Tonbridge & Malling Borough Council,1/10/2024,0012008925/34,12008925, 6.00,O2 UK Ltd,01268000,,Mobile Telephones,Env Hlth & Hsg Sals&Overheads,D01AVDV0945013,
http://statistics.data.gov.uk/id/local-authority/29UP,Tonbridge & Malling Borough Council,1/10/2024,0012008925/35,12008925, 9.70,O2 UK Ltd,01268000,,Mobile Telephones,Customer Services,D23CS000045013,
http://statistics.data.gov.uk/id/local-authority/29UP,Tonbridge & Malling Borough Council,1/10/2024,0012008925/36,12008925, 3.00,O2 UK Ltd,01268000,,Mobile Telephones,Tonbridge Gateway,D23TG000045013,
http://statistics.data.gov.uk/id/local-authority/29UP,Tonbridge & Malling Borough Council,1/10/2024,0012008925/37,12008925, 627.00,O2 UK Ltd,01268000,,Leased Lines & Modems,Information Technology,D27KD000045011,
http://statistics.data.gov.uk/id/local-authority/29UP,Tonbridge & Malling Borough Council,1/10/2024,0012008925/38,12008925, 3.00,O2 UK Ltd,01268000,,Mobile Telephones,Mayoral & Other Member Support,D29LX000045013,
http://statistics.data.gov.uk/id/local-authority/29UP,Tonbridge & Malling Borough Council,1/10/2024,0012008925/39,12008925, 3.00,O2 UK Ltd,01268000,,Emergency Out of Hours Recharg,Refuse Collection,H20SA000045030,
http://statistics.data.gov.uk/id/local-authority/29UP,Tonbridge & Malling Borough Council,1/10/2024,0012008925/40,12008925, 3.10,O2 UK Ltd,01268000,,Emergency Out of Hours Recharg,Street Scene,H23SD000045030,
http://statistics.data.gov.uk/id/local-authority/29UP,Tonbridge & Malling Borough Council,1/10/2024,0012008925/7,12008925, 3.10,O2 UK Ltd,01268000,,Telephones - General,Open Spaces & Amenity Areas,B22LE000045010,
http://statistics.data.gov.uk/id/local-authority/29UP,Tonbridge & Malling Borough Council,1/10/2024,0012008925/8,12008925, 3.00,O2 UK Ltd,01268000,,Mobile Telephones,Admin & Prop Sals&Overheads,D01AADA0045013,
http://statistics.data.gov.uk/id/local-authority/29UP,Tonbridge & Malling Borough Council,1/10/2024,0012008925/9,12008925, 3.00,O2 UK Ltd,01268000,,Mobile Telephones,Admin & Prop Sals&Overheads,D01AADA1045013,
http://statistics.data.gov.uk/id/local-authority/29UP,Tonbridge & Malling Borough Council,1/10/2024,0012008927/1,12008927, 73.69,Amazon EU SARL,01738400,,Purchases,Information Technology,D27KD000040101,410032551
http://statistics.data.gov.uk/id/local-authority/29UP,Tonbridge & Malling Borough Council,1/10/2024,0012008927/2,12008927, 0.82,Amazon EU SARL,01738400,,Delivery Expenses,Information Technology,D27KD000044069,410032551
http://statistics.data.gov.uk/id/local-authority/29UP,Tonbridge & Malling Borough Council,1/10/2024,0012008927/3,12008927, 0.83,Amazon EU SARL,01738400,,Delivery Expenses,Information Technology,D27KD000044069,410032551
http://statistics.data.gov.uk/id/local-authority/29UP,Tonbridge & Malling Borough Council,1/10/2024,0012008928/1,12008928, 1590.00,Bytes Software Services,01676900,823818226,Software Hire & Support,Information Technology,D27KD000044059,410032538
http://statistics.data.gov.uk/id/local-authority/29UP,Tonbridge & Malling Borough Council,1/10/2024,0012008929/1,12008929, 3850.00,Bytes Software Services,01676900,823818226,Software Hire & Support,Information Technology,D27KD000044059,410032548
http://statistics.data.gov.uk/id/local-authority/29UP,Tonbridge & Malling Borough Council,1/10/2024,0012008929/2,12008929, 1393.00,Bytes Software Services,01676900,823818226,Software Hire & Support,Information Technology,D27KD000044059,410032548
http://statistics.data.gov.uk/id/local-authority/29UP,Tonbridge & Malling Borough Council,1/10/2024,0012008929/3,12008929, 955.50,Bytes Software Services,01676900,823818226,Software Hire & Support,Information Technology,D27KD000044059,410032548
http://statistics.data.gov.uk/id/local-authority/29UP,Tonbridge & Malling Borough Council,1/10/2024,0012008929/4,12008929, 395.50,Bytes Software Services,01676900,823818226,Software Hire & Support,Information Technology,D27KD000044059,410032548
http://statistics.data.gov.uk/id/local-authority/29UP,Tonbridge & Malling Borough Council,1/10/2024,0012008929/5,12008929, 692.42,Bytes Software Services,01676900,823818226,Software Hire & Support,Information Technology,D27KD000044059,410032548
http://statistics.data.gov.uk/id/local-authority/29UP,Tonbridge & Malling Borough Council,1/10/2024,0012008930/3,12008930, 9605.74,Civica UK Ltd,01051800,,Software Hire & Support,Information Technology,D27KD000044059,
http://statistics.data.gov.uk/id/local-authority/29UP,Tonbridge & Malling Borough Council,1/10/2024,0012008930/4,12008930, 1324.93,Civica UK Ltd,01051800,,Software Hire & Support,Information Technology,D27KD000044059,
http://statistics.data.gov.uk/id/local-authority/29UP,Tonbridge & Malling Borough Council,1/10/2024,0012008931/1,12008931, 10800.00,Ebase Technology Limited,00895300,,Software Hire & Support,Information Technology,D27KD000044059,410032549
http://statistics.data.gov.uk/id/local-authority/29UP,Tonbridge & Malling Borough Council,1/10/2024,0012008932/3,12008932, 16.82,Esendex Limited,01008900,,Leased Lines & Modems,Information Technology,D27KD000045011,
http://statistics.data.gov.uk/id/local-authority/29UP,Tonbridge & Malling Borough Council,1/10/2024,0012008933/3,12008933, 1180.15,NTT Cloud Communications UK Ltd,01794600,,Software Hire & Support,Information Technology,D27KD000044059,
http://statistics.data.gov.uk/id/local-authority/29UP,Tonbridge & Malling Borough Council,1/10/2024,0012008934/1,12008934, 2061.24,NTT Cloud Communications UK Ltd,01794600,,Software Hire & Support,Information Technology,D27KD000044059,110069968
http://statistics.data.gov.uk/id/local-authority/29UP,Tonbridge & Malling Borough Council,1/10/2024,0012008935/1,12008935, 4950.00,Phoenix Software Ltd,00077400,755349015,Consultancy Fees,Information Technology,D27KD000044011,410032500
http://statistics.data.gov.uk/id/local-authority/29UP,Tonbridge & Malling Borough Council,1/10/2024,0012008936/1,12008936, 11355.75,SureCloud Limited,01155300,,Consultancy Fees,Information Technology,D27KD000044011,410032545
http://statistics.data.gov.uk/id/local-authority/29UP,Tonbridge & Malling Borough Council,1/10/2024,0012008937/1,12008937, 2225.00,Idox Software Ltd,00962400,,Software Hire & Support,Information Technology,D27KD000044059,410032531
http://statistics.data.gov.uk/id/local-authority/29UP,Tonbridge & Malling Borough Council,1/10/2024,0012008938/1,12008938, 21.99,CCS Media Ltd,00018000,,Purchases,Information Technology,D27KD000040101,410032552
http://statistics.data.gov.uk/id/local-authority/29UP,Tonbridge & Malling Borough Council,1/10/2024,0012008938/2,12008938, 2.00,CCS Media Ltd,00018000,,Delivery Expenses,Information Technology,D27KD000044069,410032552
http://statistics.data.gov.uk/id/local-authority/29UP,Tonbridge & Malling Borough Council,1/10/2024,0012008939/3,12008939, 10.37,Daisy Communications,01068100,,Telephones - Rentals,General Admin Telephones,D24GT000045005,
http://statistics.data.gov.uk/id/local-authority/29UP,Tonbridge & Malling Borough Council,1/10/2024,0012008939/4,12008939, 285.76,Daisy Communications,01068100,,Telephones - Call Costs,General Admin Telephones,D24GT000045006,
http://statistics.data.gov.uk/id/local-authority/29UP,Tonbridge & Malling Borough Council,1/10/2024,0012008939/5,12008939, 95.92,Daisy Communications,01068100,,Leased Lines & Modems,Information Technology,D27KD000045011,
http://statistics.data.gov.uk/id/local-authority/29UP,Tonbridge & Malling Borough Council,1/10/2024,0012008939/6,12008939, 74.46,Daisy Communications,01068100,,Maintenance - General,Security Services Management,E09GA000040135,
http://statistics.data.gov.uk/id/local-authority/29UP,Tonbridge & Malling Borough Council,1/10/2024,0012008940/1,12008940, 189.00,Get It Repaired,01631300,287357752,Maintenance - Micros,Information Technology,D27KD000040140,410032555
http://statistics.data.gov.uk/id/local-authority/29UP,Tonbridge & Malling Borough Council,1/10/2024,0012008941/1,12008941, 890.26,Canon (UK) Limited,00298700,,Software Hire & Support,Information Technology,D27KD000044059,
http://statistics.data.gov.uk/id/local-authority/29UP,Tonbridge & Malling Borough Council,1/10/2024,0012008942/1,12008942, 750.00,Canon (UK) Limited,00298700,,Maintenance - Ancillary Equip,Information Technology,D27KD000040137,
http://statistics.data.gov.uk/id/local-authority/29UP,Tonbridge & Malling Borough Council,1/10/2024,0012008942/2,12008942, 138.00,Canon (UK) Limited,00298700,,Maintenance - Ancillary Equip,Information Technology,D27KD000040137,
http://statistics.data.gov.uk/id/local-authority/29UP,Tonbridge & Malling Borough Council,1/10/2024,0012008943/1,12008943, 2225.25,Coolspirit Ltd,01366300,,Software Hire & Support,Information Technology,D27KD000044059,410032321
http://statistics.data.gov.uk/id/local-authority/29UP,Tonbridge & Malling Borough Council,1/10/2024,0012008943/2,12008943, 26095.80,Coolspirit Ltd,01366300,,Software Hire & Support,Information Technology,D27KD000044059,410032321
http://statistics.data.gov.uk/id/local-authority/29UP,Tonbridge & Malling Borough Council,1/10/2024,0012008943/3,12008943, 6003.45,Coolspirit Ltd,01366300,,Software Hire & Support,Information Technology,D27KD000044059,410032321
http://statistics.data.gov.uk/id/local-authority/29UP,Tonbridge & Malling Borough Council,1/10/2024,0012008944/1,12008944, 34500.00,Adelante Software Limited,01393800,812115871,Initial Furniture & Equipment,General Data Protection Regs,P06DR000009906,410032376
http://statistics.data.gov.uk/id/local-authority/29UP,Tonbridge & Malling Borough Council,1/10/2024,0012008945/1,12008945, 74.11,Softcat,01615300,,Purchases,Information Technology,D27KD000040101,410032515
http://statistics.data.gov.uk/id/local-authority/29UP,Tonbridge & Malling Borough Council,1/10/2024,0012008945/2,12008945, 7.50,Softcat,01615300,,Delivery Expenses,Information Technology,D27KD000044069,410032515
http://statistics.data.gov.uk/id/local-authority/29UP,Tonbridge & Malling Borough Council,1/10/2024,0012008946/1,12008946, 2.00,CCS Media Ltd,00018000,,Delivery Expenses,Information Technology,D27KD000044069,410032556
http://statistics.data.gov.uk/id/local-authority/29UP,Tonbridge & Malling Borough Council,1/10/2024,0012008946/2,12008946, 1799.90,CCS Media Ltd,00018000,,Initial Furniture & Equipment,Capital Renewals IT,P06FBFB1009906,410032556
http://statistics.data.gov.uk/id/local-authority/29UP,Tonbridge & Malling Borough Council,1/10/2024,0012008947/1,12008947, 89.90,CCS Media Ltd,00018000,,Initial Furniture & Equipment,Capital Renewals IT,P06FBFB1009906,410032556
http://statistics.data.gov.uk/id/local-authority/29UP,Tonbridge & Malling Borough Council,1/10/2024,0012008948/1,12008948, 7334.00,CTL Audiovisual Services Ltd,01652000,,Maintenance - Ancillary Equip,Information Technology,D27KD000040137,410032558
http://statistics.data.gov.uk/id/local-authority/29UP,Tonbridge & Malling Borough Council,1/10/2024,0012008949/1,12008949, 2500.00,Frontier Software Plc,00231900,,Software Hire & Support,Information Technology,D27KD000044059,410032559
http://statistics.data.gov.uk/id/local-authority/29UP,Tonbridge & Malling Borough Council,1/10/2024,0012008949/2,12008949, 119.18,Frontier Software Plc,00231900,,Software Hire & Support,Information Technology,D27KD000044059,410032559
http://statistics.data.gov.uk/id/local-authority/29UP,Tonbridge & Malling Borough Council,1/10/2024,0012008950/1,12008950, 79.00,Get It Repaired,01631300,287357752,Maintenance - Micros,Information Technology,D27KD000040140,410032561
http://statistics.data.gov.uk/id/local-authority/29UP,Tonbridge & Malling Borough Council,1/10/2024,0015005833/1,15005833, 1833.75,Idox Software Ltd,00962400,,Electronic Elector Responses,Electoral Registration,D31MF000044102,410032550
http://statistics.data.gov.uk/id/local-authority/29UP,Tonbridge & Malling Borough Council,1/10/2024,0021039075/1,21039075, 1152.00,Martin Square Traders Association,00904000,,Borough Christmas Lighting,Eco Dev & Reg Boro Chris Light,D52TE000047014,
http://statistics.data.gov.uk/id/local-authority/29UP,Tonbridge & Malling Borough Council,1/10/2024,0021039076/1,21039076, 11752.00,Flex Flooring Ltd,01208600,,Initial Furniture & Equipment,Capital Renewals Leisure,P05KGBC0409906,210057504
http://statistics.data.gov.uk/id/local-authority/29UP,Tonbridge & Malling Borough Council,1/10/2024,0021039077/1,21039077, 2752.13,Tonbridge & Malling Leisure Trust,01469100,,Initial Furniture & Equipment,Capital Renewals Leisure,P05KGBC0209906,
http://statistics.data.gov.uk/id/local-authority/29UP,Tonbridge & Malling Borough Council,1/10/2024,0021039078/1,21039078, 4102.00,Advantage Catering Equipment Ltd,01912700,131043471,Initial Furniture & Equipment,Capital Renewals Leisure,P05KGBC0409906,210057525
http://statistics.data.gov.uk/id/local-authority/29UP,Tonbridge & Malling Borough Council,1/10/2024,0021039079/1,21039079, 544.98,G.L. & R.G. Bourne,00737500,,Gates / Security,Haysden Country Park,B22LC000044017,210057185
http://statistics.data.gov.uk/id/local-authority/29UP,Tonbridge & Malling Borough Council,1/10/2024,0021039080/1,21039080, 74.71,G.L. & R.G. Bourne,00737500,,Gates / Security,Haysden Country Park,B22LC000044017,210057185
http://statistics.data.gov.uk/id/local-authority/29UP,Tonbridge & Malling Borough Council,1/10/2024,0021039081/1,21039081, 2000.00,Burslem Memorials Ltd,01013400,,Contract Payments,Ton Cemetery Memorial Safety,P05KV000009904,210057422
http://statistics.data.gov.uk/id/local-authority/29UP,Tonbridge & Malling Borough Council,1/10/2024,0022028388/1,22028388, 157712.00,Porchlight,01416700,,Professional Fees,Homelessness,C01AA000044001,
http://statistics.data.gov.uk/id/local-authority/29UP,Tonbridge & Malling Borough Council,1/10/2024,0022028389/1,22028389, 42.18,Biffa Waste Services Ltd,01284500,,Trade Refuse Charges,Cleaning & Security,D21FD000044008,
http://statistics.data.gov.uk/id/local-authority/29UP,Tonbridge & Malling Borough Council,1/10/2024,0022028390/3,22028390, 800.00,Green Recycling LTD,01563000,,Paper Recycling,Dry Recycling,H34SR000054024,
http://statistics.data.gov.uk/id/local-authority/29UP,Tonbridge & Malling Borough Council,1/10/2024,0022028391/1,22028391, 6.95,KCS Education/CSG Global Education Ltd,01897200,408845925,Stationery,Env Hlth & Hsg Sals&Overheads,D01AVDV0643003,220003427
http://statistics.data.gov.uk/id/local-authority/29UP,Tonbridge & Malling Borough Council,1/10/2024,0022028392/1,22028392, 490.00,Countrystyle Group,00835900,781981681,Collection of Card,Dry Recycling,H34SR000054008,
http://statistics.data.gov.uk/id/local-authority/29UP,Tonbridge & Malling Borough Council,1/10/2024,0022028393/1,22028393, 245.00,Countrystyle Group,00835900,781981681,Collection of Card,Dry Recycling,H34SR000054008,
http://statistics.data.gov.uk/id/local-authority/29UP,Tonbridge & Malling Borough Council,1/10/2024,0022028394/1,22028394, 33.98,KCS - KCC,00054200,204269191,Purchases,Street Scene,H23SD000040101,220003436
http://statistics.data.gov.uk/id/local-authority/29UP,Tonbridge & Malling Borough Council,1/10/2024,0022028395/1,22028395, 6700.19,Landfill Systems Maintenance Ltd,01311000,,Maintenance - General,Environmental Protection,H32SN000040135,220003376
http://statistics.data.gov.uk/id/local-authority/29UP,Tonbridge & Malling Borough Council,1/10/2024,0022028396/1,22028396, 9.13,Maidstone Borough Council,01173700,,Council Tax,Homelessness,C01AA000023002,
http://statistics.data.gov.uk/id/local-authority/29UP,Tonbridge & Malling Borough Council,1/10/2024,0022028397/1,22028397, 447.50,Abate Pest Managment Services,01476700,786617382,Other Expenses,Pest Control,H24SE000048010,
http://statistics.data.gov.uk/id/local-authority/29UP,Tonbridge & Malling Borough Council,1/10/2024,0022028398/1,22028398, 2667.60,SOCOTEC UK Limited,01284300,,Air Quality Monitoring,Environmental Protection,H32SN000054016,220003411
http://statistics.data.gov.uk/id/local-authority/29UP,Tonbridge & Malling Borough Council,1/10/2024,0022028399/7,22028399, 4245.15,Ward Security LTD,01490000,,Dog Warden,Street Scene,H23SD000044100,
http://statistics.data.gov.uk/id/local-authority/29UP,Tonbridge & Malling Borough Council,1/10/2024,0022028400/1,22028400, 50.24,Maidstone Borough Council,01173700,,Council Tax,Homelessness,C01AA000023002,
http://statistics.data.gov.uk/id/local-authority/29UP,Tonbridge & Malling Borough Council,1/10/2024,0022028401/1,22028401, 31.97,Maidstone Borough Council,01173700,,Council Tax,Homelessness,C01AA000023002,
http://statistics.data.gov.uk/id/local-authority/29UP,Tonbridge & Malling Borough Council,1/10/2024,0022028402/1,22028402, 25.95,Posturite UK Ltd,00970300,,Health General,St Scene & Leis Sals&Overheads,D01AGDG3044049,210057331
http://statistics.data.gov.uk/id/local-authority/29UP,Tonbridge & Malling Borough Council,1/10/2024,0022028402/2,22028402, 242.36,Posturite UK Ltd,00970300,,Health General,St Scene & Leis Sals&Overheads,D01AGDG3044049,210057331
http://statistics.data.gov.uk/id/local-authority/29UP,Tonbridge & Malling Borough Council,1/10/2024,0022028402/3,22028402, 32.76,Posturite UK Ltd,00970300,,Health General,St Scene & Leis Sals&Overheads,D01AGDG3044049,210057331
http://statistics.data.gov.uk/id/local-authority/29UP,Tonbridge & Malling Borough Council,1/10/2024,0022028402/4,22028402, 9.95,Posturite UK Ltd,00970300,,Health General,St Scene & Leis Sals&Overheads,D01AGDG3044049,210057331
http://statistics.data.gov.uk/id/local-authority/29UP,Tonbridge & Malling Borough Council,1/10/2024,0022028403/1,22028403, 204.57,British Gas Services LTD,01260000,,Electricity,Homelessness,C01AA000021002,
http://statistics.data.gov.uk/id/local-authority/29UP,Tonbridge & Malling Borough Council,1/10/2024,0022028403/2,22028403, 371.47,British Gas Services LTD,01260000,,Electricity,Homelessness,C01AA000021002,
http://statistics.data.gov.uk/id/local-authority/29UP,Tonbridge & Malling Borough Council,1/10/2024,0031019927/1,31019927, 500.00,Traffic Enforcement Centre,00604200,,Adjudication & Enforcement Ser,Parking Off-Street,E10HA000044230,
http://statistics.data.gov.uk/id/local-authority/29UP,Tonbridge & Malling Borough Council,1/10/2024,0031019927/2,31019927, 500.00,Traffic Enforcement Centre,00604200,,Adjudication & Enforcement Ser,Parking On-Street,E10HD000044230,
http://statistics.data.gov.uk/id/local-authority/29UP,Tonbridge & Malling Borough Council,1/10/2024,0031019928/1,31019928, 70.90,Shell U.K. Oil Products Limited,01673300,,"Petrol, Diesel & Oil",Patrolling,B22LF000030106,
http://statistics.data.gov.uk/id/local-authority/29UP,Tonbridge & Malling Borough Council,1/10/2024,0031019928/2,31019928, 82.29,Shell U.K. Oil Products Limited,01673300,,"Petrol, Diesel & Oil",Parking Off-Street,E10HA000030106,
http://statistics.data.gov.uk/id/local-authority/29UP,Tonbridge & Malling Borough Council,1/10/2024,0031019928/3,31019928, 82.29,Shell U.K. Oil Products Limited,01673300,,"Petrol, Diesel & Oil",Parking On-Street,E10HD000030106,
http://statistics.data.gov.uk/id/local-authority/29UP,Tonbridge & Malling Borough Council,1/10/2024,0031019929/1,31019929, 49.13,Shell U.K. Oil Products Limited,01673300,,"Petrol, Diesel & Oil",Parking Off-Street,E10HA000030106,
http://statistics.data.gov.uk/id/local-authority/29UP,Tonbridge & Malling Borough Council,1/10/2024,0031019929/2,31019929, 49.14,Shell U.K. Oil Products Limited,01673300,,"Petrol, Diesel & Oil",Parking On-Street,E10HD000030106,
http://statistics.data.gov.uk/id/local-authority/29UP,Tonbridge & Malling Borough Council,1/10/2024,0031019930/1,31019930, 228.20,ToolChimp Limited,01432300,863474793,Winter Maintenance,Parking Off-Street,E10HA000020701,310043169
http://statistics.data.gov.uk/id/local-authority/29UP,Tonbridge & Malling Borough Council,1/10/2024,0031019933/1,31019933, 1792.00,Tonbridge & Malling Leisure Trust,01469100,,Ticket Refunds - Lower Castle,Parking Off-Street,E10HAE01344199,
http://statistics.data.gov.uk/id/local-authority/29UP,Tonbridge & Malling Borough Council,1/10/2024,0031019934/1,31019934, 509.22,CDER Group,01773300,,Adjudication & Enforcement Ser,Parking Off-Street,E10HA000044230,
http://statistics.data.gov.uk/id/local-authority/29UP,Tonbridge & Malling Borough Council,1/10/2024,0031019935/3,31019935, 227.73,CDER Group,01773300,,Adjudication & Enforcement Ser,Parking Off-Street,E10HA000044230,
http://statistics.data.gov.uk/id/local-authority/29UP,Tonbridge & Malling Borough Council,1/10/2024,0031019936/1,31019936, 450.00,DSSL Group Ltd,01839500,,CCTV Monitoring Station,Security Services Management,E09GA000051020,310043198
http://statistics.data.gov.uk/id/local-authority/29UP,Tonbridge & Malling Borough Council,1/10/2024,0031019937/1,31019937, 200.00,Arnold & Court Ltd,01411300,,Premises Repairs & Maintenance,Parking Off-Street,E10HA000020601,310043210
http://statistics.data.gov.uk/id/local-authority/29UP,Tonbridge & Malling Borough Council,1/10/2024,0031019938/1,31019938, 200.00,Arnold & Court Ltd,01411300,,Repair & Mtce of Fixed Plant,Boro Highways & Emergency Oper,E01AA000020501,310043208
http://statistics.data.gov.uk/id/local-authority/29UP,Tonbridge & Malling Borough Council,1/10/2024,0031019939/1,31019939, 400.00,Arnold & Court Ltd,01411300,,Premises Repairs & Maintenance,Parking Off-Street,E10HA000020601,310043203
http://statistics.data.gov.uk/id/local-authority/29UP,Tonbridge & Malling Borough Council,1/10/2024,0031019939/2,31019939, 200.00,Arnold & Court Ltd,01411300,,Premises Repairs & Maintenance,Parking Off-Street,E10HA000020601,310043203
http://statistics.data.gov.uk/id/local-authority/29UP,Tonbridge & Malling Borough Council,1/10/2024,0031019940/1,31019940, 200.00,Arnold & Court Ltd,01411300,,General Maintenance,Dry Recycling,H34SR000020301,310043205
http://statistics.data.gov.uk/id/local-authority/29UP,Tonbridge & Malling Borough Council,1/10/2024,0031019941/1,31019941, 500.00,Arnold & Court Ltd,01411300,,BRREP Car Park mntce,Leis Man Poult Wood Golf Centr,M15HEP20001953,310043195
http://statistics.data.gov.uk/id/local-authority/29UP,Tonbridge & Malling Borough Council,1/10/2024,0031019942/1,31019942, 200.00,Arnold & Court Ltd,01411300,,Premises Repairs & Maintenance,Parking Off-Street,E10HA000020601,310043200
http://statistics.data.gov.uk/id/local-authority/29UP,Tonbridge & Malling Borough Council,1/10/2024,0031019942/2,31019942, 50.00,Arnold & Court Ltd,01411300,,Premises Repairs & Maintenance,Parking Off-Street,E10HA000020601,310043200
http://statistics.data.gov.uk/id/local-authority/29UP,Tonbridge & Malling Borough Council,1/10/2024,0031019943/1,31019943, 243.80,Arnold & Court Ltd,01411300,,Maintenance of Grounds,Parking Off-Street,E10HA000020402,310043187
http://statistics.data.gov.uk/id/local-authority/29UP,Tonbridge & Malling Borough Council,1/10/2024,0031019944/1,31019944, 400.00,Arnold & Court Ltd,01411300,,Premises Repairs & Maintenance,Parking Off-Street,E10HA000020601,310043196
http://statistics.data.gov.uk/id/local-authority/29UP,Tonbridge & Malling Borough Council,1/10/2024,0031019944/2,31019944, 150.00,Arnold & Court Ltd,01411300,,Premises Repairs & Maintenance,Parking Off-Street,E10HA000020601,310043196
http://statistics.data.gov.uk/id/local-authority/29UP,Tonbridge & Malling Borough Council,1/10/2024,0031019945/1,31019945, 200.00,Arnold & Court Ltd,01411300,,Repair & Mtce of Fixed Plant,Boro Highways & Emergency Oper,E01AA000020501,310043191
http://statistics.data.gov.uk/id/local-authority/29UP,Tonbridge & Malling Borough Council,1/10/2024,0031019946/1,31019946, 200.00,Arnold & Court Ltd,01411300,,Winter Maintenance,Parking Off-Street,E10HA000020701,310043192
http://statistics.data.gov.uk/id/local-authority/29UP,Tonbridge & Malling Borough Council,1/10/2024,0031019947/1,31019947, 200.00,Arnold & Court Ltd,01411300,,Premises Repairs & Maintenance,Parking Off-Street,E10HA000020601,310043186
http://statistics.data.gov.uk/id/local-authority/29UP,Tonbridge & Malling Borough Council,1/10/2024,0031019947/2,31019947, 75.00,Arnold & Court Ltd,01411300,,Premises Repairs & Maintenance,Parking Off-Street,E10HA000020601,310043186
http://statistics.data.gov.uk/id/local-authority/29UP,Tonbridge & Malling Borough Council,1/10/2024,0031019948/1,31019948, 1600.00,Arnold & Court Ltd,01411300,,Premises Repairs & Maintenance,Parking Off-Street,E10HA000020601,310043007
http://statistics.data.gov.uk/id/local-authority/29UP,Tonbridge & Malling Borough Council,1/10/2024,0031019949/1,31019949, 144.00,Arnold & Court Ltd,01411300,,Maintenance of Grounds,Sports Grounds,B13ETCARP20402,310043008
http://statistics.data.gov.uk/id/local-authority/29UP,Tonbridge & Malling Borough Council,1/10/2024,0031019949/2,31019949, 1920.00,Arnold & Court Ltd,01411300,,Premises Repairs & Maintenance,Parking Off-Street,E10HA000020601,310043008
http://statistics.data.gov.uk/id/local-authority/29UP,Tonbridge & Malling Borough Council,1/10/2024,0031019949/3,31019949, 336.00,Arnold & Court Ltd,01411300,,BRREP Servicing - ext lighting,Kings Hill Offices - Ext Areas,M15KAP20001941,310043008
http://statistics.data.gov.uk/id/local-authority/29UP,Tonbridge & Malling Borough Council,1/10/2024,0031019950/3,31019950, 4566.30,G4S Cash Solutions ( UK ) Ltd,01398400,,Cash Collection,Parking Off-Street,E10HA000044007,
http://statistics.data.gov.uk/id/local-authority/29UP,Tonbridge & Malling Borough Council,1/10/2024,0031019951/1,31019951, 2100.30,HEREF Tonbridge Ltd,01518900,,Pay to Principal - Botany CP,Parking Off-Street,E10HAE00444197,
http://statistics.data.gov.uk/id/local-authority/29UP,Tonbridge & Malling Borough Council,1/10/2024,0031019952/3,31019952, 162.45,Imperial Civil Enforcement Solutions,00057200,,Adjudication & Enforcement Ser,Parking Off-Street,E10HA000044230,
http://statistics.data.gov.uk/id/local-authority/29UP,Tonbridge & Malling Borough Council,1/10/2024,0031019953/1,31019953, 400.00,Arnold & Court Ltd,01411300,,Winter Maintenance,Parking Off-Street,E10HA000020701,310043199
http://statistics.data.gov.uk/id/local-authority/29UP,Tonbridge & Malling Borough Council,1/10/2024,0031019954/3,31019954, 195.48,British Telecommunications Plc,00012800,,Maintenance - General,Security Services Management,E09GA000040135,
http://statistics.data.gov.uk/id/local-authority/29UP,Tonbridge & Malling Borough Council,1/10/2024,0031019954/4,31019954, 40.00,British Telecommunications Plc,00012800,,Maintenance - General,Security Services Management,E09GA000040135,
http://statistics.data.gov.uk/id/local-authority/29UP,Tonbridge & Malling Borough Council,1/10/2024,0031019955/1,31019955, 800.00,C. S. Mitchell LTD,01704800,,Premises Repairs & Maintenance,Parking Off-Street,E10HA000020601,310043050
http://statistics.data.gov.uk/id/local-authority/29UP,Tonbridge & Malling Borough Council,1/10/2024,0031019956/1,31019956, 3475.00,DSSL Group Ltd,01839500,,CCTV Monitoring Station,Security Services Management,E09GA000051020,310042803
http://statistics.data.gov.uk/id/local-authority/29UP,Tonbridge & Malling Borough Council,1/10/2024,0031019957/1,31019957, 4950.00,Forge Engineering,00137700,,Other Expenses,Car Park Imp Rolling Programme,P01AB000009908,310043163
http://statistics.data.gov.uk/id/local-authority/29UP,Tonbridge & Malling Borough Council,1/10/2024,0031019958/1,31019958, 50.00,Kent County Council,00322500,,Professional Fees,Parking Off-Street,E10HA000044001,310043211
http://statistics.data.gov.uk/id/local-authority/29UP,Tonbridge & Malling Borough Council,1/10/2024,0031019959/1,31019959, 1265.00,Marston,01485000,,Adjudication & Enforcement Ser,Parking Off-Street,E10HA000044230,
http://statistics.data.gov.uk/id/local-authority/29UP,Tonbridge & Malling Borough Council,1/10/2024,0031019960/1,31019960, 123.93,Outdoor365 Limited,01924900,971698662,Winter Maintenance,Parking Off-Street,E10HA000020701,310043179
http://statistics.data.gov.uk/id/local-authority/29UP,Tonbridge & Malling Borough Council,1/10/2024,0031019961/1,31019961, 968.74,PSR Lighting & Signs Ltd,01265400,986561173,Premises Repairs & Maintenance,Parking Off-Street,E10HA000020601,310043183
http://statistics.data.gov.uk/id/local-authority/29UP,Tonbridge & Malling Borough Council,1/10/2024,0031019961/2,31019961, 940.45,PSR Lighting & Signs Ltd,01265400,986561173,Premises Repairs & Maintenance,Parking Off-Street,E10HA000020601,310043183
http://statistics.data.gov.uk/id/local-authority/29UP,Tonbridge & Malling Borough Council,1/10/2024,0031019962/1,31019962, 250.00,PSR Lighting & Signs Ltd,01265400,986561173,BRREP Servicing - ext lighting,Gibson Building East,M15KGP20001941,310043204
http://statistics.data.gov.uk/id/local-authority/29UP,Tonbridge & Malling Borough Council,1/10/2024,0031019965/1,31019965, 967.40,SKF Contractors Ltd,00092000,621768141,Repair & Mtce of Fixed Plant,Boro Highways & Emergency Oper,E01AA000020501,310043209
http://statistics.data.gov.uk/id/local-authority/29UP,Tonbridge & Malling Borough Council,1/10/2024,0031019966/3,31019966, 195.48,British Telecommunications Plc,00012800,,Maintenance - General,Security Services Management,E09GA000040135,
http://statistics.data.gov.uk/id/local-authority/29UP,Tonbridge & Malling Borough Council,1/10/2024,0031019966/4,31019966, 40.00,British Telecommunications Plc,00012800,,Maintenance - General,Security Services Management,E09GA000040135,
http://statistics.data.gov.uk/id/local-authority/29UP,Tonbridge & Malling Borough Council,1/10/2024,0032010657/1,32010657, 846.00,Carrington West Limited,01844500,,Temporary Staff,Planning Sals&Overheads,D01AJDJ0111300,
http://statistics.data.gov.uk/id/local-authority/29UP,Tonbridge & Malling Borough Council,1/10/2024,0032010658/1,32010658, 670.45,Carrington West Limited,01844500,,Temporary Staff,Planning Sals&Overheads,D01AJDJ0111300,
http://statistics.data.gov.uk/id/local-authority/29UP,Tonbridge & Malling Borough Council,1/10/2024,0032010659/3,32010659, 2641.00,G2 Recruitment Solutions,01786000,,Temporary Staff,Planning Sals&Overheads,D01AJDJ0111300,
http://statistics.data.gov.uk/id/local-authority/29UP,Tonbridge & Malling Borough Council,1/10/2024,0032010660/3,32010660, 1444.00,G2 Recruitment Solutions,01786000,,Temporary Staff,Planning Sals&Overheads,D01AJDJ0111300,
http://statistics.data.gov.uk/id/local-authority/29UP,Tonbridge & Malling Borough Council,1/10/2024,0032010661/3,32010661, 544.00,Hays Specialist Recruitment Limited,01879200,773695871,Temporary Staff,Planning Sals&Overheads,D01AJDJ0311300,
http://statistics.data.gov.uk/id/local-authority/29UP,Tonbridge & Malling Borough Council,1/10/2024,0032010662/1,32010662, 7891.00,WSP,01915600,,Professional Fees,Planning Policy,A01AF000044001,320003550
http://statistics.data.gov.uk/id/local-authority/29UP,Tonbridge & Malling Borough Council,1/10/2024,0032010663/1,32010663, 1533.95,Kent County Council,00322500,,Development of Local Plan,Development of Local Plan,A01AE000044023,320003552
http://statistics.data.gov.uk/id/local-authority/29UP,Tonbridge & Malling Borough Council,1/10/2024,0032010664/1,32010664, 214.20,KM Media Group Ltd,00053900,,Advertising General,Development Management,A01ABZ99944216,320003577
http://statistics.data.gov.uk/id/local-authority/29UP,Tonbridge & Malling Borough Council,1/10/2024,0032010665/1,32010665, 724.50,The Oyster Partnership,01196400,,Temporary Staff,Planning Sals&Overheads,D01AJDJ0111300,
http://statistics.data.gov.uk/id/local-authority/29UP,Tonbridge & Malling Borough Council,1/10/2024,0032010666/1,32010666, 7534.80,English Sports Council t/a Sport England,01915700,,Development of Local Plan,Development of Local Plan,A01AE000044023,320003551
http://statistics.data.gov.uk/id/local-authority/29UP,Tonbridge & Malling Borough Council,1/10/2024,0032010666/2,32010666, 4057.20,English Sports Council t/a Sport England,01915700,,Initiatives,UK Shared Prosperity Fund,D52TH000048135,320003551
http://statistics.data.gov.uk/id/local-authority/29UP,Tonbridge & Malling Borough Council,1/10/2024,0032010667/1,32010667, 1250.00,Tunbridge Wells Borough Council,00844600,,Conservation,Conservation,A01AG000056002,
http://statistics.data.gov.uk/id/local-authority/29UP,Tonbridge & Malling Borough Council,1/10/2024,0032010668/1,32010668, 2778.75,Vivid Resourcing,01773700,,Temporary Staff,Planning Sals&Overheads,D01AJDJ0111300,
http://statistics.data.gov.uk/id/local-authority/29UP,Tonbridge & Malling Borough Council,1/10/2024,0041036051/1,41036051, 1638.89,Rundle & Co Ltd,00087200,,Bailiffs Commission,Local Revenue & NNDR Collect,D41QA000044075,
http://statistics.data.gov.uk/id/local-authority/29UP,Tonbridge & Malling Borough Council,1/10/2024,0041036172/1,41036172, 75200.00,Department for Energy Security & Net Zer,01928500,,Government Grants,Council Tax Support,D42QFFUEL90001,
http://statistics.data.gov.uk/id/local-authority/29UP,Tonbridge & Malling Borough Council,1/10/2024,0041036173/1,41036173, 375020.00,Department for Energy Security & Net Zer,01928500,,Government Grants,Council Tax Support,D42QFFUEL90001,
http://statistics.data.gov.uk/id/local-authority/29UP,Tonbridge & Malling Borough Council,1/10/2024,0041036178/3,41036178, 4254.60,Maidstone Borough Council,01173700,,Bailiffs Commission,Local Revenue & NNDR Collect,D41QA000044075,
http://statistics.data.gov.uk/id/local-authority/29UP,Tonbridge & Malling Borough Council,1/10/2024,0041036179/3,41036179, 5839.38,Maidstone Borough Council,01173700,,Bailiffs Commission,Local Revenue & NNDR Collect,D41QA000044075,
http://statistics.data.gov.uk/id/local-authority/29UP,Tonbridge & Malling Borough Council,1/10/2024,0041036180/3,41036180, 1464.70,Rundle & Co Ltd,00087200,,Bailiffs Commission,Local Revenue & NNDR Collect,D41QA000044075,
http://statistics.data.gov.uk/id/local-authority/29UP,Tonbridge & Malling Borough Council,1/10/2024,0041036181/3,41036181, 1424.96,Rundle & Co Ltd,00087200,,Bailiffs Commission,Local Revenue & NNDR Collect,D41QA000044075,
http://statistics.data.gov.uk/id/local-authority/29UP,Tonbridge & Malling Borough Council,1/10/2024,0041036182/3,41036182, 521.26,Rundle & Co Ltd,00087200,,Bailiffs Commission,Local Revenue & NNDR Collect,D41QA000044075,
http://statistics.data.gov.uk/id/local-authority/29UP,Tonbridge & Malling Borough Council,1/10/2024,0041036183/3,41036183, 1051.75,Rundle & Co Ltd,00087200,,Bailiffs Commission,Local Revenue & NNDR Collect,D41QA000044075,
http://statistics.data.gov.uk/id/local-authority/29UP,Tonbridge & Malling Borough Council,1/10/2024,0041036184/3,41036184, 890.51,Rundle & Co Ltd,00087200,,Bailiffs Commission,Local Revenue & NNDR Collect,D41QA000044075,
http://statistics.data.gov.uk/id/local-authority/29UP,Tonbridge & Malling Borough Council,1/10/2024,0041036185/3,41036185, 708.43,Rundle & Co Ltd,00087200,,Bailiffs Commission,Local Revenue & NNDR Collect,D41QA000044075,
http://statistics.data.gov.uk/id/local-authority/29UP,Tonbridge & Malling Borough Council,1/10/2024,0041036190/1,41036190, 3350.00,LAVAT Consulting Limited,01206800,,Subscriptions,Finance Sals&Overheads,D01AFDF0247002,410032546
http://statistics.data.gov.uk/id/local-authority/29UP,Tonbridge & Malling Borough Council,1/10/2024,0041036192/1,41036192, 96.74,Adelante Software Limited,01393800,812115871,Credit Card Commission,Banking Arrangements,D43QK000044082,
http://statistics.data.gov.uk/id/local-authority/29UP,Tonbridge & Malling Borough Council,1/10/2024,0041036193/1,41036193, 167.56,Maidstone Borough Council,01173700,,Bailiffs Commission,Local Revenue & NNDR Collect,D41QA000044075,
http://statistics.data.gov.uk/id/local-authority/29UP,Tonbridge & Malling Borough Council,1/10/2024,0041036194/1,41036194, 1661.04,Maidstone Borough Council,01173700,,Bailiffs Commission,Local Revenue & NNDR Collect,D41QA000044075,
http://statistics.data.gov.uk/id/local-authority/29UP,Tonbridge & Malling Borough Council,1/10/2024,0041036195/1,41036195, 793.38,Rundle & Co Ltd,00087200,,Bailiffs Commission,Local Revenue & NNDR Collect,D41QA000044075,
http://statistics.data.gov.uk/id/local-authority/29UP,Tonbridge & Malling Borough Council,1/10/2024,0041036196/1,41036196, 13400.00,Adelante Software Limited,01393800,812115871,Software Hire & Support,Information Technology,D27KD000044059,
http://statistics.data.gov.uk/id/local-authority/29UP,Tonbridge & Malling Borough Council,1/10/2024,0041036196/2,41036196, 5600.00,Adelante Software Limited,01393800,812115871,Software Hire & Support,Information Technology,D27KD000044059,
http://statistics.data.gov.uk/id/local-authority/29UP,Tonbridge & Malling Borough Council,1/10/2024,0041036197/1,41036197, 15.00,Irrv,00050300,,Reference Books & Publications,Local Revenue & NNDR Collect,D41QA000043010,410032557
http://statistics.data.gov.uk/id/local-authority/29UP,Tonbridge & Malling Borough Council,1/10/2024,0041036198/1,41036198, 10000.00,Tonbridge Baptist Church,00401200,,Charitable / Voluntary Organis,Grants & Payments to Vol Orgn,D37PACV1947005,
http://statistics.data.gov.uk/id/local-authority/29UP,Tonbridge & Malling Borough Council,1/10/2024,0051008888/1,51008888, 3746.00,Haymarket Media Group Limited,01197800,,Recruitment Advertising,Recruitment Expenses,D10DADJ0313110,510010673
http://statistics.data.gov.uk/id/local-authority/29UP,Tonbridge & Malling Borough Council,1/10/2024,0051008889/1,51008889, 255.00,Improvement and Development Agency,01482800,,Ext Fees/Prof & Tech,Training,D10DC000013561,510010654
http://statistics.data.gov.uk/id/local-authority/29UP,Tonbridge & Malling Borough Council,1/16/2024,0041036218/1,41036218, 68.04,Allpay Limited,01816500,,Giro / Swipe Card Charges,Local Revenue & NNDR Collect,D41QA000044083,
http://statistics.data.gov.uk/id/local-authority/29UP,Tonbridge & Malling Borough Council,1/16/2024,0041036218/2,41036218, 4.20,Allpay Limited,01816500,,Giro / Swipe Card Charges,Local Revenue & NNDR Collect,D41QA000044083,
http://statistics.data.gov.uk/id/local-authority/29UP,Tonbridge & Malling Borough Council,1/16/2024,0041036219/1,41036219, 223.80,National Westminster Bank Plc,00069400,,Bank Charges,Banking Arrangements,D43QK000044222,
http://statistics.data.gov.uk/id/local-authority/29UP,Tonbridge & Malling Borough Council,1/17/2024,0011047528/1,11047528, 320.64,REDACTED PERSONAL DATA,01929300,,Mayors Transport Allowance,Mayoral & Other Member Support,D29LX000034111,
http://statistics.data.gov.uk/id/local-authority/29UP,Tonbridge & Malling Borough Council,1/17/2024,0011047529/3,11047529, 797.50,Thomson Snell & Passmore,00101700,210327030,Legal Fees,Legal Sals&Overheads,D01ARDR0044002,
http://statistics.data.gov.uk/id/local-authority/29UP,Tonbridge & Malling Borough Council,1/17/2024,0011047530/3,11047530, 1950.50,Thomson Snell & Passmore,00101700,210327030,Legal Fees,Legal Sals&Overheads,D01ARDR0044002,
http://statistics.data.gov.uk/id/local-authority/29UP,Tonbridge & Malling Borough Council,1/17/2024,0011047531/3,11047531, 442.00,Thomson Snell & Passmore,00101700,210327030,Legal Fees,Legal Sals&Overheads,D01ARDR0044002,
http://statistics.data.gov.uk/id/local-authority/29UP,Tonbridge & Malling Borough Council,1/17/2024,0011047532/3,11047532, 916.00,Thomson Snell & Passmore,00101700,210327030,Legal Fees,Legal Sals&Overheads,D01ARDR0044002,
http://statistics.data.gov.uk/id/local-authority/29UP,Tonbridge & Malling Borough Council,1/17/2024,0011047533/3,11047533, 2123.44,GSF SANDYLIGHT LTD,01705300,,Temporary Staff,Admin & Prop Sals&Overheads,D01AADA0511300,
http://statistics.data.gov.uk/id/local-authority/29UP,Tonbridge & Malling Borough Council,1/17/2024,0011047534/3,11047534, 207.34,LexisNexis UK,00016100,,Reference Books & Publications,Legal Sals&Overheads,D01ARDR0043010,
http://statistics.data.gov.uk/id/local-authority/29UP,Tonbridge & Malling Borough Council,1/17/2024,0011047534/4,11047534, 220.16,LexisNexis UK,00016100,,Reference Books & Publications,Legal Sals&Overheads,D01ARDR0043010,
http://statistics.data.gov.uk/id/local-authority/29UP,Tonbridge & Malling Borough Council,1/17/2024,0011047534/5,11047534, 7.00,LexisNexis UK,00016100,,Reference Books & Publications,Legal Sals&Overheads,D01ARDR0043010,
http://statistics.data.gov.uk/id/local-authority/29UP,Tonbridge & Malling Borough Council,1/17/2024,0011047535/3,11047535, 1023.74,Sellick Partnership Group Limited,01336800,864288095,Temporary Staff,Legal Sals&Overheads,D01ARDR0011300,
http://statistics.data.gov.uk/id/local-authority/29UP,Tonbridge & Malling Borough Council,1/17/2024,0011047536/3,11047536, 1217.80,Sellick Partnership Group Limited,01336800,864288095,Temporary Staff,Legal Sals&Overheads,D01ARDR0011300,
http://statistics.data.gov.uk/id/local-authority/29UP,Tonbridge & Malling Borough Council,1/17/2024,0011047537/3,11047537, 1217.80,Sellick Partnership Group Limited,01336800,864288095,Temporary Staff,Legal Sals&Overheads,D01ARDR0011300,
http://statistics.data.gov.uk/id/local-authority/29UP,Tonbridge & Malling Borough Council,1/17/2024,0011047538/1,11047538, 5053.62,Rock UK,01212500,,Capital Grants (RECS),Rural England Prosperity Fund,P06F0F04047771,
http://statistics.data.gov.uk/id/local-authority/29UP,Tonbridge & Malling Borough Council,1/17/2024,0011047539/3,11047539, 1600.00,The Oyster Partnership,01196400,,Temporary Staff,Admin & Prop Sals&Overheads,D01AADA1111300,
http://statistics.data.gov.uk/id/local-authority/29UP,Tonbridge & Malling Borough Council,1/17/2024,0011047540/1,11047540, 30.00,The Mayor's Charity Appeal,00943800,,Hospitality,Mayoral & Other Member Support,D29LX000048003,
http://statistics.data.gov.uk/id/local-authority/29UP,Tonbridge & Malling Borough Council,1/17/2024,0011047541/1,11047541, 14.00,Maidstone Borough Council,01453900,,Hospitality,Mayoral & Other Member Support,D29LX000048003,
http://statistics.data.gov.uk/id/local-authority/29UP,Tonbridge & Malling Borough Council,1/17/2024,0011047542/3,11047542, 190.00,Coloursped Services Ltd,01806600,,Purchases - Paper,Printing,D22GA000040102,
http://statistics.data.gov.uk/id/local-authority/29UP,Tonbridge & Malling Borough Council,1/17/2024,0011047543/3,11047543, 339.00,Coloursped Services Ltd,01806600,,Purchases - Paper,Printing,D22GA000040102,
http://statistics.data.gov.uk/id/local-authority/29UP,Tonbridge & Malling Borough Council,1/17/2024,0011047544/3,11047544, 781.74,Royal Mail,00086200,243170002,Purchases,Mailsort Stock Account,K37BR000001002,
http://statistics.data.gov.uk/id/local-authority/29UP,Tonbridge & Malling Borough Council,1/17/2024,0011047544/4,11047544, 5.74,Royal Mail,00086200,243170002,Purchases,Mailsort Stock Account,K37BR000001002,
http://statistics.data.gov.uk/id/local-authority/29UP,Tonbridge & Malling Borough Council,1/17/2024,0011047545/3,11047545, 189.00,Loxton Installations Ltd,01278800,204934869,BRREP Response - General,Leybourne Lakes Country Park,M15HLP50001997,
http://statistics.data.gov.uk/id/local-authority/29UP,Tonbridge & Malling Borough Council,1/17/2024,0011047546/3,11047546, 232.00,Loxton Installations Ltd,01278800,204934869,BRREP Servicing - ext lighting,Leis Man Poult Wood Golf Centr,M15HEP20001941,
http://statistics.data.gov.uk/id/local-authority/29UP,Tonbridge & Malling Borough Council,1/17/2024,0011047547/3,11047547, 194.00,Loxton Installations Ltd,01278800,204934869,BRREP Response - General,Tonbridge Castle / CAB,M15KFP50001997,
http://statistics.data.gov.uk/id/local-authority/29UP,Tonbridge & Malling Borough Council,1/17/2024,0011047548/3,11047548, 236.00,Loxton Installations Ltd,01278800,204934869,BRREP Response - General,Tonbridge Farm Pavillion,M15HGP50001997,
http://statistics.data.gov.uk/id/local-authority/29UP,Tonbridge & Malling Borough Council,1/17/2024,0011047549/3,11047549, 153.00,Loxton Installations Ltd,01278800,204934869,BRREP Response - General,Pleasure Grounds & Open Spaces,M15HHP50001997,
http://statistics.data.gov.uk/id/local-authority/29UP,Tonbridge & Malling Borough Council,1/17/2024,0011047550/3,11047550, 656.00,BML Building Services Ltd,01505000,124905523,Other Expenses,Homeless Accommodation,P03AX000009908,
http://statistics.data.gov.uk/id/local-authority/29UP,Tonbridge & Malling Borough Council,1/17/2024,0011047551/3,11047551, 150.00,BML Building Services Ltd,01505000,124905523,BRREP Servicing - WallgateUnit,PC - General,M15JAP20001972,
http://statistics.data.gov.uk/id/local-authority/29UP,Tonbridge & Malling Borough Council,1/17/2024,0011047552/3,11047552, 97.42,Atlas Facilities Managment Limited ,01075900,,Miscellaneous Services,Cleaning & Security,D21FDDD6044015,
http://statistics.data.gov.uk/id/local-authority/29UP,Tonbridge & Malling Borough Council,1/17/2024,0011047553/3,11047553, 146.13,Atlas Facilities Managment Limited ,01075900,,Miscellaneous Services,Cleaning & Security,D21FDDD1044015,
http://statistics.data.gov.uk/id/local-authority/29UP,Tonbridge & Malling Borough Council,1/17/2024,0011047554/3,11047554, 187.50,Francis Taylor Building,01688700,,Other Planning Enq - Legal Cos,Legal Sals&Overheads,D01ARDR0044146,
http://statistics.data.gov.uk/id/local-authority/29UP,Tonbridge & Malling Borough Council,1/17/2024,0011047555/1,11047555, 890.00,G C Industrial Heating Services,00578100,292124905,BRREP Servicing - Heating Syst,Leis Man Poult Wood Golf Centr,M15HEP20001934,110070687
http://statistics.data.gov.uk/id/local-authority/29UP,Tonbridge & Malling Borough Council,1/17/2024,0011047556/1,11047556, 910.00,G C Industrial Heating Services,00578100,292124905,BRREP Response - General,Larkfield Leisure Centre,M15HDP50001997,110070685
http://statistics.data.gov.uk/id/local-authority/29UP,Tonbridge & Malling Borough Council,1/17/2024,0011047557/1,11047557, 1240.00,G C Industrial Heating Services,00578100,292124905,BRREP Servicing - Heating Syst,Tonbridge Swimming Pool,M15HBP20001934,110070684
http://statistics.data.gov.uk/id/local-authority/29UP,Tonbridge & Malling Borough Council,1/17/2024,0011047558/1,11047558, 629.00,Envirocure Limited,00963300,,BRREP Legionella Certification,Larkfield Leisure Centre,M15HDP30001995,110070559
http://statistics.data.gov.uk/id/local-authority/29UP,Tonbridge & Malling Borough Council,1/17/2024,0011047559/1,11047559, 258.00,Envirocure Limited,00963300,,BRREP Legionella Certification,Angel Centre,M15HAP30001995,110070560
http://statistics.data.gov.uk/id/local-authority/29UP,Tonbridge & Malling Borough Council,1/17/2024,0012008951/1,12008951, 76.74,Bytes Software Services,01676900,823818226,Software Hire & Support,Information Technology,D27KD000044059,410032554
http://statistics.data.gov.uk/id/local-authority/29UP,Tonbridge & Malling Borough Council,1/17/2024,0012008952/3,12008952, 650.10,O2 UK Ltd,01268000,,Mobile Telephones,Technical Sals&Overheads,D01AEDE0445013,
http://statistics.data.gov.uk/id/local-authority/29UP,Tonbridge & Malling Borough Council,1/17/2024,0012008953/1,12008953, 11.64,Amazon EU SARL,01738400,,Purchases,Information Technology,D27KD000040101,410032563
http://statistics.data.gov.uk/id/local-authority/29UP,Tonbridge & Malling Borough Council,1/17/2024,0012008954/1,12008954, 69.90,CCS Media Ltd,00018000,,Purchases,Information Technology,D27KD000040101,410032562
http://statistics.data.gov.uk/id/local-authority/29UP,Tonbridge & Malling Borough Council,1/17/2024,0012008954/2,12008954, 2.00,CCS Media Ltd,00018000,,Delivery Expenses,Information Technology,D27KD000044069,410032562
http://statistics.data.gov.uk/id/local-authority/29UP,Tonbridge & Malling Borough Council,1/17/2024,0012008955/1,12008955, 649.95,CCS Media Ltd,00018000,,Initial Furniture & Equipment,Capital Renewals IT,P06FBFB1009906,410032562
http://statistics.data.gov.uk/id/local-authority/29UP,Tonbridge & Malling Borough Council,1/17/2024,0012008956/1,12008956, 29303.12,Softcat,01615300,,Initial Furniture & Equipment,Capital Renewals IT,P06FBFB2009906,410032537
http://statistics.data.gov.uk/id/local-authority/29UP,Tonbridge & Malling Borough Council,1/17/2024,0012008957/1,12008957, 38.37,Bytes Software Services,01676900,823818226,Software Hire & Support,Information Technology,D27KD000044059,410032564
http://statistics.data.gov.uk/id/local-authority/29UP,Tonbridge & Malling Borough Council,1/17/2024,0012008958/1,12008958, 138.90,CCS Media Ltd,00018000,,Purchases,Information Technology,D27KD000040101,410032565
http://statistics.data.gov.uk/id/local-authority/29UP,Tonbridge & Malling Borough Council,1/17/2024,0012008958/2,12008958, 3.00,CCS Media Ltd,00018000,,Delivery Expenses,Information Technology,D27KD000044069,410032565
http://statistics.data.gov.uk/id/local-authority/29UP,Tonbridge & Malling Borough Council,1/17/2024,0012008959/3,12008959, 85.01,KCS - KCC,00054200,204269191,Copy Charges,Multi Function Devices,D22GB000040125,
http://statistics.data.gov.uk/id/local-authority/29UP,Tonbridge & Malling Borough Council,1/17/2024,0012008960/3,12008960, 195.22,KCS - KCC,00054200,204269191,Copy Charges,Multi Function Devices,D22GB000040125,
http://statistics.data.gov.uk/id/local-authority/29UP,Tonbridge & Malling Borough Council,1/17/2024,0012008961/3,12008961, 125.09,KCS - KCC,00054200,204269191,Copy Charges,Multi Function Devices,D22GB000040125,
http://statistics.data.gov.uk/id/local-authority/29UP,Tonbridge & Malling Borough Council,1/17/2024,0012008962/3,12008962, 16.93,KCS - KCC,00054200,204269191,Copy Charges,Multi Function Devices,D22GB000040125,
http://statistics.data.gov.uk/id/local-authority/29UP,Tonbridge & Malling Borough Council,1/17/2024,0021039082/3,21039082, 943.40,TJR Events Group Limited,01929000,445959740,Events Support,Events Development,B41TJ000044041,
http://statistics.data.gov.uk/id/local-authority/29UP,Tonbridge & Malling Borough Council,1/17/2024,0021039083/1,21039083, 3675.00,Blackwood Bayne Ltd,01681400,,Market Research/Audit Program,Market Research,B37SE000044062,210057189
http://statistics.data.gov.uk/id/local-authority/29UP,Tonbridge & Malling Borough Council,1/17/2024,0021039084/1,21039084, 550.00,Arnold Tarmac Ltd,01685100,619126544,Maintenance of Grounds,Open Spaces & Amenity Areas,B22LE000020402,210057458
http://statistics.data.gov.uk/id/local-authority/29UP,Tonbridge & Malling Borough Council,1/17/2024,0021039085/1,21039085, 250.00,Arnold Tarmac Ltd,01685100,619126544,Maintenance of Grounds,Tonbridge Castle Grounds,B22LB000020402,210057459
http://statistics.data.gov.uk/id/local-authority/29UP,Tonbridge & Malling Borough Council,1/17/2024,0021039086/1,21039086, 550.00,Arnold Tarmac Ltd,01685100,619126544,Maintenance of Grounds,Open Spaces & Amenity Areas,B22LE000020402,210057460
http://statistics.data.gov.uk/id/local-authority/29UP,Tonbridge & Malling Borough Council,1/17/2024,0021039087/1,21039087, 187.62,Castle Water,01696500,,Water Charges (Metered),Haysden Country Park,B22LC000024001,
http://statistics.data.gov.uk/id/local-authority/29UP,Tonbridge & Malling Borough Council,1/17/2024,0021039088/1,21039088, 1368.00,M & M Developers LLP,01266500,,Initial Furniture & Equipment,Capital Renewals Leisure,P05KGBC0509906,210057489
http://statistics.data.gov.uk/id/local-authority/29UP,Tonbridge & Malling Borough Council,1/17/2024,0021039089/1,21039089, 1842.00,M & M Developers LLP,01266500,,Initial Furniture & Equipment,Capital Renewals Leisure,P05KGBC0509906,210057490
http://statistics.data.gov.uk/id/local-authority/29UP,Tonbridge & Malling Borough Council,1/17/2024,0021039090/1,21039090, 3242.00,M & M Developers LLP,01266500,,Initial Furniture & Equipment,Capital Renewals Leisure,P05KGBC0509906,210057491
http://statistics.data.gov.uk/id/local-authority/29UP,Tonbridge & Malling Borough Council,1/17/2024,0021039091/1,21039091, 3872.00,M & M Developers LLP,01266500,,Initial Furniture & Equipment,Capital Renewals Leisure,P05KGBC0509906,210057492
http://statistics.data.gov.uk/id/local-authority/29UP,Tonbridge & Malling Borough Council,1/17/2024,0021039092/1,21039092, 1712.00,M & M Developers LLP,01266500,,Initial Furniture & Equipment,Capital Renewals Leisure,P05KGBC0509906,210057493
http://statistics.data.gov.uk/id/local-authority/29UP,Tonbridge & Malling Borough Council,1/17/2024,0021039093/1,21039093, 4044.00,M & M Developers LLP,01266500,,Initial Furniture & Equipment,Capital Renewals Leisure,P05KGBC0509906,210057496
http://statistics.data.gov.uk/id/local-authority/29UP,Tonbridge & Malling Borough Council,1/17/2024,0021039094/1,21039094, 2732.00,M & M Developers LLP,01266500,,Initial Furniture & Equipment,Capital Renewals Leisure,P05KGBC0509906,210057473
http://statistics.data.gov.uk/id/local-authority/29UP,Tonbridge & Malling Borough Council,1/17/2024,0021039096/1,21039096, 640.00,M & M Developers LLP,01266500,,Maintenance of Play Equipment,Open Spaces & Amenity Areas,B22LE000020503,210057533
http://statistics.data.gov.uk/id/local-authority/29UP,Tonbridge & Malling Borough Council,1/17/2024,0021039097/3,21039097, 119.91,B&Q/Screwfix Direct(TradeUKAccount),00141300,,Maintenance of Grounds,Haysden Country Park,B22LC000020402,
http://statistics.data.gov.uk/id/local-authority/29UP,Tonbridge & Malling Borough Council,1/17/2024,0021039098/1,21039098, 4700.00,Trevor May Contractors Ltd,00856100,,Initial Furniture & Equipment,Capital Renewals Leisure,P05KGBC0509906,210057413
http://statistics.data.gov.uk/id/local-authority/29UP,Tonbridge & Malling Borough Council,1/17/2024,0021039099/1,21039099, 396.00,Phoenix Medical Services Ltd,01857600,352503132,Events Support,Events Development,B41TJ000044041,
http://statistics.data.gov.uk/id/local-authority/29UP,Tonbridge & Malling Borough Council,1/17/2024,0021039100/1,21039100, 40.00,Weddle and Co,00714900,,Maintenance of Grounds,Haysden Country Park,B22LC000020402,210057454
http://statistics.data.gov.uk/id/local-authority/29UP,Tonbridge & Malling Borough Council,1/17/2024,0021039101/1,21039101, 40.00,Weddle and Co,00714900,,Maintenance of Play Equipment,Open Spaces & Amenity Areas,B22LE000020503,210057536
http://statistics.data.gov.uk/id/local-authority/29UP,Tonbridge & Malling Borough Council,1/17/2024,0021039102/1,21039102, 1310.00,Advantage Catering Equipment Ltd,01912700,131043471,Initial Furniture & Equipment,Capital Renewals Leisure,P05KGBC0309906,210057539
http://statistics.data.gov.uk/id/local-authority/29UP,Tonbridge & Malling Borough Council,1/17/2024,0021039102/2,21039102, 270.00,Advantage Catering Equipment Ltd,01912700,131043471,Initial Furniture & Equipment,Capital Renewals Leisure,P05KGBC0309906,210057539
http://statistics.data.gov.uk/id/local-authority/29UP,Tonbridge & Malling Borough Council,1/17/2024,0022028404/3,22028404, 1.67,REDACTED PERSONAL DATA,01477000,,Food Sampling,Food & Safety - Food Safety,H35SX000054011,
http://statistics.data.gov.uk/id/local-authority/29UP,Tonbridge & Malling Borough Council,1/17/2024,0022028404/4,22028404, 3.68,REDACTED PERSONAL DATA,01477000,,Food Sampling,Food & Safety - Food Safety,H35SX000054011,
http://statistics.data.gov.uk/id/local-authority/29UP,Tonbridge & Malling Borough Council,1/17/2024,0022028405/1,22028405, 4919.23,Dolphin Stairlifts,00698900,,Other Expenses,Disabled Facilities Grant Mand,P03AC000009908,
http://statistics.data.gov.uk/id/local-authority/29UP,Tonbridge & Malling Borough Council,1/17/2024,0022028406/3,22028406, 1250.00,WRM Property Services,01878100,,Homelessness Reduction Initiat,Homelessness,C01AA000048019,
http://statistics.data.gov.uk/id/local-authority/29UP,Tonbridge & Malling Borough Council,1/17/2024,0022028407/3,22028407, 330.00,WRM Property Services,01878100,,Homelessness Reduction Initiat,Homelessness,C01AA000048019,
http://statistics.data.gov.uk/id/local-authority/29UP,Tonbridge & Malling Borough Council,1/17/2024,0022028408/1,22028408, 495.50,Waste Way (Southern Ltd),01923700,,Contract Payments,Street Scene,H23SD000054001,220003434
http://statistics.data.gov.uk/id/local-authority/29UP,Tonbridge & Malling Borough Council,1/17/2024,0022028409/1,22028409, 495.50,Waste Way (Southern Ltd),01923700,,Contract Payments,Street Scene,H23SD000054001,220003435
http://statistics.data.gov.uk/id/local-authority/29UP,Tonbridge & Malling Borough Council,1/17/2024,0022028410/1,22028410, 3.48,KCS Education/CSG Global Education Ltd,01897200,408845925,Healthy Living Initiatives,Public Health - Healthy Living,H40SYVH0048145,220003433
http://statistics.data.gov.uk/id/local-authority/29UP,Tonbridge & Malling Borough Council,1/17/2024,0022028410/2,22028410, 18.99,KCS Education/CSG Global Education Ltd,01897200,408845925,Healthy Living Initiatives,Public Health - Healthy Living,H40SYVH0048145,220003433
http://statistics.data.gov.uk/id/local-authority/29UP,Tonbridge & Malling Borough Council,1/17/2024,0022028412/1,22028412, 2961.00,Ability,01114200,,Other Expenses,Housing Assistance,P03AD000009908,
http://statistics.data.gov.uk/id/local-authority/29UP,Tonbridge & Malling Borough Council,1/17/2024,0022028413/3,22028413, 245.00,Countrystyle Group,00835900,781981681,Collection of Card,Dry Recycling,H34SR000054008,
http://statistics.data.gov.uk/id/local-authority/29UP,Tonbridge & Malling Borough Council,1/17/2024,0022028414/3,22028414, 501.40,Lucy and Martin Recycling LTD,01694200,,Vehicle Licences,Dry Recycling,H34SR000030105,
http://statistics.data.gov.uk/id/local-authority/29UP,Tonbridge & Malling Borough Council,1/17/2024,0022028415/3,22028415, 28337.81,Tunbridge Wells Borough Council,00844600,,CCTV Monitoring Station,Security Services Management,E09GA000051020,
http://statistics.data.gov.uk/id/local-authority/29UP,Tonbridge & Malling Borough Council,1/17/2024,0022028416/3,22028416, 127.41,British Gas,01148500,,Electricity,Homelessness,C01AAMAUN21002,
http://statistics.data.gov.uk/id/local-authority/29UP,Tonbridge & Malling Borough Council,1/17/2024,0022028417/1,22028417, 35.24,Maidstone Borough Council,01173700,,Council Tax,Homelessness,C01AAMAUN23002,
http://statistics.data.gov.uk/id/local-authority/29UP,Tonbridge & Malling Borough Council,1/17/2024,0022028418/1,22028418, 2201.00,1st  Steps Housing Kent,01716100,,Temporary Accommodation,Homelessness,C01AA000044051,
http://statistics.data.gov.uk/id/local-authority/29UP,Tonbridge & Malling Borough Council,1/17/2024,0022028419/1,22028419, 31437.50,Social & Community Care,01768400,,Temporary Accommodation,Homelessness,C01AA000044051,
http://statistics.data.gov.uk/id/local-authority/29UP,Tonbridge & Malling Borough Council,1/17/2024,0022028420/1,22028420, 2615.82,The Care Group-Housing & Care Trust,01699600,,Temporary Accommodation,Homelessness,C01AA000044051,
http://statistics.data.gov.uk/id/local-authority/29UP,Tonbridge & Malling Borough Council,1/17/2024,0022028421/1,22028421, 1519.00,Simply Rented Ltd ,01691400,,Temporary Accommodation,Homelessness,C01AA000044051,
http://statistics.data.gov.uk/id/local-authority/29UP,Tonbridge & Malling Borough Council,1/17/2024,0022028422/1,22028422, 56221.00,Paramount Independent Property Suppliers,01595300,,Temporary Accommodation,Homelessness,C01AA000044051,
http://statistics.data.gov.uk/id/local-authority/29UP,Tonbridge & Malling Borough Council,1/17/2024,0031019967/1,31019967, 680.00,Forge Engineering,00137700,,Other Expenses,Car Park Imp Rolling Programme,P01AB000009908,310043220
http://statistics.data.gov.uk/id/local-authority/29UP,Tonbridge & Malling Borough Council,1/17/2024,0031019969/3,31019969, 32.49,B&Q/Screwfix Direct(TradeUKAccount),00141300,,Purchases,Parking Off-Street,E10HA000040101,
http://statistics.data.gov.uk/id/local-authority/29UP,Tonbridge & Malling Borough Council,1/17/2024,0031019970/3,31019970, 139.67,CDER Group,01773300,,Adjudication & Enforcement Ser,Parking Off-Street,E10HA000044230,
http://statistics.data.gov.uk/id/local-authority/29UP,Tonbridge & Malling Borough Council,1/17/2024,0031019971/1,31019971, 930.00,Benchmarq Ltd,01146500,,Ext Fees/Prof & Tech,Training,D10DCDE0213561,310043176
http://statistics.data.gov.uk/id/local-authority/29UP,Tonbridge & Malling Borough Council,1/17/2024,0031019976/1,31019976, 180.00,Flowbird Smart City UK Limited,00898700,,Transport Repair & Maintenance,Parking Off-Street,E10HA000030103,310043206
http://statistics.data.gov.uk/id/local-authority/29UP,Tonbridge & Malling Borough Council,1/17/2024,0031019976/2,31019976, 5.00,Flowbird Smart City UK Limited,00898700,,Transport Repair & Maintenance,Parking On-Street,E10HD000030103,310043206
http://statistics.data.gov.uk/id/local-authority/29UP,Tonbridge & Malling Borough Council,1/17/2024,0031019976/3,31019976, 195.00,Flowbird Smart City UK Limited,00898700,,Transport Repair & Maintenance,Parking On-Street,E10HD000030103,310043206
http://statistics.data.gov.uk/id/local-authority/29UP,Tonbridge & Malling Borough Council,1/17/2024,0031019977/3,31019977, 128.89,Npower Ltd,01675800,,Electricity,Parking Off-Street,E10HA000021002,
http://statistics.data.gov.uk/id/local-authority/29UP,Tonbridge & Malling Borough Council,1/17/2024,0031019978/3,31019978, 308.50,Npower Ltd,01675800,,Electricity,Parking Off-Street,E10HA000021002,
http://statistics.data.gov.uk/id/local-authority/29UP,Tonbridge & Malling Borough Council,1/17/2024,0031019979/3,31019979, 68.01,Npower Ltd,01675800,,Electricity,Parking Off-Street,E10HA000021002,
http://statistics.data.gov.uk/id/local-authority/29UP,Tonbridge & Malling Borough Council,1/17/2024,0032010669/1,32010669, 21872.60,Ove Arup & Partners Ltd,01864300,524461265,Development of Local Plan,Development of Local Plan,A01AE000044023,320003583
http://statistics.data.gov.uk/id/local-authority/29UP,Tonbridge & Malling Borough Council,1/17/2024,0032010670/3,32010670, 1433.50,Carrington West Limited,01844500,,Temporary Staff,Planning Sals&Overheads,D01AJDJ0111300,
http://statistics.data.gov.uk/id/local-authority/29UP,Tonbridge & Malling Borough Council,1/17/2024,0032010671/3,32010671, 1340.90,Carrington West Limited,01844500,,Temporary Staff,Planning Sals&Overheads,D01AJDJ0111300,
http://statistics.data.gov.uk/id/local-authority/29UP,Tonbridge & Malling Borough Council,1/17/2024,0032010672/3,32010672, 1007.00,G2 Recruitment Solutions,01786000,,Temporary Staff,Planning Sals&Overheads,D01AJDJ0111300,
http://statistics.data.gov.uk/id/local-authority/29UP,Tonbridge & Malling Borough Council,1/17/2024,0032010673/3,32010673, 1800.00,G2 Recruitment Solutions,01786000,,Temporary Staff,Planning Sals&Overheads,D01AJDJ0011300,
http://statistics.data.gov.uk/id/local-authority/29UP,Tonbridge & Malling Borough Council,1/17/2024,0032010674/3,32010674, 1360.00,Hays Specialist Recruitment Limited,01879200,773695871,Temporary Staff,Planning Sals&Overheads,D01AJDJ0311300,
http://statistics.data.gov.uk/id/local-authority/29UP,Tonbridge & Malling Borough Council,1/17/2024,0032010675/3,32010675, 1088.00,Hays Specialist Recruitment Limited,01879200,773695871,Temporary Staff,Planning Sals&Overheads,D01AJDJ0311300,
http://statistics.data.gov.uk/id/local-authority/29UP,Tonbridge & Malling Borough Council,1/17/2024,0032010676/3,32010676, 2093.75,Hays Specialist Recruitment Limited,01879200,773695871,Temporary Staff,Planning Sals&Overheads,D01AJDJ0111300,
http://statistics.data.gov.uk/id/local-authority/29UP,Tonbridge & Malling Borough Council,1/17/2024,0032010677/3,32010677, 519.25,Hays Specialist Recruitment Limited,01879200,773695871,Temporary Staff,Planning Sals&Overheads,D01AJDJ0111300,
http://statistics.data.gov.uk/id/local-authority/29UP,Tonbridge & Malling Borough Council,1/17/2024,0032010678/3,32010678, 2194.25,Hays Specialist Recruitment Limited,01879200,773695871,Temporary Staff,Planning Sals&Overheads,D01AJDJ0111300,
http://statistics.data.gov.uk/id/local-authority/29UP,Tonbridge & Malling Borough Council,1/17/2024,0032010680/3,32010680, 1617.00,The Oyster Partnership,01196400,,Temporary Staff,Planning Sals&Overheads,D01AJDJ0111300,
http://statistics.data.gov.uk/id/local-authority/29UP,Tonbridge & Malling Borough Council,1/17/2024,0032010681/3,32010681, 1727.60,The Oyster Partnership,01196400,,Temporary Staff,Planning Sals&Overheads,D01AJDJ0111300,
http://statistics.data.gov.uk/id/local-authority/29UP,Tonbridge & Malling Borough Council,1/17/2024,0032010682/7,32010682, 1312.50,The Oyster Partnership,01196400,,Temporary Staff,Planning Sals&Overheads,D01AJDJ0111300,
http://statistics.data.gov.uk/id/local-authority/29UP,Tonbridge & Malling Borough Council,1/17/2024,0032010686/3,32010686, 931.50,Carrington West Limited,01844500,,Temporary Staff,Planning Sals&Overheads,D01AJDJ0111300,
http://statistics.data.gov.uk/id/local-authority/29UP,Tonbridge & Malling Borough Council,1/17/2024,0032010687/3,32010687, 905.63,Carrington West Limited,01844500,,Temporary Staff,Planning Sals&Overheads,D01AJDJ0111300,
http://statistics.data.gov.uk/id/local-authority/29UP,Tonbridge & Malling Borough Council,1/17/2024,0032010688/3,32010688, 1340.90,Carrington West Limited,01844500,,Temporary Staff,Planning Sals&Overheads,D01AJDJ0111300,
http://statistics.data.gov.uk/id/local-authority/29UP,Tonbridge & Malling Borough Council,1/17/2024,0032010689/3,32010689, 272.00,Hays Specialist Recruitment Limited,01879200,773695871,Temporary Staff,Planning Sals&Overheads,D01AJDJ0111300,
http://statistics.data.gov.uk/id/local-authority/29UP,Tonbridge & Malling Borough Council,1/17/2024,0032010690/1,32010690, 257.04,KM Media Group Ltd,00053900,,Advertising General,Development Management,A01ABZ99944216,320003579
http://statistics.data.gov.uk/id/local-authority/29UP,Tonbridge & Malling Borough Council,1/17/2024,0032010691/1,32010691, 300.00,Environment Agency,00418100,,Development of Local Plan,Development of Local Plan,A01AE000044023,320003400
http://statistics.data.gov.uk/id/local-authority/29UP,Tonbridge & Malling Borough Council,1/17/2024,0032010691/2,32010691, 50.00,Environment Agency,00418100,,Development of Local Plan,Development of Local Plan,A01AE000044023,320003400
http://statistics.data.gov.uk/id/local-authority/29UP,Tonbridge & Malling Borough Council,1/17/2024,0032010692/3,32010692, 2077.00,Hays Specialist Recruitment Limited,01879200,773695871,Temporary Staff,Planning Sals&Overheads,D01AJDJ0111300,
http://statistics.data.gov.uk/id/local-authority/29UP,Tonbridge & Malling Borough Council,1/17/2024,0041036203/3,41036203, 48594.00,Kent County Council,00322500,,Temporary Staff,Finance Sals&Overheads,D01AFDF0611300,
http://statistics.data.gov.uk/id/local-authority/29UP,Tonbridge & Malling Borough Council,1/17/2024,0041036212/1,41036212, 80.00,WorldPay Ltd,01402000,991280207,Credit Card Commission,Banking Arrangements,D43QK000044082,
http://statistics.data.gov.uk/id/local-authority/29UP,Tonbridge & Malling Borough Council,1/17/2024,0041036212/2,41036212, 162.72,WorldPay Ltd,01402000,991280207,Credit Card Commission,Banking Arrangements,D43QK000044082,
http://statistics.data.gov.uk/id/local-authority/29UP,Tonbridge & Malling Borough Council,1/17/2024,0041036212/3,41036212, 0.24,WorldPay Ltd,01402000,991280207,Credit Card Commission,Banking Arrangements,D43QK000044082,
http://statistics.data.gov.uk/id/local-authority/29UP,Tonbridge & Malling Borough Council,1/17/2024,0041036213/1,41036213, 80.00,WorldPay Ltd,01402000,991280207,Credit Card Commission,Banking Arrangements,D43QK000044082,
http://statistics.data.gov.uk/id/local-authority/29UP,Tonbridge & Malling Borough Council,1/17/2024,0041036213/2,41036213, 681.60,WorldPay Ltd,01402000,991280207,Credit Card Commission,Banking Arrangements,D43QK000044082,
http://statistics.data.gov.uk/id/local-authority/29UP,Tonbridge & Malling Borough Council,1/17/2024,0041036213/3,41036213, 1.12,WorldPay Ltd,01402000,991280207,Credit Card Commission,Banking Arrangements,D43QK000044082,
http://statistics.data.gov.uk/id/local-authority/29UP,Tonbridge & Malling Borough Council,1/17/2024,0041036214/1,41036214, 80.00,WorldPay Ltd,01402000,991280207,Credit Card Commission,Banking Arrangements,D43QK000044082,
http://statistics.data.gov.uk/id/local-authority/29UP,Tonbridge & Malling Borough Council,1/17/2024,0041036214/2,41036214, 192.96,WorldPay Ltd,01402000,991280207,Credit Card Commission,Banking Arrangements,D43QK000044082,
http://statistics.data.gov.uk/id/local-authority/29UP,Tonbridge & Malling Borough Council,1/17/2024,0041036214/3,41036214, 1.12,WorldPay Ltd,01402000,991280207,Credit Card Commission,Banking Arrangements,D43QK000044082,
http://statistics.data.gov.uk/id/local-authority/29UP,Tonbridge & Malling Borough Council,1/17/2024,0041036216/1,41036216, 1045.00,Kent County Council,00053700,,Professional Fees,Public Accountability,D29LR000044001,
http://statistics.data.gov.uk/id/local-authority/29UP,Tonbridge & Malling Borough Council,1/17/2024,0051008890/3,51008890, 218.00,RH Environmental Ltd RH Global,01221000,,Ext Fees/Prof & Tech,Training,D10DCDV0913561,
http://statistics.data.gov.uk/id/local-authority/29UP,Tonbridge & Malling Borough Council,1/17/2024,0051008891/3,51008891, 150.00,Aquila Training Services,01929200,,Ext Fees/Prof & Tech,Training,D10DCDJ0113561,
http://statistics.data.gov.uk/id/local-authority/29UP,Tonbridge & Malling Borough Council,1/17/2024,0051008893/1,51008893, 399.00,Act Now Training Ltd,00942700,,Ext Fees/Prof & Tech,Training,D10DCDA1113561,510010675
http://statistics.data.gov.uk/id/local-authority/29UP,Tonbridge & Malling Borough Council,1/19/2024,0041036226/1,41036226, 20.11,WorldPay Ltd,01402000,991280207,Credit Card Commission,Banking Arrangements,D43QK000044082,
http://statistics.data.gov.uk/id/local-authority/29UP,Tonbridge & Malling Borough Council,1/22/2024,0041036227/1,41036227, 2691.00,H.M. Revenue & Customs,00048400,,Levy Payment,Apprenticeship Scheme,D10DE000013700,
http://statistics.data.gov.uk/id/local-authority/29UP,Tonbridge & Malling Borough Council,1/22/2024,0041036227/2,41036227, 1.00,H.M. Revenue & Customs,00048400,,Levy Payment,Apprenticeship Scheme,D10DE000013700,
http://statistics.data.gov.uk/id/local-authority/29UP,Tonbridge & Malling Borough Council,1/23/2024,0041036224/10,41036224, 2.49,National Westminster Bank Plc,00894500,,Castle Catering Provisions,Ton Castle Council Chamber,D21FC000041015,
http://statistics.data.gov.uk/id/local-authority/29UP,Tonbridge & Malling Borough Council,1/23/2024,0041036224/11,41036224, 74.99,National Westminster Bank Plc,00894500,,Purchases,Customer Services,D23CS000040101,
http://statistics.data.gov.uk/id/local-authority/29UP,Tonbridge & Malling Borough Council,1/23/2024,0041036224/12,41036224, 644.15,National Westminster Bank Plc,00894500,,Purchases,Information Technology,D27KD000040101,
http://statistics.data.gov.uk/id/local-authority/29UP,Tonbridge & Malling Borough Council,1/23/2024,0041036224/13,41036224, 259.00,National Westminster Bank Plc,00894500,,Software Hire & Support,Information Technology,D27KD000044059,
http://statistics.data.gov.uk/id/local-authority/29UP,Tonbridge & Malling Borough Council,1/23/2024,0041036224/14,41036224, 16.64,National Westminster Bank Plc,00894500,,Software Hire & Support,Information Technology,D27KD000044059,
http://statistics.data.gov.uk/id/local-authority/29UP,Tonbridge & Malling Borough Council,1/23/2024,0041036224/15,41036224, 24.81,National Westminster Bank Plc,00894500,,Software Hire & Support,Information Technology,D27KD000044059,
http://statistics.data.gov.uk/id/local-authority/29UP,Tonbridge & Malling Borough Council,1/23/2024,0041036224/16,41036224, 5.83,National Westminster Bank Plc,00894500,,Delivery Expenses,Information Technology,D27KD000044069,
http://statistics.data.gov.uk/id/local-authority/29UP,Tonbridge & Malling Borough Council,1/23/2024,0041036224/17,41036224, 18.03,National Westminster Bank Plc,00894500,,Information & Publicity,Information & Publicity,D32MJ000044076,
http://statistics.data.gov.uk/id/local-authority/29UP,Tonbridge & Malling Borough Council,1/23/2024,0041036224/18,41036224, 79.00,National Westminster Bank Plc,00894500,,Information & Publicity,Information & Publicity,D32MJ000044076,
http://statistics.data.gov.uk/id/local-authority/29UP,Tonbridge & Malling Borough Council,1/23/2024,0041036224/19,41036224, 44.95,National Westminster Bank Plc,00894500,,Information & Publicity,Information & Publicity,D32MJ000044076,
http://statistics.data.gov.uk/id/local-authority/29UP,Tonbridge & Malling Borough Council,1/23/2024,0041036224/20,41036224, 12.15,National Westminster Bank Plc,00894500,,Information & Publicity,Information & Publicity,D32MJ000044076,
http://statistics.data.gov.uk/id/local-authority/29UP,Tonbridge & Malling Borough Council,1/23/2024,0041036224/21,41036224, 261.00,National Westminster Bank Plc,00894500,,Economic Development & Regen,Eco Dev & Reg Gen Bus Support,D52TD000047027,
http://statistics.data.gov.uk/id/local-authority/29UP,Tonbridge & Malling Borough Council,1/23/2024,0041036224/22,41036224, 117.00,National Westminster Bank Plc,00894500,,Economic Development & Regen,Eco Dev & Reg Gen Bus Support,D52TD000047027,
http://statistics.data.gov.uk/id/local-authority/29UP,Tonbridge & Malling Borough Council,1/23/2024,0041036224/24,41036224, 66.67,National Westminster Bank Plc,00894500,,Premises Repairs & Maintenance,Parking Off-Street,E10HA000020601,
http://statistics.data.gov.uk/id/local-authority/29UP,Tonbridge & Malling Borough Council,1/23/2024,0041036224/25,41036224, 59.21,National Westminster Bank Plc,00894500,,Winter Maintenance,Parking Off-Street,E10HA000020701,
http://statistics.data.gov.uk/id/local-authority/29UP,Tonbridge & Malling Borough Council,1/23/2024,0041036224/26,41036224, 8.50,National Westminster Bank Plc,00894500,,Winter Maintenance,Parking Off-Street,E10HA000020701,
http://statistics.data.gov.uk/id/local-authority/29UP,Tonbridge & Malling Borough Council,1/23/2024,0041036224/27,41036224, 140.00,National Westminster Bank Plc,00894500,,Purchases,Parking Off-Street,E10HA000040101,
http://statistics.data.gov.uk/id/local-authority/29UP,Tonbridge & Malling Borough Council,1/23/2024,0041036224/28,41036224, 210.00,National Westminster Bank Plc,00894500,,Purchases,Parking Off-Street,E10HA000040101,
http://statistics.data.gov.uk/id/local-authority/29UP,Tonbridge & Malling Borough Council,1/23/2024,0041036224/29,41036224, 72.05,National Westminster Bank Plc,00894500,,Sales,TIC Stock Account,K18AX000002002,
http://statistics.data.gov.uk/id/local-authority/29UP,Tonbridge & Malling Borough Council,1/23/2024,0041036224/3,41036224, 40.20,National Westminster Bank Plc,00894500,,Purchases,Tonbridge Castle Gatehouse,B40TG000040101,
http://statistics.data.gov.uk/id/local-authority/29UP,Tonbridge & Malling Borough Council,1/23/2024,0041036224/30,41036224, 298.00,National Westminster Bank Plc,00894500,,Income,LLCP Facility Improv,P05FF000009907,
http://statistics.data.gov.uk/id/local-authority/29UP,Tonbridge & Malling Borough Council,1/23/2024,0041036224/4,41036224, 137.46,National Westminster Bank Plc,00894500,,Health General,Env Hlth & Hsg Sals&Overheads,D01AVDV0944049,
http://statistics.data.gov.uk/id/local-authority/29UP,Tonbridge & Malling Borough Council,1/23/2024,0041036224/7,41036224, 439.00,National Westminster Bank Plc,00894500,,Ext Fees/General,Training,D10DCDM0013567,
http://statistics.data.gov.uk/id/local-authority/29UP,Tonbridge & Malling Borough Council,1/23/2024,0041036224/8,41036224, 239.99,National Westminster Bank Plc,00894500,,Purchases,Ton Castle Council Chamber,D21FC000040101,
http://statistics.data.gov.uk/id/local-authority/29UP,Tonbridge & Malling Borough Council,1/23/2024,0041036224/9,41036224, 347.07,National Westminster Bank Plc,00894500,,Castle Catering Provisions,Ton Castle Council Chamber,D21FC000041015,
http://statistics.data.gov.uk/id/local-authority/29UP,Tonbridge & Malling Borough Council,1/24/2024,0011047561/1,11047561, 1757.00,Loxton Installations Ltd,01278800,204934869,BRREP Sports Hall light mntce,Larkfield Leisure Centre,M15HDP20001914,110070550
http://statistics.data.gov.uk/id/local-authority/29UP,Tonbridge & Malling Borough Council,1/24/2024,0011047562/1,11047562, 691.00,Loxton Installations Ltd,01278800,204934869,BRREP IEE Testing,Tonbridge Castle / CAB,M15KFP30001991,110070669
http://statistics.data.gov.uk/id/local-authority/29UP,Tonbridge & Malling Borough Council,1/24/2024,0011047563/1,11047563, 350.00,BML Building Services Ltd,01505000,124905523,BRREP General Maintenance,PC - General,M15JAP10001900,110070668
http://statistics.data.gov.uk/id/local-authority/29UP,Tonbridge & Malling Borough Council,1/24/2024,0011047564/1,11047564, 492.98,System Hygienics Ltd,00600300,,BRREP General Maintenance,Tonbridge Swimming Pool,M15HBP30001900,110070593
http://statistics.data.gov.uk/id/local-authority/29UP,Tonbridge & Malling Borough Council,1/24/2024,0011047564/2,11047564, 492.98,System Hygienics Ltd,00600300,,BRREP General Maintenance,Larkfield Leisure Centre,M15HDP30001900,110070593
http://statistics.data.gov.uk/id/local-authority/29UP,Tonbridge & Malling Borough Council,1/24/2024,0011047565/1,11047565, 474.00,BML Building Services Ltd,01505000,124905523,BRREP Response - General,Leis Man Poult Wood Golf Centr,M15HEP50001997,110070674
http://statistics.data.gov.uk/id/local-authority/29UP,Tonbridge & Malling Borough Council,1/24/2024,0011047566/1,11047566, 362.00,BML Building Services Ltd,01505000,124905523,BRREP Response - General,Larkfield Leisure Centre,M15HDP50001997,110070382
http://statistics.data.gov.uk/id/local-authority/29UP,Tonbridge & Malling Borough Council,1/24/2024,0011047567/1,11047567, 4000.00,BML Building Services Ltd,01505000,124905523,Other Expenses,Homeless Accommodation,P03AX000009908,110070682
http://statistics.data.gov.uk/id/local-authority/29UP,Tonbridge & Malling Borough Council,1/24/2024,0011047568/1,11047568, 4000.00,BML Building Services Ltd,01505000,124905523,Other Expenses,Homeless Accommodation,P03AX000009908,110070681
http://statistics.data.gov.uk/id/local-authority/29UP,Tonbridge & Malling Borough Council,1/24/2024,0011047569/1,11047569, 100.00,BML Building Services Ltd,01505000,124905523,BRREP Response - General,Pleasure Grounds & Open Spaces,M15HHP50001997,110070422
http://statistics.data.gov.uk/id/local-authority/29UP,Tonbridge & Malling Borough Council,1/24/2024,0011047570/1,11047570, 415.00,Topline  Electronics Ltd Pools and Welln,01864600,,BRREP Servicing - pool plant,Tonbridge Swimming Pool,M15HBP20001910,110070532
http://statistics.data.gov.uk/id/local-authority/29UP,Tonbridge & Malling Borough Council,1/24/2024,0011047570/2,11047570, 415.00,Topline  Electronics Ltd Pools and Welln,01864600,,BRREP Servicing - pool plant,Tonbridge Swimming Pool,M15HBP20001910,110070532
http://statistics.data.gov.uk/id/local-authority/29UP,Tonbridge & Malling Borough Council,1/24/2024,0011047571/1,11047571, 300.00,Swale Shutter & Door Services Ltd,01919200,,BRREP Servicing-entrance doors,Leis Man Poult Wood Golf Centr,M15HEP20001927,110070536
http://statistics.data.gov.uk/id/local-authority/29UP,Tonbridge & Malling Borough Council,1/24/2024,0011047573/3,11047573, 182.00,Thomson Snell & Passmore,00101700,210327030,Legal Fees,Legal Sals&Overheads,D01ARDR0044002,
http://statistics.data.gov.uk/id/local-authority/29UP,Tonbridge & Malling Borough Council,1/24/2024,0011047574/1,11047574, 167.12,Edmundson Electrical Ltd,01210900,,Cleaning & Domestic Supplies,Cleaning & Security,D21FD000026001,110070664
http://statistics.data.gov.uk/id/local-authority/29UP,Tonbridge & Malling Borough Council,1/24/2024,0011047574/2,11047574, 66.38,Edmundson Electrical Ltd,01210900,,Cleaning & Domestic Supplies,Cleaning & Security,D21FD000026001,110070664
http://statistics.data.gov.uk/id/local-authority/29UP,Tonbridge & Malling Borough Council,1/24/2024,0011047575/1,11047575, 199.00,Loxton Installations Ltd,01278800,204934869,BRREP IEE Testing,Larkfield Leisure Centre,M15HDP30001991,110070698
http://statistics.data.gov.uk/id/local-authority/29UP,Tonbridge & Malling Borough Council,1/24/2024,0011047576/1,11047576, 199.00,Loxton Installations Ltd,01278800,204934869,BRREP IEE Testing,Larkfield Leisure Centre,M15HDP30001991,110070698
http://statistics.data.gov.uk/id/local-authority/29UP,Tonbridge & Malling Borough Council,1/24/2024,0011047577/1,11047577, 199.00,Loxton Installations Ltd,01278800,204934869,BRREP IEE Testing,Larkfield Leisure Centre,M15HDP30001991,110070698
http://statistics.data.gov.uk/id/local-authority/29UP,Tonbridge & Malling Borough Council,1/24/2024,0011047578/1,11047578, 3000.00,Hartnell Taylor Cook,01539500,,Professional Fees,Land Review,D40PS000044001,110070692
http://statistics.data.gov.uk/id/local-authority/29UP,Tonbridge & Malling Borough Council,1/24/2024,0011047579/1,11047579, 100.00,GreenFish Consulting part of JCML Consul,01627700,,BRREP General Maintenance,Land Review,M15MAP49901900,110070671
http://statistics.data.gov.uk/id/local-authority/29UP,Tonbridge & Malling Borough Council,1/24/2024,0011047580/3,11047580, 295.00,C. S. Mitchell LTD,01704800,,Initiatives,UK Shared Prosperity Fund,D52TH000048135,
http://statistics.data.gov.uk/id/local-authority/29UP,Tonbridge & Malling Borough Council,1/24/2024,0011047581/3,11047581, 1217.80,Sellick Partnership Group Limited,01336800,864288095,Temporary Staff,Legal Sals&Overheads,D01ARDR0011300,
http://statistics.data.gov.uk/id/local-authority/29UP,Tonbridge & Malling Borough Council,1/24/2024,0011047582/7,11047582, 1204.40,Sellick Partnership Group Limited,01336800,864288095,Temporary Staff,Legal Sals&Overheads,D01ARDR0011300,
http://statistics.data.gov.uk/id/local-authority/29UP,Tonbridge & Malling Borough Council,1/24/2024,0011047583/1,11047583, 8905.43,Recoir Ltd,01930200,,Capital Grants (RECS),Rural England Prosperity Fund,P06F0F01047771,
http://statistics.data.gov.uk/id/local-authority/29UP,Tonbridge & Malling Borough Council,1/24/2024,0011047584/3,11047584, 176.70,Ovenden Papers Ltd,01599100,,Purchases - Paper,Printing,D22GA000040102,
http://statistics.data.gov.uk/id/local-authority/29UP,Tonbridge & Malling Borough Council,1/24/2024,0011047585/3,11047585, 1600.00,The Oyster Partnership,01196400,,Temporary Staff,Admin & Prop Sals&Overheads,D01AADA1111300,
http://statistics.data.gov.uk/id/local-authority/29UP,Tonbridge & Malling Borough Council,1/24/2024,0011047586/3,11047586, 5809.85,KCS - KCC,00054200,204269191,Electricity,Buildings,D21FEDD1021002,
http://statistics.data.gov.uk/id/local-authority/29UP,Tonbridge & Malling Borough Council,1/24/2024,0011047587/3,11047587, 3401.47,KCS - KCC,00054200,204269191,Electricity,Buildings,D21FEDD6021002,
http://statistics.data.gov.uk/id/local-authority/29UP,Tonbridge & Malling Borough Council,1/24/2024,0011047590/1,11047590, 70.00,REDACTED PERSONAL DATA,01929300,,Mayors Transport Allowance,Mayoral & Other Member Support,D29LX000034111,
http://statistics.data.gov.uk/id/local-authority/29UP,Tonbridge & Malling Borough Council,1/24/2024,0011047591/3,11047591, 8353.66,KCS - KCC,00054200,204269191,Gas,Buildings,D21FEDD1021003,
http://statistics.data.gov.uk/id/local-authority/29UP,Tonbridge & Malling Borough Council,1/24/2024,0011047592/3,11047592, 2134.56,KCS - KCC,00054200,204269191,Gas,Buildings,D21FEDD6021003,
http://statistics.data.gov.uk/id/local-authority/29UP,Tonbridge & Malling Borough Council,1/24/2024,0011047593/1,11047593, 193.14,Scottish Water Business Stream Ltd,01641100,,Estate Management Charge,Land Review,D40PS000020400,
http://statistics.data.gov.uk/id/local-authority/29UP,Tonbridge & Malling Borough Council,1/24/2024,0011047594/3,11047594, 1756.83,Royal Mail,00086200,243170002,Purchases,Mailsort Stock Account,K37BR000001002,
http://statistics.data.gov.uk/id/local-authority/29UP,Tonbridge & Malling Borough Council,1/24/2024,0011047595/3,11047595, 1204.40,Sellick Partnership Group Limited,01336800,864288095,Temporary Staff,Legal Sals&Overheads,D01ARDR0011300,
http://statistics.data.gov.uk/id/local-authority/29UP,Tonbridge & Malling Borough Council,1/24/2024,0011047596/3,11047596, 1217.80,Sellick Partnership Group Limited,01336800,864288095,Temporary Staff,Legal Sals&Overheads,D01ARDR0011300,
http://statistics.data.gov.uk/id/local-authority/29UP,Tonbridge & Malling Borough Council,1/24/2024,0011047597/1,11047597, 1300.00,Improvement and Development Agency,01482800,,Consultation & Other Expenses,Performance Mgt & Consultation,D29LV000044228,110070708
http://statistics.data.gov.uk/id/local-authority/29UP,Tonbridge & Malling Borough Council,1/24/2024,0012008963/1,12008963, 409.90,CCS Media Ltd,00018000,,Purchases,Information Technology,D27KD000040101,410032568
http://statistics.data.gov.uk/id/local-authority/29UP,Tonbridge & Malling Borough Council,1/24/2024,0012008963/2,12008963, 449.90,CCS Media Ltd,00018000,,Purchases,Information Technology,D27KD000040101,410032568
http://statistics.data.gov.uk/id/local-authority/29UP,Tonbridge & Malling Borough Council,1/24/2024,0012008963/3,12008963, 6.95,CCS Media Ltd,00018000,,Delivery Expenses,Information Technology,D27KD000044069,410032568
http://statistics.data.gov.uk/id/local-authority/29UP,Tonbridge & Malling Borough Council,1/24/2024,0012008964/1,12008964, 15730.52,Phoenix Software Ltd,00077400,755349015,Software Hire & Support,Information Technology,D27KD000044059,
http://statistics.data.gov.uk/id/local-authority/29UP,Tonbridge & Malling Borough Council,1/24/2024,0012008965/1,12008965, 17.99,CCS Media Ltd,00018000,,Purchases,Information Technology,D27KD000040101,410032566
http://statistics.data.gov.uk/id/local-authority/29UP,Tonbridge & Malling Borough Council,1/24/2024,0012008965/2,12008965, 2.00,CCS Media Ltd,00018000,,Delivery Expenses,Information Technology,D27KD000044069,410032566
http://statistics.data.gov.uk/id/local-authority/29UP,Tonbridge & Malling Borough Council,1/24/2024,0021039095/1,21039095, 3400.00,M & M Developers LLP,01266500,,Maintenance of Play Equipment,Open Spaces & Amenity Areas,B22LE000020503,210057486
http://statistics.data.gov.uk/id/local-authority/29UP,Tonbridge & Malling Borough Council,1/24/2024,0021039103/1,21039103, 1918.76,HA HA Fluid Power Ltd,01928100,,Initial Furniture & Equipment,Capital Renewals Leisure,P05KGBC0209906,210057531
http://statistics.data.gov.uk/id/local-authority/29UP,Tonbridge & Malling Borough Council,1/24/2024,0021039104/1,21039104, 37.99,B&Q/Screwfix Direct(TradeUKAccount),00141300,,Maintenance of Grounds,Open Spaces & Amenity Areas,B22LE000020402,
http://statistics.data.gov.uk/id/local-authority/29UP,Tonbridge & Malling Borough Council,1/24/2024,0021039105/1,21039105, 350.00,Alltree Consultancy Ltd,01668300,,Health & Safety - Trees,Countryside/Woodland Mgt,B22LG000044045,210057507
http://statistics.data.gov.uk/id/local-authority/29UP,Tonbridge & Malling Borough Council,1/24/2024,0021039106/1,21039106, 250.00,Flash Mobile Welding Services Ltd,01189200,,Maintenance of Grounds,Open Spaces & Amenity Areas,B22LE000020402,210057500
http://statistics.data.gov.uk/id/local-authority/29UP,Tonbridge & Malling Borough Council,1/24/2024,0021039107/1,21039107, 832.00,Hadlow Parish Council,00041400,,Borough Christmas Lighting,Eco Dev & Reg Boro Chris Light,D52TE000047014,
http://statistics.data.gov.uk/id/local-authority/29UP,Tonbridge & Malling Borough Council,1/24/2024,0021039108/1,21039108, 1175.00,Advantage Catering Equipment Ltd,01912700,131043471,Initial Furniture & Equipment,Capital Renewals Leisure,P05KGBC0409906,210057544
http://statistics.data.gov.uk/id/local-authority/29UP,Tonbridge & Malling Borough Council,1/24/2024,0021039108/2,21039108, 300.00,Advantage Catering Equipment Ltd,01912700,131043471,Initial Furniture & Equipment,Capital Renewals Leisure,P05KGBC0409906,210057544
http://statistics.data.gov.uk/id/local-authority/29UP,Tonbridge & Malling Borough Council,1/24/2024,0021039109/1,21039109, 685.66,Atlas Facilities Managment Limited ,01075900,,Gates / Security,Patrolling,B22LF000044017,210057188
http://statistics.data.gov.uk/id/local-authority/29UP,Tonbridge & Malling Borough Council,1/24/2024,0021039110/1,21039110, 88.00,C & J Workwear ,01571300,,Purchases,Haysden Country Park,B22LC000040101,210057530
http://statistics.data.gov.uk/id/local-authority/29UP,Tonbridge & Malling Borough Council,1/24/2024,0022028423/1,22028423, 246.00,British Geological Survey (NERC),00514200,,Subscriptions,Planning Sals&Overheads,D01AJDJ0147002,320003587
http://statistics.data.gov.uk/id/local-authority/29UP,Tonbridge & Malling Borough Council,1/24/2024,0022028424/3,22028424, 1721.53,KCC - L.A.S.E.R Commercial Services ,00184300,,Electricity,Public Conveniences,H22SCH00921002,
http://statistics.data.gov.uk/id/local-authority/29UP,Tonbridge & Malling Borough Council,1/24/2024,0022028425/1,22028425, 561.00,Kent Accommodation Ltd,01722000,,Professional Fees,Homelessness,C01AA000044001,
http://statistics.data.gov.uk/id/local-authority/29UP,Tonbridge & Malling Borough Council,1/24/2024,0022028426/1,22028426, 220.00,Kent Accommodation Ltd,01722000,,Professional Fees,Homelessness,C01AA000044001,
http://statistics.data.gov.uk/id/local-authority/29UP,Tonbridge & Malling Borough Council,1/24/2024,0022028427/1,22028427, 220.00,Kent Accommodation Ltd,01722000,,Professional Fees,Homelessness,C01AA000044001,
http://statistics.data.gov.uk/id/local-authority/29UP,Tonbridge & Malling Borough Council,1/24/2024,0022028428/3,22028428, 245.00,Countrystyle Group,00835900,781981681,Collection of Card,Dry Recycling,H34SR000054008,
http://statistics.data.gov.uk/id/local-authority/29UP,Tonbridge & Malling Borough Council,1/24/2024,0022028429/1,22028429, 68.54,British Telecommunications Plc,00012800,,Purchases,Homelessness,C01AATNPR40101,
http://statistics.data.gov.uk/id/local-authority/29UP,Tonbridge & Malling Borough Council,1/24/2024,0022028431/1,22028431, 3658.00,House to Home Lettings Ltd ,01647600,,Temporary Accommodation,Homelessness,C01AA000044051,
http://statistics.data.gov.uk/id/local-authority/29UP,Tonbridge & Malling Borough Council,1/24/2024,0022028432/1,22028432, 115.00,Ferret Information Systems,01023100,,Subscriptions,Env Hlth & Hsg Sals&Overheads,D01AVDV0747002,220003438
http://statistics.data.gov.uk/id/local-authority/29UP,Tonbridge & Malling Borough Council,1/24/2024,0022028433/1,22028433, 6149.00,Kent Accommodation Ltd,01722000,,Temporary Accommodation,Homelessness,C01AA000044051,
http://statistics.data.gov.uk/id/local-authority/29UP,Tonbridge & Malling Borough Council,1/24/2024,0022028434/1,22028434, 8762.00,Less Homeless Ltd,01489300,,Temporary Accommodation,Homelessness,C01AA000044051,
http://statistics.data.gov.uk/id/local-authority/29UP,Tonbridge & Malling Borough Council,1/24/2024,0022028435/3,22028435, 15475.00,SPA CAFFE LIMITED,00127100,,Temporary Accommodation,Homelessness,C01AA000044051,
http://statistics.data.gov.uk/id/local-authority/29UP,Tonbridge & Malling Borough Council,1/24/2024,0022028436/1,22028436, 33.15,Scottish Water Business Stream Ltd,01641100,,Sewerage Charges,Public Conveniences,H22SCH00424003,
http://statistics.data.gov.uk/id/local-authority/29UP,Tonbridge & Malling Borough Council,1/24/2024,0022028438/1,22028438, 7949.00,Premier Property Providers,01785400,,Temporary Accommodation,Homelessness,C01AA000044051,
http://statistics.data.gov.uk/id/local-authority/29UP,Tonbridge & Malling Borough Council,1/24/2024,0022028439/1,22028439, 9720.00,Simon Niblett Lettings,00072600,,Temporary Accommodation,Homelessness,C01AA000044051,
http://statistics.data.gov.uk/id/local-authority/29UP,Tonbridge & Malling Borough Council,1/24/2024,0022028440/1,22028440, 3410.00,Simon Niblett Lettings,00072600,,Temporary Accommodation,Homelessness,C01AA000044051,
http://statistics.data.gov.uk/id/local-authority/29UP,Tonbridge & Malling Borough Council,1/24/2024,0022028441/1,22028441, 7494.00,Smart Property Professionals,01815100,,Temporary Accommodation,Homelessness,C01AA000044051,
http://statistics.data.gov.uk/id/local-authority/29UP,Tonbridge & Malling Borough Council,1/24/2024,0022028442/1,22028442, 749.25,KCC - L.A.S.E.R Commercial Services ,00184300,,Air Quality Monitoring,Environmental Protection,H32SN000054016,
http://statistics.data.gov.uk/id/local-authority/29UP,Tonbridge & Malling Borough Council,1/24/2024,0022028443/1,22028443, 20000.00,Malling PCN,01927200,,Healthy Living Initiatives,Public Health - Healthy Living,H40SYVH0048145,220003426
http://statistics.data.gov.uk/id/local-authority/29UP,Tonbridge & Malling Borough Council,1/24/2024,0022028444/1,22028444, 2477.00,On Site Wheelie Washers,01069700,,Other Expenses,Refuse Collection,H20SA000048010,
http://statistics.data.gov.uk/id/local-authority/29UP,Tonbridge & Malling Borough Council,1/24/2024,0022028445/1,22028445, 7036.00,Ability,01114200,,Other Expenses,Housing Assistance,P03AD000009908,
http://statistics.data.gov.uk/id/local-authority/29UP,Tonbridge & Malling Borough Council,1/24/2024,0022028446/1,22028446, 3.00,Tonbridge & Malling Borough Council,00103700,,Other Expenses,Housing Assistance,P03AD000009908,
http://statistics.data.gov.uk/id/local-authority/29UP,Tonbridge & Malling Borough Council,1/24/2024,0022028447/1,22028447, 6396.00,Higher Elevation LTD,01298700,,Other Expenses,Disabled Facilities Grant Mand,P03AC000009908,
http://statistics.data.gov.uk/id/local-authority/29UP,Tonbridge & Malling Borough Council,1/24/2024,0022028448/1,22028448, 2870.82,Town & Country Housing Group,01385400,,Other Expenses,Disabled Facilities Grant Mand,P03AC000009908,
http://statistics.data.gov.uk/id/local-authority/29UP,Tonbridge & Malling Borough Council,1/24/2024,0022028449/1,22028449, 9366.74,Webb-Flint Building & Maintenance Ltd,01913100,,Other Expenses,Disabled Facilities Grant Mand,P03AC000009908,
http://statistics.data.gov.uk/id/local-authority/29UP,Tonbridge & Malling Borough Council,1/24/2024,0022028450/1,22028450, 1692.01,Town & Country Housing Group,01385400,,Other Expenses,Disabled Facilities Grant Mand,P03AC000009908,
http://statistics.data.gov.uk/id/local-authority/29UP,Tonbridge & Malling Borough Council,1/24/2024,0022028451/1,22028451, 18.27,Maidstone Borough Council,01173700,,Council Tax,Homelessness,C01AA000023002,
http://statistics.data.gov.uk/id/local-authority/29UP,Tonbridge & Malling Borough Council,1/24/2024,0031019981/1,31019981, 1000.00,Traffic Enforcement Centre,00604200,,Adjudication & Enforcement Ser,Parking Off-Street,E10HA000044230,
http://statistics.data.gov.uk/id/local-authority/29UP,Tonbridge & Malling Borough Council,1/24/2024,0031019981/2,31019981, 1000.00,Traffic Enforcement Centre,00604200,,Adjudication & Enforcement Ser,Parking On-Street,E10HD000044230,
http://statistics.data.gov.uk/id/local-authority/29UP,Tonbridge & Malling Borough Council,1/24/2024,0031019982/1,31019982, 428.40,KM Media Group Ltd,00053900,,Advertising General,Parking On-Street,E10HDZ99944216,310043175
http://statistics.data.gov.uk/id/local-authority/29UP,Tonbridge & Malling Borough Council,1/24/2024,0031019983/3,31019983, 747.56,CDER Group,01773300,,Adjudication & Enforcement Ser,Parking Off-Street,E10HA000044230,
http://statistics.data.gov.uk/id/local-authority/29UP,Tonbridge & Malling Borough Council,1/24/2024,0031019984/1,31019984, 3440.00,Arnold & Court Ltd,01411300,,Winter Maintenance,Parking Off-Street,E10HA000020701,310043184
http://statistics.data.gov.uk/id/local-authority/29UP,Tonbridge & Malling Borough Council,1/24/2024,0031019985/1,31019985, 200.00,Arnold & Court Ltd,01411300,,Repair & Mtce of Fixed Plant,Boro Highways & Emergency Oper,E01AA000020501,310043214
http://statistics.data.gov.uk/id/local-authority/29UP,Tonbridge & Malling Borough Council,1/24/2024,0031019986/1,31019986, 400.00,Arnold & Court Ltd,01411300,,Contract Payments,Boro Drainage & Land Drainage,E20MA000054001,310043120
http://statistics.data.gov.uk/id/local-authority/29UP,Tonbridge & Malling Borough Council,1/24/2024,0031019986/2,31019986, 400.00,Arnold & Court Ltd,01411300,,Contract Payments,Boro Drainage & Land Drainage,E20MA000054001,310043120
http://statistics.data.gov.uk/id/local-authority/29UP,Tonbridge & Malling Borough Council,1/24/2024,0031019987/1,31019987, 400.00,Arnold & Court Ltd,01411300,,Premises Repairs & Maintenance,Parking Off-Street,E10HA000020601,310043221
http://statistics.data.gov.uk/id/local-authority/29UP,Tonbridge & Malling Borough Council,1/24/2024,0031019987/2,31019987, 200.00,Arnold & Court Ltd,01411300,,Premises Repairs & Maintenance,Parking Off-Street,E10HA000020601,310043221
http://statistics.data.gov.uk/id/local-authority/29UP,Tonbridge & Malling Borough Council,1/24/2024,0031019988/1,31019988, 250.00,Arnold & Court Ltd,01411300,,Tonbridge Christmas Lighting,Eco Dev & Reg Ton Chris Light,D52TF000047015,310043225
http://statistics.data.gov.uk/id/local-authority/29UP,Tonbridge & Malling Borough Council,1/24/2024,0031019989/1,31019989, 240.49,KCC - L.A.S.E.R Commercial Services ,00184300,,Electricity,Parking Off-Street,E10HA000021002,
http://statistics.data.gov.uk/id/local-authority/29UP,Tonbridge & Malling Borough Council,1/24/2024,0032010693/3,32010693, 1406.00,G2 Recruitment Solutions,01786000,,Temporary Staff,Planning Sals&Overheads,D01AJDJ0111300,
http://statistics.data.gov.uk/id/local-authority/29UP,Tonbridge & Malling Borough Council,1/24/2024,0032010694/3,32010694, 2250.00,G2 Recruitment Solutions,01786000,,Temporary Staff,Planning Sals&Overheads,D01AJDJ0011300,
http://statistics.data.gov.uk/id/local-authority/29UP,Tonbridge & Malling Borough Council,1/24/2024,0032010695/3,32010695, 1700.00,Hays Specialist Recruitment Limited,01879200,773695871,Temporary Staff,Planning Sals&Overheads,D01AJDJ0311300,
http://statistics.data.gov.uk/id/local-authority/29UP,Tonbridge & Malling Borough Council,1/24/2024,0032010696/1,32010696, 2011.60,Kent County Council,00322500,,Development of Local Plan,Development of Local Plan,A01AE000044023,320003552
http://statistics.data.gov.uk/id/local-authority/29UP,Tonbridge & Malling Borough Council,1/24/2024,0032010697/1,32010697, 2142.64,Kent County Council,00322500,,Development of Local Plan,Development of Local Plan,A01AE000044023,320003522
http://statistics.data.gov.uk/id/local-authority/29UP,Tonbridge & Malling Borough Council,1/24/2024,0032010698/3,32010698, 1585.50,The Oyster Partnership,01196400,,Temporary Staff,Planning Sals&Overheads,D01AJDJ0111300,
http://statistics.data.gov.uk/id/local-authority/29UP,Tonbridge & Malling Borough Council,1/24/2024,0032010699/3,32010699, 1496.25,Vivid Resourcing,01773700,,Temporary Staff,Planning Sals&Overheads,D01AJDJ0111300,
http://statistics.data.gov.uk/id/local-authority/29UP,Tonbridge & Malling Borough Council,1/24/2024,0032010701/1,32010701, 1340.90,Carrington West Limited,01844500,,Temporary Staff,Planning Sals&Overheads,D01AJDJ0111300,
http://statistics.data.gov.uk/id/local-authority/29UP,Tonbridge & Malling Borough Council,1/24/2024,0032010702/1,32010702, 1548.18,Kent County Council,00322500,,Payments,S106 - Commuted Sums,M04AD000001001,220003429
http://statistics.data.gov.uk/id/local-authority/29UP,Tonbridge & Malling Borough Council,1/24/2024,0032010703/1,32010703, 267.75,KM Media Group Ltd,00053900,,Advertising General,Development Management,A01ABZ99944216,320003580
http://statistics.data.gov.uk/id/local-authority/29UP,Tonbridge & Malling Borough Council,1/24/2024,0032010704/1,32010704, 3015.00,KWT Consultancy Services,01845300,974842378,Development of Local Plan,Development of Local Plan,A01AE000044023,
http://statistics.data.gov.uk/id/local-authority/29UP,Tonbridge & Malling Borough Council,1/24/2024,0032010705/1,32010705, 689.67,Offham Parish Council,00073400,,Payments,S106 - Commuted Sums,M04AD000001001,
http://statistics.data.gov.uk/id/local-authority/29UP,Tonbridge & Malling Borough Council,1/24/2024,0032010706/1,32010706, 4000.00,Trowers & Hamlins LLP,01930300,440655069,Development of Local Plan,Development of Local Plan,A01AE000044023,
http://statistics.data.gov.uk/id/local-authority/29UP,Tonbridge & Malling Borough Council,1/24/2024,0041036235/1,41036235, 80.00,WorldPay Ltd,01402000,991280207,Credit Card Commission,Banking Arrangements,D43QK000044082,
http://statistics.data.gov.uk/id/local-authority/29UP,Tonbridge & Malling Borough Council,1/24/2024,0041036235/2,41036235, 65.84,WorldPay Ltd,01402000,991280207,Credit Card Commission,Banking Arrangements,D43QK000044082,
http://statistics.data.gov.uk/id/local-authority/29UP,Tonbridge & Malling Borough Council,1/24/2024,0041036236/1,41036236, 80.00,WorldPay Ltd,01402000,991280207,Credit Card Commission,Banking Arrangements,D43QK000044082,
http://statistics.data.gov.uk/id/local-authority/29UP,Tonbridge & Malling Borough Council,1/24/2024,0041036236/2,41036236, 210.00,WorldPay Ltd,01402000,991280207,Credit Card Commission,Banking Arrangements,D43QK000044082,
http://statistics.data.gov.uk/id/local-authority/29UP,Tonbridge & Malling Borough Council,1/24/2024,0041036236/3,41036236, 0.88,WorldPay Ltd,01402000,991280207,Credit Card Commission,Banking Arrangements,D43QK000044082,
http://statistics.data.gov.uk/id/local-authority/29UP,Tonbridge & Malling Borough Council,1/24/2024,0041036237/1,41036237, 80.00,WorldPay Ltd,01402000,991280207,Credit Card Commission,Banking Arrangements,D43QK000044082,
http://statistics.data.gov.uk/id/local-authority/29UP,Tonbridge & Malling Borough Council,1/24/2024,0041036237/2,41036237, 177.36,WorldPay Ltd,01402000,991280207,Credit Card Commission,Banking Arrangements,D43QK000044082,
http://statistics.data.gov.uk/id/local-authority/29UP,Tonbridge & Malling Borough Council,1/24/2024,0041036237/3,41036237, 0.88,WorldPay Ltd,01402000,991280207,Credit Card Commission,Banking Arrangements,D43QK000044082,
http://statistics.data.gov.uk/id/local-authority/29UP,Tonbridge & Malling Borough Council,1/24/2024,0041036238/1,41036238, 53649.00,Kent County Council,00322500,,Tracing Services,Local Revenue & NNDR Collect,D41QA000044091,410032567
http://statistics.data.gov.uk/id/local-authority/29UP,Tonbridge & Malling Borough Council,1/24/2024,0041036239/1,41036239, 1699.17,Maidstone Borough Council,01173700,,Bailiffs Commission,Local Revenue & NNDR Collect,D41QA000044075,
http://statistics.data.gov.uk/id/local-authority/29UP,Tonbridge & Malling Borough Council,1/24/2024,0041036240/1,41036240, 2033.87,Rundle & Co Ltd,00087200,,Bailiffs Commission,Local Revenue & NNDR Collect,D41QA000044075,
http://statistics.data.gov.uk/id/local-authority/29UP,Tonbridge & Malling Borough Council,1/24/2024,0041036241/1,41036241, 101.24,Rundle & Co Ltd,00087200,,Bailiffs Commission,Local Revenue & NNDR Collect,D41QA000044075,
http://statistics.data.gov.uk/id/local-authority/29UP,Tonbridge & Malling Borough Council,1/24/2024,0041036242/1,41036242, 1870.13,Rundle & Co Ltd,00087200,,Bailiffs Commission,Local Revenue & NNDR Collect,D41QA000044075,
http://statistics.data.gov.uk/id/local-authority/29UP,Tonbridge & Malling Borough Council,1/24/2024,0041036243/1,41036243, 326.40,Rundle & Co Ltd,00087200,,Bailiffs Commission,Local Revenue & NNDR Collect,D41QA000044075,
http://statistics.data.gov.uk/id/local-authority/29UP,Tonbridge & Malling Borough Council,1/24/2024,0041036244/1,41036244, 550.00,Airey Consultancy Services Ltd,01760800,,Contract Services,Finance Sals&Overheads,D01AFDF1144005,
http://statistics.data.gov.uk/id/local-authority/29UP,Tonbridge & Malling Borough Council,1/24/2024,0041036249/1,41036249, 3.05,WorldPay ,01568000,,Credit Card Commission,Banking Arrangements,D43QK000044082,
http://statistics.data.gov.uk/id/local-authority/29UP,Tonbridge & Malling Borough Council,1/24/2024,0041036250/1,41036250, 2417.00,WorldPay ,01568000,,Credit Card Commission,Banking Arrangements,D43QK000044082,
http://statistics.data.gov.uk/id/local-authority/29UP,Tonbridge & Malling Borough Council,1/24/2024,0041036250/2,41036250, 24.99,WorldPay ,01568000,,Credit Card Commission,Banking Arrangements,D43QK000044082,
http://statistics.data.gov.uk/id/local-authority/29UP,Tonbridge & Malling Borough Council,1/24/2024,0051008894/7,51008894, 230.00,Local Government Association,01186000,,Ext Fees/Prof & Tech,Training,D10DCDB0013561,
http://statistics.data.gov.uk/id/local-authority/29UP,Tonbridge & Malling Borough Council,1/24/2024,0051008895/1,51008895, 1320.00,Irrv,00050300,,Ext Fees/Prof & Tech,Training,D10DCDF1113561,510010672
http://statistics.data.gov.uk/id/local-authority/29UP,Tonbridge & Malling Borough Council,1/24/2024,0051008896/1,51008896, 120.00,St John Ambulance Supplies,01228000,564553916,Ext Fees/Health & Safety,Training,D10DCDG0013566,510010677
http://statistics.data.gov.uk/id/local-authority/29UP,Tonbridge & Malling Borough Council,1/24/2024,0051008897/1,51008897, 390.00,St John Ambulance Supplies,01228000,564553916,Ext Fees/Health & Safety,Training,D10DCDJ0113566,510010678
http://statistics.data.gov.uk/id/local-authority/29UP,Tonbridge & Malling Borough Council,1/24/2024,0051008898/3,51008898, 32.00,Maidstone & Tun Wells NHS Trust,00067100,,Occuptional Health Medicals,Health Care,D10DBDE0413311,
http://statistics.data.gov.uk/id/local-authority/29UP,Tonbridge & Malling Borough Council,1/24/2024,0051008898/4,51008898, 32.00,Maidstone & Tun Wells NHS Trust,00067100,,Occuptional Health Medicals,Health Care,D10DBDG0113311,
http://statistics.data.gov.uk/id/local-authority/29UP,Tonbridge & Malling Borough Council,1/24/2024,0051008898/5,51008898, 32.00,Maidstone & Tun Wells NHS Trust,00067100,,Occuptional Health Medicals,Health Care,D10DBDN0113311,
http://statistics.data.gov.uk/id/local-authority/29UP,Tonbridge & Malling Borough Council,1/24/2024,0051008898/6,51008898, 102.00,Maidstone & Tun Wells NHS Trust,00067100,,Occuptional Health Medicals,Health Care,D10DBDV0713311,
http://statistics.data.gov.uk/id/local-authority/29UP,Tonbridge & Malling Borough Council,1/24/2024,0051008899/1,51008899, 148.00,Maidstone & Tun Wells NHS Trust,00067100,,Occuptional Health Medicals,Health Care,D10DBDJ0013311,
http://statistics.data.gov.uk/id/local-authority/29UP,Tonbridge & Malling Borough Council,1/26/2024,0041036253/1,41036253, 68.00,National Westminster Bank Plc,00069400,,Bank Charges,Banking Arrangements,D43QK000044222,
http://statistics.data.gov.uk/id/local-authority/29UP,Tonbridge & Malling Borough Council,1/29/2024,0011047572/1,11047572, 440.00,Willow Pumps Ltd,00114100,,BRREP Servicing - Pumping Stn,Ton Sportsgrnd Bldgs / Toilets,M15HCP20001931,110070683
http://statistics.data.gov.uk/id/local-authority/29UP,Tonbridge & Malling Borough Council,1/29/2024,0041036252/10,41036252, 24.11,National Westminster Bank Plc,00894500,,Software Hire & Support,Information Technology,D27KD000044059,
http://statistics.data.gov.uk/id/local-authority/29UP,Tonbridge & Malling Borough Council,1/29/2024,0041036252/11,41036252, 15.14,National Westminster Bank Plc,00894500,,Software Hire & Support,Information Technology,D27KD000044059,
http://statistics.data.gov.uk/id/local-authority/29UP,Tonbridge & Malling Borough Council,1/29/2024,0041036252/12,41036252, 15.45,National Westminster Bank Plc,00894500,,Software Hire & Support,Information Technology,D27KD000044059,
http://statistics.data.gov.uk/id/local-authority/29UP,Tonbridge & Malling Borough Council,1/29/2024,0041036252/13,41036252, 49.00,National Westminster Bank Plc,00894500,,Information & Publicity,Information & Publicity,D32MJ000044076,
http://statistics.data.gov.uk/id/local-authority/29UP,Tonbridge & Malling Borough Council,1/29/2024,0041036252/14,41036252, 17.85,National Westminster Bank Plc,00894500,,Information & Publicity,Information & Publicity,D32MJ000044076,
http://statistics.data.gov.uk/id/local-authority/29UP,Tonbridge & Malling Borough Council,1/29/2024,0041036252/15,41036252, 595.00,National Westminster Bank Plc,00894500,,Bank Charges,Banking Arrangements,D43QK000044222,
http://statistics.data.gov.uk/id/local-authority/29UP,Tonbridge & Malling Borough Council,1/29/2024,0041036252/16,41036252, 830.00,National Westminster Bank Plc,00894500,,Economic Development & Regen,Eco Dev & Reg Gen Bus Support,D52TD000047027,
http://statistics.data.gov.uk/id/local-authority/29UP,Tonbridge & Malling Borough Council,1/29/2024,0041036252/17,41036252, 79.34,National Westminster Bank Plc,00894500,,Sales,TIC Stock Account,K18AX000002002,
http://statistics.data.gov.uk/id/local-authority/29UP,Tonbridge & Malling Borough Council,1/29/2024,0041036252/18,41036252, 40.57,National Westminster Bank Plc,00894500,,Sales,TIC Stock Account,K18AX000002002,
http://statistics.data.gov.uk/id/local-authority/29UP,Tonbridge & Malling Borough Council,1/29/2024,0041036252/19,41036252, 29.99,National Westminster Bank Plc,00894500,,Sales,TIC Stock Account,K18AX000002002,
http://statistics.data.gov.uk/id/local-authority/29UP,Tonbridge & Malling Borough Council,1/29/2024,0041036252/20,41036252, 85.42,National Westminster Bank Plc,00894500,,Sales,TIC Stock Account,K18AX000002002,
http://statistics.data.gov.uk/id/local-authority/29UP,Tonbridge & Malling Borough Council,1/29/2024,0041036252/5,41036252, 95.00,National Westminster Bank Plc,00894500,,Ext Fees/Prof & Tech,Training,D10DCDE0113561,
http://statistics.data.gov.uk/id/local-authority/29UP,Tonbridge & Malling Borough Council,1/29/2024,0041036252/6,41036252, 5.39,National Westminster Bank Plc,00894500,,Castle Catering Provisions,Ton Castle Council Chamber,D21FC000041015,
http://statistics.data.gov.uk/id/local-authority/29UP,Tonbridge & Malling Borough Council,1/29/2024,0041036252/7,41036252, 213.94,National Westminster Bank Plc,00894500,,Castle Catering Provisions,Ton Castle Council Chamber,D21FC000041015,
http://statistics.data.gov.uk/id/local-authority/29UP,Tonbridge & Malling Borough Council,1/29/2024,0041036252/8,41036252, 96.33,National Westminster Bank Plc,00894500,,Castle Catering Provisions,Ton Castle Council Chamber,D21FC000041015,
http://statistics.data.gov.uk/id/local-authority/29UP,Tonbridge & Malling Borough Council,1/29/2024,0041036252/9,41036252, 17.95,National Westminster Bank Plc,00894500,,Castle Catering Provisions,Ton Castle Council Chamber,D21FC000041015,
http://statistics.data.gov.uk/id/local-authority/29UP,Tonbridge & Malling Borough Council,1/31/2024,0011047599/1,11047599, 20000.00,K.C.C,01296900,,Economic Development & Regen,Eco Dev & Reg Gen Bus Support,D52TD000047027,110070628
http://statistics.data.gov.uk/id/local-authority/29UP,Tonbridge & Malling Borough Council,1/31/2024,0011047599/2,11047599, 40000.00,K.C.C,01296900,,Contract Payments,UK Shared Prosperity Fund,P06FNFN3009904,110070628
http://statistics.data.gov.uk/id/local-authority/29UP,Tonbridge & Malling Borough Council,1/31/2024,0011047600/1,11047600, 999.99,Sideways Media,01836200,,Information & Publicity,Information & Publicity,D32MJ000044076,110070724
http://statistics.data.gov.uk/id/local-authority/29UP,Tonbridge & Malling Borough Council,1/31/2024,0011047601/1,11047601, 1396.17,Royal Mail,00086200,243170002,Purchases,Mailsort Stock Account,K37BR000001002,
http://statistics.data.gov.uk/id/local-authority/29UP,Tonbridge & Malling Borough Council,1/31/2024,0011047601/2,11047601, 13.78,Royal Mail,00086200,243170002,Purchases,Mailsort Stock Account,K37BR000001002,
http://statistics.data.gov.uk/id/local-authority/29UP,Tonbridge & Malling Borough Council,1/31/2024,0011047602/1,11047602, 418.00,Envirocure Limited,00963300,,BRREP Legionella Certification,Tonbridge Swimming Pool,M15HBP30001995,110070562
http://statistics.data.gov.uk/id/local-authority/29UP,Tonbridge & Malling Borough Council,1/31/2024,0011047603/1,11047603, 2500.00,Baker Developments South East Ltd,01878900,446348183,BRREP Window/door repairs,Larkfield Leisure Centre,M15HDP20001919,110070439
http://statistics.data.gov.uk/id/local-authority/29UP,Tonbridge & Malling Borough Council,1/31/2024,0011047604/1,11047604, 180.00,Baker Developments South East Ltd,01878900,446348183,BRREP Window/door repairs,Larkfield Leisure Centre,M15HDP20001919,
http://statistics.data.gov.uk/id/local-authority/29UP,Tonbridge & Malling Borough Council,1/31/2024,0011047605/1,11047605, 50.00,BML Building Services Ltd,01505000,124905523,BRREP Window/door repairs,Larkfield Leisure Centre,M15HDP20001919,
http://statistics.data.gov.uk/id/local-authority/29UP,Tonbridge & Malling Borough Council,1/31/2024,0011047606/1,11047606, 250.00,BML Building Services Ltd,01505000,124905523,BRREP Response - General,Larkfield Leisure Centre,M15HDP50001997,110070701
http://statistics.data.gov.uk/id/local-authority/29UP,Tonbridge & Malling Borough Council,1/31/2024,0011047607/1,11047607, 1198.00,BML Building Services Ltd,01505000,124905523,BRREP Pool tile repairs,Larkfield Leisure Centre,M15HDP20001906,110070700
http://statistics.data.gov.uk/id/local-authority/29UP,Tonbridge & Malling Borough Council,1/31/2024,0011047608/1,11047608, 576.00,BML Building Services Ltd,01505000,124905523,BRREP Response - General,Larkfield Leisure Centre,M15HDP50001997,110070701
http://statistics.data.gov.uk/id/local-authority/29UP,Tonbridge & Malling Borough Council,1/31/2024,0011047609/1,11047609, 175.00,BML Building Services Ltd,01505000,124905523,BRREP Pool tile repairs,Larkfield Leisure Centre,M15HDP20001906,110070700
http://statistics.data.gov.uk/id/local-authority/29UP,Tonbridge & Malling Borough Council,1/31/2024,0011047610/1,11047610, 352.00,BML Building Services Ltd,01505000,124905523,BRREP Response - General,Larkfield Leisure Centre,M15HDP50001997,110070701
http://statistics.data.gov.uk/id/local-authority/29UP,Tonbridge & Malling Borough Council,1/31/2024,0011047611/1,11047611, 401.95,NKM Fire Protection Ltd,01784600,,BRREP Servicing - FireAlarmSys,Tonbridge Swimming Pool,M15HBP20001937,110070707
http://statistics.data.gov.uk/id/local-authority/29UP,Tonbridge & Malling Borough Council,1/31/2024,0011047612/1,11047612, 375.00,BML Building Services Ltd,01505000,124905523,BRREP Response - General,Larkfield Leisure Centre,M15HDP50001997,110070695
http://statistics.data.gov.uk/id/local-authority/29UP,Tonbridge & Malling Borough Council,1/31/2024,0011047613/1,11047613, 150.00,BML Building Services Ltd,01505000,124905523,Repairs & Mtce to Buildings,Homelessness,C01AATNHS20101,
http://statistics.data.gov.uk/id/local-authority/29UP,Tonbridge & Malling Borough Council,1/31/2024,0011047614/1,11047614, 100.00,BML Building Services Ltd,01505000,124905523,BRREP Pool tile repairs,Larkfield Leisure Centre,M15HDP20001906,110070700
http://statistics.data.gov.uk/id/local-authority/29UP,Tonbridge & Malling Borough Council,1/31/2024,0011047615/1,11047615, 372.00,BML Building Services Ltd,01505000,124905523,BRREP Response - General,Larkfield Leisure Centre,M15HDP50001997,110070701
http://statistics.data.gov.uk/id/local-authority/29UP,Tonbridge & Malling Borough Council,1/31/2024,0011047616/1,11047616, 228.00,BML Building Services Ltd,01505000,124905523,BRREP Response - General,Larkfield Leisure Centre,M15HDP50001997,110070701
http://statistics.data.gov.uk/id/local-authority/29UP,Tonbridge & Malling Borough Council,1/31/2024,0011047617/1,11047617, 100.00,BML Building Services Ltd,01505000,124905523,BRREP Pool tile repairs,Larkfield Leisure Centre,M15HDP20001906,110070700
http://statistics.data.gov.uk/id/local-authority/29UP,Tonbridge & Malling Borough Council,1/31/2024,0011047618/1,11047618, 2275.00,BML Building Services Ltd,01505000,124905523,BRREP Pool tile repairs,Larkfield Leisure Centre,M15HDP20001906,110070700
http://statistics.data.gov.uk/id/local-authority/29UP,Tonbridge & Malling Borough Council,1/31/2024,0011047619/3,11047619, 1217.80,Sellick Partnership Group Limited,01336800,864288095,Temporary Staff,Legal Sals&Overheads,D01ARDR0011300,
http://statistics.data.gov.uk/id/local-authority/29UP,Tonbridge & Malling Borough Council,1/31/2024,0011047620/3,11047620, 1204.40,Sellick Partnership Group Limited,01336800,864288095,Temporary Staff,Legal Sals&Overheads,D01ARDR0011300,
http://statistics.data.gov.uk/id/local-authority/29UP,Tonbridge & Malling Borough Council,1/31/2024,0012008966/10,12008966, 9.00,O2 UK Ltd,01268000,,Mobile Telephones,Admin & Prop Sals&Overheads,D01AADA1245013,
http://statistics.data.gov.uk/id/local-authority/29UP,Tonbridge & Malling Borough Council,1/31/2024,0012008966/11,12008966, 3.00,O2 UK Ltd,01268000,,Mobile Telephones,Chief Exec Sals&Overheads,D01ACDC0045013,
http://statistics.data.gov.uk/id/local-authority/29UP,Tonbridge & Malling Borough Council,1/31/2024,0012008966/12,12008966, 3.00,O2 UK Ltd,01268000,,Mobile Telephones,Chief Exec Sals&Overheads,D01ACDC0145013,
http://statistics.data.gov.uk/id/local-authority/29UP,Tonbridge & Malling Borough Council,1/31/2024,0012008966/13,12008966, 3.00,O2 UK Ltd,01268000,,Mobile Telephones,Chief Exec Sals&Overheads,D01ACDC0245013,
http://statistics.data.gov.uk/id/local-authority/29UP,Tonbridge & Malling Borough Council,1/31/2024,0012008966/14,12008966, 3.00,O2 UK Ltd,01268000,,Mobile Telephones,Technical Sals&Overheads,D01AEDE0045013,
http://statistics.data.gov.uk/id/local-authority/29UP,Tonbridge & Malling Borough Council,1/31/2024,0012008966/15,12008966, 6.00,O2 UK Ltd,01268000,,Mobile Telephones,Technical Sals&Overheads,D01AEDE0145013,
http://statistics.data.gov.uk/id/local-authority/29UP,Tonbridge & Malling Borough Council,1/31/2024,0012008966/16,12008966, 9.00,O2 UK Ltd,01268000,,Mobile Telephones,Technical Sals&Overheads,D01AEDE0245013,
http://statistics.data.gov.uk/id/local-authority/29UP,Tonbridge & Malling Borough Council,1/31/2024,0012008966/17,12008966, 42.00,O2 UK Ltd,01268000,,Mobile Telephones,Technical Sals&Overheads,D01AEDE0445013,
http://statistics.data.gov.uk/id/local-authority/29UP,Tonbridge & Malling Borough Council,1/31/2024,0012008966/18,12008966, 3.00,O2 UK Ltd,01268000,,Mobile Telephones,Technical Sals&Overheads,D01AEDE0545013,
http://statistics.data.gov.uk/id/local-authority/29UP,Tonbridge & Malling Borough Council,1/31/2024,0012008966/19,12008966, 12.00,O2 UK Ltd,01268000,,Mobile Telephones,Finance Sals&Overheads,D01AFDF0045013,
http://statistics.data.gov.uk/id/local-authority/29UP,Tonbridge & Malling Borough Council,1/31/2024,0012008966/20,12008966, 6.00,O2 UK Ltd,01268000,,Mobile Telephones,Finance Sals&Overheads,D01AFDF0945013,
http://statistics.data.gov.uk/id/local-authority/29UP,Tonbridge & Malling Borough Council,1/31/2024,0012008966/21,12008966, 12.00,O2 UK Ltd,01268000,,Mobile Telephones,St Scene & Leis Sals&Overheads,D01AGDG0045013,
http://statistics.data.gov.uk/id/local-authority/29UP,Tonbridge & Malling Borough Council,1/31/2024,0012008966/22,12008966, 12.00,O2 UK Ltd,01268000,,Mobile Telephones,St Scene & Leis Sals&Overheads,D01AGDG0145013,
http://statistics.data.gov.uk/id/local-authority/29UP,Tonbridge & Malling Borough Council,1/31/2024,0012008966/23,12008966, 9.00,O2 UK Ltd,01268000,,Mobile Telephones,St Scene & Leis Sals&Overheads,D01AGDG0445013,
http://statistics.data.gov.uk/id/local-authority/29UP,Tonbridge & Malling Borough Council,1/31/2024,0012008966/24,12008966, 36.00,O2 UK Ltd,01268000,,Mobile Telephones,St Scene & Leis Sals&Overheads,D01AGDG2045013,
http://statistics.data.gov.uk/id/local-authority/29UP,Tonbridge & Malling Borough Council,1/31/2024,0012008966/25,12008966, 9.00,O2 UK Ltd,01268000,,Mobile Telephones,Planning Sals&Overheads,D01AJDJ0045013,
http://statistics.data.gov.uk/id/local-authority/29UP,Tonbridge & Malling Borough Council,1/31/2024,0012008966/26,12008966, 12.00,O2 UK Ltd,01268000,,Mobile Telephones,Planning Sals&Overheads,D01AJDJ0245013,
http://statistics.data.gov.uk/id/local-authority/29UP,Tonbridge & Malling Borough Council,1/31/2024,0012008966/27,12008966, 6.00,O2 UK Ltd,01268000,,Mobile Telephones,Legal Sals&Overheads,D01ARDR0045013,
http://statistics.data.gov.uk/id/local-authority/29UP,Tonbridge & Malling Borough Council,1/31/2024,0012008966/28,12008966, 12.00,O2 UK Ltd,01268000,,Mobile Telephones,Legal Sals&Overheads,D01ARDR0445013,
http://statistics.data.gov.uk/id/local-authority/29UP,Tonbridge & Malling Borough Council,1/31/2024,0012008966/29,12008966, 3.00,O2 UK Ltd,01268000,,Mobile Telephones,Legal Sals&Overheads,D01ARDR0745013,
http://statistics.data.gov.uk/id/local-authority/29UP,Tonbridge & Malling Borough Council,1/31/2024,0012008966/30,12008966, 3.00,O2 UK Ltd,01268000,,Mobile Telephones,Env Hlth & Hsg Sals&Overheads,D01AVDV0045013,
http://statistics.data.gov.uk/id/local-authority/29UP,Tonbridge & Malling Borough Council,1/31/2024,0012008966/31,12008966, 9.00,O2 UK Ltd,01268000,,Mobile Telephones,Env Hlth & Hsg Sals&Overheads,D01AVDV0145013,
http://statistics.data.gov.uk/id/local-authority/29UP,Tonbridge & Malling Borough Council,1/31/2024,0012008966/32,12008966, 6.00,O2 UK Ltd,01268000,,Mobile Telephones,Env Hlth & Hsg Sals&Overheads,D01AVDV0345013,
http://statistics.data.gov.uk/id/local-authority/29UP,Tonbridge & Malling Borough Council,1/31/2024,0012008966/33,12008966, 3.00,O2 UK Ltd,01268000,,Mobile Telephones,Env Hlth & Hsg Sals&Overheads,D01AVDV0745013,
http://statistics.data.gov.uk/id/local-authority/29UP,Tonbridge & Malling Borough Council,1/31/2024,0012008966/34,12008966, 6.00,O2 UK Ltd,01268000,,Mobile Telephones,Env Hlth & Hsg Sals&Overheads,D01AVDV0945013,
http://statistics.data.gov.uk/id/local-authority/29UP,Tonbridge & Malling Borough Council,1/31/2024,0012008966/35,12008966, 9.00,O2 UK Ltd,01268000,,Mobile Telephones,Customer Services,D23CS000045013,
http://statistics.data.gov.uk/id/local-authority/29UP,Tonbridge & Malling Borough Council,1/31/2024,0012008966/36,12008966, 3.00,O2 UK Ltd,01268000,,Mobile Telephones,Tonbridge Gateway,D23TG000045013,
http://statistics.data.gov.uk/id/local-authority/29UP,Tonbridge & Malling Borough Council,1/31/2024,0012008966/37,12008966, 627.00,O2 UK Ltd,01268000,,Leased Lines & Modems,Information Technology,D27KD000045011,
http://statistics.data.gov.uk/id/local-authority/29UP,Tonbridge & Malling Borough Council,1/31/2024,0012008966/38,12008966, 3.00,O2 UK Ltd,01268000,,Mobile Telephones,Mayoral & Other Member Support,D29LX000045013,
http://statistics.data.gov.uk/id/local-authority/29UP,Tonbridge & Malling Borough Council,1/31/2024,0012008966/39,12008966, 3.00,O2 UK Ltd,01268000,,Emergency Out of Hours Recharg,Refuse Collection,H20SA000045030,
http://statistics.data.gov.uk/id/local-authority/29UP,Tonbridge & Malling Borough Council,1/31/2024,0012008966/40,12008966, 3.00,O2 UK Ltd,01268000,,Emergency Out of Hours Recharg,Street Scene,H23SD000045030,
http://statistics.data.gov.uk/id/local-authority/29UP,Tonbridge & Malling Borough Council,1/31/2024,0012008966/7,12008966, 3.00,O2 UK Ltd,01268000,,Telephones - General,Open Spaces & Amenity Areas,B22LE000045010,
http://statistics.data.gov.uk/id/local-authority/29UP,Tonbridge & Malling Borough Council,1/31/2024,0012008966/8,12008966, 3.00,O2 UK Ltd,01268000,,Mobile Telephones,Admin & Prop Sals&Overheads,D01AADA0045013,
http://statistics.data.gov.uk/id/local-authority/29UP,Tonbridge & Malling Borough Council,1/31/2024,0012008966/9,12008966, 3.00,O2 UK Ltd,01268000,,Mobile Telephones,Admin & Prop Sals&Overheads,D01AADA1045013,
http://statistics.data.gov.uk/id/local-authority/29UP,Tonbridge & Malling Borough Council,1/31/2024,0012008967/1,12008967, 667.15,NEC Software Solutions UK Ltd,01073900,202159745,Software Hire & Support,Information Technology,D27KD000044059,410032521
http://statistics.data.gov.uk/id/local-authority/29UP,Tonbridge & Malling Borough Council,1/31/2024,0012008967/2,12008967, 166.78,NEC Software Solutions UK Ltd,01073900,202159745,Software Hire & Support,Information Technology,D27KD000044059,410032521
http://statistics.data.gov.uk/id/local-authority/29UP,Tonbridge & Malling Borough Council,1/31/2024,0012008968/1,12008968, 12.79,Bytes Software Services,01676900,823818226,Software Hire & Support,Information Technology,D27KD000044059,410032571
http://statistics.data.gov.uk/id/local-authority/29UP,Tonbridge & Malling Borough Council,1/31/2024,0012008969/1,12008969, 10738.71,Idox Software Ltd,00962400,,Software Hire & Support,Information Technology,D27KD000044059,410032580
http://statistics.data.gov.uk/id/local-authority/29UP,Tonbridge & Malling Borough Council,1/31/2024,0012008969/2,12008969, 1273.80,Idox Software Ltd,00962400,,Software Hire & Support,Information Technology,D27KD000044059,410032580
http://statistics.data.gov.uk/id/local-authority/29UP,Tonbridge & Malling Borough Council,1/31/2024,0012008969/3,12008969, 8640.90,Idox Software Ltd,00962400,,Software Hire & Support,Information Technology,D27KD000044059,410032580
http://statistics.data.gov.uk/id/local-authority/29UP,Tonbridge & Malling Borough Council,1/31/2024,0012008970/1,12008970, 25277.55,Coolspirit Ltd,01366300,,Software Hire & Support,Information Technology,D27KD000044059,410032572
http://statistics.data.gov.uk/id/local-authority/29UP,Tonbridge & Malling Borough Council,1/31/2024,0021039111/1,21039111, 135.00,Toms Tree Ties,00614800,,Tree Planting Schemes,Countryside/Woodland Mgt,B22LH000020405,210057540
http://statistics.data.gov.uk/id/local-authority/29UP,Tonbridge & Malling Borough Council,1/31/2024,0021039111/2,21039111, 57.50,Toms Tree Ties,00614800,,Tree Planting Schemes,Countryside/Woodland Mgt,B22LH000020405,210057540
http://statistics.data.gov.uk/id/local-authority/29UP,Tonbridge & Malling Borough Council,1/31/2024,0021039111/3,21039111, 18.00,Toms Tree Ties,00614800,,Tree Planting Schemes,Countryside/Woodland Mgt,B22LH000020405,210057540
http://statistics.data.gov.uk/id/local-authority/29UP,Tonbridge & Malling Borough Council,1/31/2024,0021039111/4,21039111, 42.00,Toms Tree Ties,00614800,,Tree Planting Schemes,Countryside/Woodland Mgt,B22LH000020405,210057540
http://statistics.data.gov.uk/id/local-authority/29UP,Tonbridge & Malling Borough Council,1/31/2024,0021039112/1,21039112, 1500.00,SWS Countryside & Landscape,01567200,,Tonbridge Christmas Lighting,Eco Dev & Reg Ton Chris Light,D52TF000047015,210057447
http://statistics.data.gov.uk/id/local-authority/29UP,Tonbridge & Malling Borough Council,1/31/2024,0021039113/1,21039113, 700.00,SWS Countryside & Landscape,01567200,,Maintenance of Grounds,Open Spaces & Amenity Areas,B22LE000020402,210057497
http://statistics.data.gov.uk/id/local-authority/29UP,Tonbridge & Malling Borough Council,1/31/2024,0021039114/3,21039114, 250.00,SWS Countryside & Landscape,01567200,,Health & Safety - Trees,Countryside/Woodland Mgt,B22LG000044045,
http://statistics.data.gov.uk/id/local-authority/29UP,Tonbridge & Malling Borough Council,1/31/2024,0021039115/3,21039115, 400.00,SWS Countryside & Landscape,01567200,,Health & Safety - Trees,Countryside/Woodland Mgt,B22LG000044045,
http://statistics.data.gov.uk/id/local-authority/29UP,Tonbridge & Malling Borough Council,1/31/2024,0021039116/1,21039116, 699.99,Cater-Kwik Ltd,01265500,,Initial Furniture & Equipment,Capital Renewals Leisure,P05KGBC0109906,210057548
http://statistics.data.gov.uk/id/local-authority/29UP,Tonbridge & Malling Borough Council,1/31/2024,0021039116/2,21039116, 24.95,Cater-Kwik Ltd,01265500,,Initial Furniture & Equipment,Capital Renewals Leisure,P05KGBC0109906,210057548
http://statistics.data.gov.uk/id/local-authority/29UP,Tonbridge & Malling Borough Council,1/31/2024,0021039117/1,21039117, 482.86,Landscape Services Ltd,00057600,,Grounds Maintenance Contract,Cemetery,B26MP000050103,
http://statistics.data.gov.uk/id/local-authority/29UP,Tonbridge & Malling Borough Council,1/31/2024,0021039119/1,21039119, 2240.00,The Snodland Partnership,00993200,,Borough Christmas Lighting,Eco Dev & Reg Boro Chris Light,D52TE000047014,
http://statistics.data.gov.uk/id/local-authority/29UP,Tonbridge & Malling Borough Council,1/31/2024,0021039120/1,21039120, 960.00,Aylesford Parish Council,00007300,,Borough Christmas Lighting,Eco Dev & Reg Boro Chris Light,D52TE000047014,
http://statistics.data.gov.uk/id/local-authority/29UP,Tonbridge & Malling Borough Council,1/31/2024,0021039121/1,21039121, 4032.00,West Malling Chamber of Commerce,01750800,,Borough Christmas Lighting,Eco Dev & Reg Boro Chris Light,D52TE000047014,
http://statistics.data.gov.uk/id/local-authority/29UP,Tonbridge & Malling Borough Council,1/31/2024,0021039122/1,21039122, 1800.00,Event Consultants Ltd,01754700,,Events Support,Events Development,B41TJ000044041,
http://statistics.data.gov.uk/id/local-authority/29UP,Tonbridge & Malling Borough Council,1/31/2024,0021039123/1,21039123, 137500.00,Tonbridge & Malling Leisure Trust,01469100,,General,T&M Leisure Trust,B10DA000054012,
http://statistics.data.gov.uk/id/local-authority/29UP,Tonbridge & Malling Borough Council,1/31/2024,0021039124/1,21039124, 900.00,Green Leaf Tree & Landscapes Limited,01860500,,Health & Safety - Trees,Countryside/Woodland Mgt,B22LG000044045,210057541
http://statistics.data.gov.uk/id/local-authority/29UP,Tonbridge & Malling Borough Council,1/31/2024,0021039125/1,21039125, 250.00,Green Leaf Tree & Landscapes Limited,01860500,,Maintenance of Grounds,Sports Grounds,B13ET000020402,210057554
http://statistics.data.gov.uk/id/local-authority/29UP,Tonbridge & Malling Borough Council,1/31/2024,0021039126/1,21039126, 255.00,Green Leaf Tree & Landscapes Limited,01860500,,Tree Planting Schemes,Countryside/Woodland Mgt,B22LH000020405,210057542
http://statistics.data.gov.uk/id/local-authority/29UP,Tonbridge & Malling Borough Council,1/31/2024,0021039127/1,21039127, 200.00,Green Leaf Tree & Landscapes Limited,01860500,,Health & Safety - Trees,Countryside/Woodland Mgt,B22LG000044045,210057553
http://statistics.data.gov.uk/id/local-authority/29UP,Tonbridge & Malling Borough Council,1/31/2024,0021039128/10,21039128, 5307.69,Landscape Services Ltd,00057600,,Grounds Maintenance Contract,Cemetery,B26MP000050103,
http://statistics.data.gov.uk/id/local-authority/29UP,Tonbridge & Malling Borough Council,1/31/2024,0021039128/11,21039128, 266.93,Landscape Services Ltd,00057600,,Grounds Maintenance Contract,Churchyards St Peter & St Paul,B28MX000050103,
http://statistics.data.gov.uk/id/local-authority/29UP,Tonbridge & Malling Borough Council,1/31/2024,0021039128/12,21039128, 198.05,Landscape Services Ltd,00057600,,Grounds Maintenance Contract,Churchyards St Stephens,B28MY000050103,
http://statistics.data.gov.uk/id/local-authority/29UP,Tonbridge & Malling Borough Council,1/31/2024,0021039128/13,21039128, 199.63,Landscape Services Ltd,00057600,,Grounds Maintenance Contract,Grounds,D21FF000050103,
http://statistics.data.gov.uk/id/local-authority/29UP,Tonbridge & Malling Borough Council,1/31/2024,0021039128/14,21039128, 333.36,Landscape Services Ltd,00057600,,Maintenance of Grounds,Parking Off-Street,E10HA000020402,
http://statistics.data.gov.uk/id/local-authority/29UP,Tonbridge & Malling Borough Council,1/31/2024,0021039128/15,21039128, 1194.65,Landscape Services Ltd,00057600,,Maintenance of Grounds,Parking Off-Street,E10HAE00120402,
http://statistics.data.gov.uk/id/local-authority/29UP,Tonbridge & Malling Borough Council,1/31/2024,0021039128/16,21039128, 112.75,Landscape Services Ltd,00057600,,Maintenance of Grounds,Parking Off-Street,E10HAE00220402,
http://statistics.data.gov.uk/id/local-authority/29UP,Tonbridge & Malling Borough Council,1/31/2024,0021039128/17,21039128, 102.24,Landscape Services Ltd,00057600,,Maintenance of Grounds,Parking Off-Street,E10HAE00320402,
http://statistics.data.gov.uk/id/local-authority/29UP,Tonbridge & Malling Borough Council,1/31/2024,0021039128/18,21039128, 25.50,Landscape Services Ltd,00057600,,Maintenance of Grounds,Parking Off-Street,E10HAE00420402,
http://statistics.data.gov.uk/id/local-authority/29UP,Tonbridge & Malling Borough Council,1/31/2024,0021039128/19,21039128, 0.66,Landscape Services Ltd,00057600,,Maintenance of Grounds,Parking Off-Street,E10HAE00520402,
http://statistics.data.gov.uk/id/local-authority/29UP,Tonbridge & Malling Borough Council,1/31/2024,0021039128/20,21039128, 71.38,Landscape Services Ltd,00057600,,Maintenance of Grounds,Parking Off-Street,E10HAE00620402,
http://statistics.data.gov.uk/id/local-authority/29UP,Tonbridge & Malling Borough Council,1/31/2024,0021039128/21,21039128, 166.65,Landscape Services Ltd,00057600,,Maintenance of Grounds,Parking Off-Street,E10HAE01020402,
http://statistics.data.gov.uk/id/local-authority/29UP,Tonbridge & Malling Borough Council,1/31/2024,0021039128/22,21039128, 3.69,Landscape Services Ltd,00057600,,Maintenance of Grounds,Parking Off-Street,E10HAE01220402,
http://statistics.data.gov.uk/id/local-authority/29UP,Tonbridge & Malling Borough Council,1/31/2024,0021039128/23,21039128, 8.14,Landscape Services Ltd,00057600,,Maintenance of Grounds,Parking Off-Street,E10HAE01320402,
http://statistics.data.gov.uk/id/local-authority/29UP,Tonbridge & Malling Borough Council,1/31/2024,0021039128/24,21039128, 33.90,Landscape Services Ltd,00057600,,Maintenance of Grounds,Parking Off-Street,E10HAE01520402,
http://statistics.data.gov.uk/id/local-authority/29UP,Tonbridge & Malling Borough Council,1/31/2024,0021039128/25,21039128, 66.24,Landscape Services Ltd,00057600,,Maintenance of Grounds,Parking Off-Street,E10HAE01620402,
http://statistics.data.gov.uk/id/local-authority/29UP,Tonbridge & Malling Borough Council,1/31/2024,0021039128/26,21039128, 26.92,Landscape Services Ltd,00057600,,Maintenance of Grounds,Parking Off-Street,E10HAE01720402,
http://statistics.data.gov.uk/id/local-authority/29UP,Tonbridge & Malling Borough Council,1/31/2024,0021039128/27,21039128, 16.54,Landscape Services Ltd,00057600,,Maintenance of Grounds,Parking Off-Street,E10HAE02120402,
http://statistics.data.gov.uk/id/local-authority/29UP,Tonbridge & Malling Borough Council,1/31/2024,0021039128/28,21039128, 26.33,Landscape Services Ltd,00057600,,Maintenance of Grounds,Parking Off-Street,E10HAE02320402,
http://statistics.data.gov.uk/id/local-authority/29UP,Tonbridge & Malling Borough Council,1/31/2024,0021039128/29,21039128, 100.93,Landscape Services Ltd,00057600,,Maintenance of Grounds,Parking Off-Street,E10HAE02820402,
http://statistics.data.gov.uk/id/local-authority/29UP,Tonbridge & Malling Borough Council,1/31/2024,0021039128/3,21039128, 23053.19,Landscape Services Ltd,00057600,,Grounds Maintenance Contract,Sports Grounds,B13ET000050103,
http://statistics.data.gov.uk/id/local-authority/29UP,Tonbridge & Malling Borough Council,1/31/2024,0021039128/30,21039128, 27.33,Landscape Services Ltd,00057600,,Maintenance of Grounds,Parking Off-Street,E10HAE04020402,
http://statistics.data.gov.uk/id/local-authority/29UP,Tonbridge & Malling Borough Council,1/31/2024,0021039128/31,21039128, 90.12,Landscape Services Ltd,00057600,,Maintenance of Grounds,Parking Off-Street,E10HAE04520402,
http://statistics.data.gov.uk/id/local-authority/29UP,Tonbridge & Malling Borough Council,1/31/2024,0021039128/4,21039128, 8568.45,Landscape Services Ltd,00057600,,Grounds Maintenance Contract,Tonbridge Castle Grounds,B22LB000050103,
http://statistics.data.gov.uk/id/local-authority/29UP,Tonbridge & Malling Borough Council,1/31/2024,0021039128/5,21039128, 65.24,Landscape Services Ltd,00057600,,Trade Refuse Charges,Haysden Country Park,B22LC000044008,
http://statistics.data.gov.uk/id/local-authority/29UP,Tonbridge & Malling Borough Council,1/31/2024,0021039128/6,21039128, 559.69,Landscape Services Ltd,00057600,,Litter Collection,Haysden Country Park,B22LC000044061,
http://statistics.data.gov.uk/id/local-authority/29UP,Tonbridge & Malling Borough Council,1/31/2024,0021039128/7,21039128, 671.10,Landscape Services Ltd,00057600,,Grounds Maintenance Contract,Haysden Country Park,B22LC000050103,
http://statistics.data.gov.uk/id/local-authority/29UP,Tonbridge & Malling Borough Council,1/31/2024,0021039128/8,21039128, 1923.85,Landscape Services Ltd,00057600,,Grounds Maintenance Contract,Haysden Country Park,B22LC000050103,
http://statistics.data.gov.uk/id/local-authority/29UP,Tonbridge & Malling Borough Council,1/31/2024,0021039128/9,21039128, 14731.38,Landscape Services Ltd,00057600,,Grounds Maintenance Contract,Open Spaces & Amenity Areas,B22LE000050103,
http://statistics.data.gov.uk/id/local-authority/29UP,Tonbridge & Malling Borough Council,1/31/2024,0022028296/1,22028296, 451.17,Urbaser LTD,01718800,,Maintenance of Grounds,Sports Grounds,B13ET000020402,
http://statistics.data.gov.uk/id/local-authority/29UP,Tonbridge & Malling Borough Council,1/31/2024,0022028296/10,22028296, 214.52,Urbaser LTD,01718800,,Maintenance of Grounds,Parking Off-Street,E10HA000020402,
http://statistics.data.gov.uk/id/local-authority/29UP,Tonbridge & Malling Borough Council,1/31/2024,0022028296/11,22028296, 5458.43,Urbaser LTD,01718800,,Maintenance of Grounds,Parking Off-Street,E10HAE00120402,
http://statistics.data.gov.uk/id/local-authority/29UP,Tonbridge & Malling Borough Council,1/31/2024,0022028296/12,22028296, 587.98,Urbaser LTD,01718800,,Maintenance of Grounds,Parking Off-Street,E10HAE00220402,
http://statistics.data.gov.uk/id/local-authority/29UP,Tonbridge & Malling Borough Council,1/31/2024,0022028296/13,22028296, 367.83,Urbaser LTD,01718800,,Maintenance of Grounds,Parking Off-Street,E10HAE00320402,
http://statistics.data.gov.uk/id/local-authority/29UP,Tonbridge & Malling Borough Council,1/31/2024,0022028296/14,22028296, 1923.76,Urbaser LTD,01718800,,Maintenance of Grounds,Parking Off-Street,E10HAE00420402,
http://statistics.data.gov.uk/id/local-authority/29UP,Tonbridge & Malling Borough Council,1/31/2024,0022028296/15,22028296, 319.68,Urbaser LTD,01718800,,Maintenance of Grounds,Parking Off-Street,E10HAE00520402,
http://statistics.data.gov.uk/id/local-authority/29UP,Tonbridge & Malling Borough Council,1/31/2024,0022028296/16,22028296, 1192.31,Urbaser LTD,01718800,,Maintenance of Grounds,Parking Off-Street,E10HAE00620402,
http://statistics.data.gov.uk/id/local-authority/29UP,Tonbridge & Malling Borough Council,1/31/2024,0022028296/17,22028296, 10.05,Urbaser LTD,01718800,,Maintenance of Grounds,Parking Off-Street,E10HAE00820402,
http://statistics.data.gov.uk/id/local-authority/29UP,Tonbridge & Malling Borough Council,1/31/2024,0022028296/18,22028296, 9.92,Urbaser LTD,01718800,,Maintenance of Grounds,Parking Off-Street,E10HAE00920402,
http://statistics.data.gov.uk/id/local-authority/29UP,Tonbridge & Malling Borough Council,1/31/2024,0022028296/19,22028296, 23.56,Urbaser LTD,01718800,,Maintenance of Grounds,Parking Off-Street,E10HAE01020402,
http://statistics.data.gov.uk/id/local-authority/29UP,Tonbridge & Malling Borough Council,1/31/2024,0022028296/2,22028296, 96.02,Urbaser LTD,01718800,,Maintenance of Grounds,Poult Wood Golf Centre,B21KE000020402,
http://statistics.data.gov.uk/id/local-authority/29UP,Tonbridge & Malling Borough Council,1/31/2024,0022028296/20,22028296, 111.95,Urbaser LTD,01718800,,Maintenance of Grounds,Parking Off-Street,E10HAE01120402,
http://statistics.data.gov.uk/id/local-authority/29UP,Tonbridge & Malling Borough Council,1/31/2024,0022028296/21,22028296, 70.44,Urbaser LTD,01718800,,Maintenance of Grounds,Parking Off-Street,E10HAE01220402,
http://statistics.data.gov.uk/id/local-authority/29UP,Tonbridge & Malling Borough Council,1/31/2024,0022028296/22,22028296, 1335.68,Urbaser LTD,01718800,,Maintenance of Grounds,Parking Off-Street,E10HAE01320402,
http://statistics.data.gov.uk/id/local-authority/29UP,Tonbridge & Malling Borough Council,1/31/2024,0022028296/23,22028296, 101.58,Urbaser LTD,01718800,,Maintenance of Grounds,Parking Off-Street,E10HAE01420402,
http://statistics.data.gov.uk/id/local-authority/29UP,Tonbridge & Malling Borough Council,1/31/2024,0022028296/24,22028296, 313.05,Urbaser LTD,01718800,,Maintenance of Grounds,Parking Off-Street,E10HAE01520402,
http://statistics.data.gov.uk/id/local-authority/29UP,Tonbridge & Malling Borough Council,1/31/2024,0022028296/25,22028296, 336.69,Urbaser LTD,01718800,,Maintenance of Grounds,Parking Off-Street,E10HAE01620402,
http://statistics.data.gov.uk/id/local-authority/29UP,Tonbridge & Malling Borough Council,1/31/2024,0022028296/26,22028296, 993.96,Urbaser LTD,01718800,,Maintenance of Grounds,Parking Off-Street,E10HAE01720402,
http://statistics.data.gov.uk/id/local-authority/29UP,Tonbridge & Malling Borough Council,1/31/2024,0022028296/27,22028296, 285.29,Urbaser LTD,01718800,,Maintenance of Grounds,Parking Off-Street,E10HAE01920402,
http://statistics.data.gov.uk/id/local-authority/29UP,Tonbridge & Malling Borough Council,1/31/2024,0022028296/28,22028296, 626.69,Urbaser LTD,01718800,,Maintenance of Grounds,Parking Off-Street,E10HAE02020402,
http://statistics.data.gov.uk/id/local-authority/29UP,Tonbridge & Malling Borough Council,1/31/2024,0022028296/29,22028296, 21.76,Urbaser LTD,01718800,,Maintenance of Grounds,Parking Off-Street,E10HAE02120402,
http://statistics.data.gov.uk/id/local-authority/29UP,Tonbridge & Malling Borough Council,1/31/2024,0022028296/3,22028296, 39.62,Urbaser LTD,01718800,,Maintenance of Grounds,Haysden Country Park,B22LC000020402,
http://statistics.data.gov.uk/id/local-authority/29UP,Tonbridge & Malling Borough Council,1/31/2024,0022028296/30,22028296, 143.26,Urbaser LTD,01718800,,Maintenance of Grounds,Parking Off-Street,E10HAE02220402,
http://statistics.data.gov.uk/id/local-authority/29UP,Tonbridge & Malling Borough Council,1/31/2024,0022028296/31,22028296, 1204.31,Urbaser LTD,01718800,,Maintenance of Grounds,Parking Off-Street,E10HAE02320402,
http://statistics.data.gov.uk/id/local-authority/29UP,Tonbridge & Malling Borough Council,1/31/2024,0022028296/32,22028296, 3.11,Urbaser LTD,01718800,,Maintenance of Grounds,Parking Off-Street,E10HAE02720402,
http://statistics.data.gov.uk/id/local-authority/29UP,Tonbridge & Malling Borough Council,1/31/2024,0022028296/33,22028296, 437.60,Urbaser LTD,01718800,,Maintenance of Grounds,Parking Off-Street,E10HAE02820402,
